,Date Paid,TT,Transaction Number,Amount,Supplier No,Supplier Name,Period,Expense Area,Cipfa(T),
INSERTED DETAIL,01/06/2016,OI,3830660,"15,780.00",HC100001,FFT Education Ltd,201702,Education and Commissioning,Supplies & Services,
INSERTED DETAIL,06/05/2016,OI,3828610,"1,900.00",HC100025,2simple Software Ltd,201702,Schools,Supplies & Services,
INSERTED DETAIL,26/05/2016,OI,3830079,"1,945.00",HC100054,Absence Protection Ltd,201702,Schools,Employees,
INSERTED DETAIL,01/06/2016,OI,3830454,"3,182.00",HC100054,Absence Protection Ltd,201702,Schools,Employees,
INSERTED DETAIL,11/05/2016,OI,3828645,"2,850.00",HC100090,REDACTED,201702,Environment and Place,Transport-Related Expenditure,
INSERTED DETAIL,11/05/2016,OI,3828661,"1,051.20",HC100090,REDACTED,201702,Environment and Place,Transport-Related Expenditure,
INSERTED DETAIL,11/05/2016,OI,3828662,"1,591.80",HC100090,REDACTED,201702,Environment and Place,Transport-Related Expenditure,
INSERTED DETAIL,11/05/2016,OI,3828663,"1,371.30",HC100090,REDACTED,201702,Environment and Place,Transport-Related Expenditure,
INSERTED DETAIL,01/06/2016,OI,3830393,620.00,HC100138,A4 Office Products Ltd,201702,Communities,Supplies & Services,
INSERTED DETAIL,13/05/2016,SI,4687694,"1,890.00",HC100165,ABC Print Ltd,201702,Environment and Place,Supplies & Services,
INSERTED DETAIL,11/05/2016,OI,3828646,"1,740.00",HC100192,Ace Coaches & Travel,201702,Environment and Place,Transport-Related Expenditure,
INSERTED DETAIL,11/05/2016,OI,3828647,"1,498.50",HC100192,Ace Coaches & Travel,201702,Environment and Place,Transport-Related Expenditure,
INSERTED DETAIL,11/05/2016,OI,3828703,787.50,HC100192,Ace Coaches & Travel,201702,Environment and Place,Transport-Related Expenditure,
INSERTED DETAIL,26/05/2016,OI,3830025,"4,300.00",HC100210,Action Centres Uk Ltd,201702,Schools,Supplies & Services,
INSERTED DETAIL,13/05/2016,OI,3829215,"3,500.00",HC100220,Activate Educational Ltd,201702,Schools,Employees,
INSERTED DETAIL,18/05/2016,OI,3828874,"3,500.00",HC100220,Activate Educational Ltd,201702,Schools,Employees,
INSERTED DETAIL,20/05/2016,OI,3829509,"4,008.00",HC100238,Document Output Solutions UK Ltd,201702,Resources,Supplies & Services,
INSERTED DETAIL,11/05/2016,OI,3828734,805.00,HC100254,REDACTED,201702,Schools,Supplies & Services,
INSERTED DETAIL,18/05/2016,OI,3829311,462.00,HC100281,Age Concern Hereford & Localities,201702,Physical Disabilities,Supplies & Services,
INSERTED DETAIL,04/05/2016,OI,3828409,"1,109.68",HC100385,Alliance In Partnership,201702,Schools,Supplies & Services,
INSERTED DETAIL,06/05/2016,SI,4686631,"2,184.60",HC100385,Alliance In Partnership,201702,Schools,Supplies & Services,
INSERTED DETAIL,11/05/2016,OI,3827408,"2,010.80",HC100385,Alliance In Partnership,201702,Schools,Supplies & Services,
INSERTED DETAIL,11/05/2016,OI,3828300,"1,551.00",HC100385,Alliance In Partnership,201702,Schools,Supplies & Services,
INSERTED DETAIL,11/05/2016,OI,3828735,738.00,HC100385,Alliance In Partnership,201702,Schools,Supplies & Services,
INSERTED DETAIL,11/05/2016,OI,3828792,"1,183.50",HC100385,Alliance In Partnership,201702,Schools,Supplies & Services,
INSERTED DETAIL,11/05/2016,SI,4687432,886.60,HC100385,Alliance In Partnership,201702,Schools,Supplies & Services,
INSERTED DETAIL,11/05/2016,SI,4687433,"2,651.00",HC100385,Alliance In Partnership,201702,Schools,Supplies & Services,
INSERTED DETAIL,11/05/2016,SI,4687530,515.25,HC100385,Alliance In Partnership,201702,Schools,Supplies & Services,
INSERTED DETAIL,13/05/2016,OI,3829159,"1,327.50",HC100385,Alliance In Partnership,201702,Schools,Supplies & Services,
INSERTED DETAIL,13/05/2016,OI,3829197,"1,014.20",HC100385,Alliance In Partnership,201702,Schools,Supplies & Services,
INSERTED DETAIL,13/05/2016,OI,3829214,987.75,HC100385,Alliance In Partnership,201702,Schools,Supplies & Services,
INSERTED DETAIL,13/05/2016,OI,3829261,"3,075.75",HC100385,Alliance In Partnership,201702,Schools,Supplies & Services,
INSERTED DETAIL,13/05/2016,SI,4687378,"1,918.10",HC100385,Alliance In Partnership,201702,Schools,Supplies & Services,
INSERTED DETAIL,13/05/2016,SI,4687573,"2,660.80",HC100385,Alliance In Partnership,201702,Schools,Supplies & Services,
INSERTED DETAIL,13/05/2016,SI,4687600,721.95,HC100385,Alliance In Partnership,201702,Schools,Supplies & Services,
INSERTED DETAIL,13/05/2016,SI,4687663,"1,139.60",HC100385,Alliance In Partnership,201702,Schools,Supplies & Services,
INSERTED DETAIL,18/05/2016,OI,3829057,"2,811.45",HC100385,Alliance In Partnership,201702,Schools,Supplies & Services,
INSERTED DETAIL,18/05/2016,OI,3829267,"1,874.80",HC100385,Alliance In Partnership,201702,Schools,Supplies & Services,
INSERTED DETAIL,18/05/2016,OI,3829269,"2,267.55",HC100385,Alliance In Partnership,201702,Schools,Supplies & Services,
INSERTED DETAIL,18/05/2016,SI,4687799,"2,358.00",HC100385,Alliance In Partnership,201702,Schools,Supplies & Services,
INSERTED DETAIL,18/05/2016,SI,4687800,"1,037.25",HC100385,Alliance In Partnership,201702,Schools,Supplies & Services,
INSERTED DETAIL,18/05/2016,SI,4687802,"6,212.80",HC100385,Alliance In Partnership,201702,Schools,Supplies & Services,
INSERTED DETAIL,18/05/2016,SI,4687803,"7,917.80",HC100385,Alliance In Partnership,201702,Schools,Supplies & Services,
INSERTED DETAIL,18/05/2016,SI,4687877,783.20,HC100385,Alliance In Partnership,201702,Schools,Supplies & Services,
INSERTED DETAIL,18/05/2016,SI,4687878,"2,127.40",HC100385,Alliance In Partnership,201702,Schools,Supplies & Services,
INSERTED DETAIL,18/05/2016,SI,4687879,675.40,HC100385,Alliance In Partnership,201702,Schools,Supplies & Services,
INSERTED DETAIL,18/05/2016,SI,4687880,"7,008.50",HC100385,Alliance In Partnership,201702,Schools,Supplies & Services,
INSERTED DETAIL,18/05/2016,SI,4687882,"1,056.00",HC100385,Alliance In Partnership,201702,Schools,Supplies & Services,
INSERTED DETAIL,20/05/2016,OI,3829480,"3,221.20",HC100385,Alliance In Partnership,201702,Schools,Supplies & Services,
INSERTED DETAIL,20/05/2016,SI,4687920,"1,599.75",HC100385,Alliance In Partnership,201702,Schools,Supplies & Services,
INSERTED DETAIL,25/05/2016,OI,3829704,698.00,HC100385,Alliance In Partnership,201702,Schools,Supplies & Services,
INSERTED DETAIL,25/05/2016,OI,3829738,901.12,HC100385,Alliance In Partnership,201702,Schools,Supplies & Services,
INSERTED DETAIL,25/05/2016,SI,4687900,"2,203.08",HC100385,Alliance In Partnership,201702,Schools,Supplies & Services,
INSERTED DETAIL,25/05/2016,SI,4687914,"2,498.73",HC100385,Alliance In Partnership,201702,Schools,Supplies & Services,
INSERTED DETAIL,26/05/2016,SI,4688260,715.00,HC100385,Alliance In Partnership,201702,Schools,Supplies & Services,
INSERTED DETAIL,01/06/2016,OI,3829705,"2,496.20",HC100385,Alliance In Partnership,201702,Schools,Supplies & Services,
INSERTED DETAIL,01/06/2016,SI,4688170,"1,456.60",HC100385,Alliance In Partnership,201702,Schools,Supplies & Services,
INSERTED DETAIL,11/05/2016,OI,3828883,"12,217.20",HC100493,George Youngs Coaches Ltd,201702,Environment and Place,Transport-Related Expenditure,
INSERTED DETAIL,06/05/2016,OI,3826385,"2,016.00",HC100495,REDACTED,201702,Environment and Place,Transport-Related Expenditure,
INSERTED DETAIL,11/05/2016,OI,3828640,"1,650.00",HC100495,REDACTED,201702,Environment and Place,Transport-Related Expenditure,
INSERTED DETAIL,11/05/2016,OI,3828642,"1,950.00",HC100495,REDACTED,201702,Environment and Place,Transport-Related Expenditure,
INSERTED DETAIL,11/05/2016,OI,3828643,"2,025.00",HC100495,REDACTED,201702,Environment and Place,Transport-Related Expenditure,
INSERTED DETAIL,11/05/2016,OI,3828644,"2,100.00",HC100495,REDACTED,201702,Environment and Place,Transport-Related Expenditure,
INSERTED DETAIL,11/05/2016,OI,3828668,"1,320.00",HC100495,REDACTED,201702,Environment and Place,Transport-Related Expenditure,
INSERTED DETAIL,11/05/2016,OI,3828677,"1,800.00",HC100495,REDACTED,201702,Environment and Place,Transport-Related Expenditure,
INSERTED DETAIL,13/05/2016,OI,3829237,"2,100.00",HC100495,REDACTED,201702,Environment and Place,Transport-Related Expenditure,
INSERTED DETAIL,13/05/2016,OI,3829238,427.50,HC100495,REDACTED,201702,Environment and Place,Transport-Related Expenditure,
INSERTED DETAIL,06/05/2016,OI,3826828,"1,050.00",HC100528,B & H Cars,201702,Learning Disabilities,Transport-Related Expenditure,
INSERTED DETAIL,25/05/2016,OI,3829875,"1,050.00",HC100528,B & H Cars,201702,Learning Disabilities,Transport-Related Expenditure,
INSERTED DETAIL,18/04/2016,SI,4687341,574.50,HC100626,Arnold Clark Finance Limited,201702,Adults Operations,Transport-Related Expenditure,
INSERTED DETAIL,19/04/2016,SI,4687340,642.93,HC100626,Arnold Clark Finance Limited,201702,Adults Operations,Transport-Related Expenditure,
INSERTED DETAIL,20/05/2016,SI,4687504,620.76,HC100626,Arnold Clark Finance Limited,201702,Adults Operations,Transport-Related Expenditure,
INSERTED DETAIL,11/05/2016,SI,4686063,"1,462.19",HC100626,Arnold Clark Finance Limited,201702,Safeguarding and Family Support,Transport-Related Expenditure,
INSERTED DETAIL,11/05/2016,OI,3826668,"2,538.32",HC100627,Jacobs UK Ltd,201702,Environment and Place,Supplies & Services,
INSERTED DETAIL,11/05/2016,OI,3828942,"6,886.55",HC100633,Arriva Trains Wales Ltd,201702,Environment and Place,Transport-Related Expenditure,
INSERTED DETAIL,11/05/2016,OI,3828943,"10,219.35",HC100633,Arriva Trains Wales Ltd,201702,Environment and Place,Transport-Related Expenditure,
INSERTED DETAIL,11/05/2016,OI,3828944,"9,048.15",HC100633,Arriva Trains Wales Ltd,201702,Environment and Place,Transport-Related Expenditure,
INSERTED DETAIL,11/05/2016,OI,3828945,"6,745.35",HC100633,Arriva Trains Wales Ltd,201702,Environment and Place,Transport-Related Expenditure,
INSERTED DETAIL,11/05/2016,OI,3828946,"3,998.15",HC100633,Arriva Trains Wales Ltd,201702,Environment and Place,Transport-Related Expenditure,
INSERTED DETAIL,11/05/2016,OI,3828947,"3,291.45",HC100633,Arriva Trains Wales Ltd,201702,Environment and Place,Transport-Related Expenditure,
INSERTED DETAIL,11/05/2016,OI,3828948,"8,837.65",HC100633,Arriva Trains Wales Ltd,201702,Environment and Place,Transport-Related Expenditure,
INSERTED DETAIL,11/05/2016,OI,3828949,"3,657.45",HC100633,Arriva Trains Wales Ltd,201702,Environment and Place,Transport-Related Expenditure,
INSERTED DETAIL,11/05/2016,OI,3828950,"4,662.45",HC100633,Arriva Trains Wales Ltd,201702,Environment and Place,Transport-Related Expenditure,
INSERTED DETAIL,11/05/2016,OI,3828951,"4,865.95",HC100633,Arriva Trains Wales Ltd,201702,Environment and Place,Transport-Related Expenditure,
INSERTED DETAIL,11/05/2016,OI,3828952,915.65,HC100633,Arriva Trains Wales Ltd,201702,Environment and Place,Transport-Related Expenditure,
INSERTED DETAIL,11/05/2016,OI,3828957,999.35,HC100633,Arriva Trains Wales Ltd,201702,Environment and Place,Transport-Related Expenditure,
INSERTED DETAIL,20/05/2016,OI,3829537,600.67,HC100656,Allstar Business Solutions Ltd (Arval),201702,Environment and Place,Transport-Related Expenditure,
INSERTED DETAIL,25/05/2016,OI,3829683,459.11,HC100656,Allstar Business Solutions Ltd (Arval),201702,Environment and Place,Transport-Related Expenditure,
INSERTED DETAIL,01/06/2016,OI,3830501,483.00,HC100656,Allstar Business Solutions Ltd (Arval),201702,Environment and Place,Transport-Related Expenditure,
INSERTED DETAIL,20/05/2016,GI,2109759,458.33,HC100677,Ashfield Park Primary School,201702,Central Childrens Directorate Costs,Support Services,
INSERTED DETAIL,20/05/2016,GI,2109760,458.33,HC100677,Ashfield Park Primary School,201702,Central Childrens Directorate Costs,Support Services,
INSERTED DETAIL,20/05/2016,GI,2110084,458.33,HC100677,Ashfield Park Primary School,201702,Central Childrens Directorate Costs,Support Services,
INSERTED DETAIL,20/05/2016,GI,2110189,649.00,HC100677,Ashfield Park Primary School,201702,Children & Young People Capital,Capital Income,
INSERTED DETAIL,25/05/2016,SI,4688114,836.00,HC100677,Ashfield Park Primary School,201702,Education and Commissioning,Transfer Payments,
INSERTED DETAIL,25/05/2016,SI,4688115,"1,000.00",HC100677,Ashfield Park Primary School,201702,Education and Commissioning,Transfer Payments,
INSERTED DETAIL,06/05/2016,OI,3828518,"1,300.00",HC100677,Ashfield Park Primary School,201702,Schools,Employees,
INSERTED DETAIL,13/05/2016,OI,3829036,"1,000.00",HC100677,Ashfield Park Primary School,201702,Schools,Employees,
INSERTED DETAIL,13/05/2016,OI,3829165,"1,000.00",HC100677,Ashfield Park Primary School,201702,Schools,Employees,
INSERTED DETAIL,13/05/2016,SI,4687590,"2,000.00",HC100677,Ashfield Park Primary School,201702,Schools,Supplies & Services,
INSERTED DETAIL,13/05/2016,SI,4687628,"1,534.00",HC100677,Ashfield Park Primary School,201702,Schools,Supplies & Services,
INSERTED DETAIL,13/05/2016,OI,3829271,"4,576.00",HC100728,Veolia Transport T/A Astons Coaches,201702,Environment and Place,Third Party Payments,
INSERTED DETAIL,25/05/2016,OI,3829891,523.96,HC100728,Veolia Transport T/A Astons Coaches,201702,Environment and Place,Third Party Payments,
INSERTED DETAIL,25/05/2016,OI,3829892,600.32,HC100728,Veolia Transport T/A Astons Coaches,201702,Environment and Place,Third Party Payments,
INSERTED DETAIL,01/06/2016,OI,3829900,"11,257.34",HC100728,Veolia Transport T/A Astons Coaches,201702,Environment and Place,Third Party Payments,
INSERTED DETAIL,11/05/2016,GI,2106260,454.67,HC100786,Aylestone School Imprest A/C,201702,Schools,Supplies & Services,
INSERTED DETAIL,11/05/2016,GI,2106261,"2,143.99",HC100786,Aylestone School Imprest A/C,201702,Schools,Supplies & Services,
INSERTED DETAIL,11/05/2016,GI,2106262,"2,337.76",HC100786,Aylestone School Imprest A/C,201702,Schools,Supplies & Services,
INSERTED DETAIL,11/05/2016,GI,2106263,"1,122.92",HC100786,Aylestone School Imprest A/C,201702,Schools,Supplies & Services,
INSERTED DETAIL,11/05/2016,SI,4687317,"2,376.00",HC100787,Aymestrey Parish Council,201702,Environment and Place,Third Party Payments,
INSERTED DETAIL,18/05/2016,SI,4687825,"2,382.00",HC100792,B & B Services Ltd,201702,Housing & Independent Living Capital,Capital Expenditure,
INSERTED DETAIL,01/06/2016,SI,4688313,"3,799.50",HC100792,B & B Services Ltd,201702,Housing & Independent Living Capital,Capital Expenditure,
INSERTED DETAIL,11/05/2016,SI,4687394,426.00,HC100870,Bargates Childrens Centre,201702,Education and Commissioning,Transfer Payments,
INSERTED DETAIL,11/05/2016,SI,4687319,"2,617.74",HC100888,Bartestree & Lugwardine G.P.C.,201702,Environment and Place,Third Party Payments,
INSERTED DETAIL,06/05/2016,OI,3827458,"1,845.00",HC100948,Bemrose Booth,201702,Environment and Place,Supplies & Services,
INSERTED DETAIL,25/05/2016,SI,4688163,"1,130.16",HC100969,Bertram Trading Ltd,201702,Communities,Supplies & Services,
INSERTED DETAIL,25/05/2016,SI,4688164,471.21,HC100969,Bertram Trading Ltd,201702,Communities,Supplies & Services,
INSERTED DETAIL,13/05/2016,SI,4687613,"1,495.00",HC100975,Besecure Protection Systems,201702,Schools,Premises-Related Expenditure,
INSERTED DETAIL,11/05/2016,SI,4687470,723.69,HC100976,Bespoke Cleaning Services,201702,Schools,Premises-Related Expenditure,
INSERTED DETAIL,11/05/2016,SI,4687497,"1,052.76",HC100976,Bespoke Cleaning Services,201702,Schools,Premises-Related Expenditure,
INSERTED DETAIL,13/05/2016,SI,4687615,"3,686.79",HC100976,Bespoke Cleaning Services,201702,Schools,Premises-Related Expenditure,
INSERTED DETAIL,25/05/2016,OI,3829722,988.74,HC100976,Bespoke Cleaning Services,201702,Schools,Premises-Related Expenditure,
INSERTED DETAIL,25/05/2016,SI,4688150,723.69,HC100976,Bespoke Cleaning Services,201702,Schools,Premises-Related Expenditure,
INSERTED DETAIL,20/05/2016,OI,3829593,508.14,HC101003,Bikold Ltd,201702,Schools,Supplies & Services,
INSERTED DETAIL,25/05/2016,OI,3829989,448.92,HC101003,Bikold Ltd,201702,Schools,Supplies & Services,
INSERTED DETAIL,25/05/2016,OI,3829992,590.19,HC101003,Bikold Ltd,201702,Schools,Supplies & Services,
INSERTED DETAIL,20/05/2016,GI,2109778,458.33,HC101027,Bishop Of Herefords Bluecoat School,201702,Central Childrens Directorate Costs,Support Services,
INSERTED DETAIL,20/05/2016,GI,2109780,458.33,HC101027,Bishop Of Herefords Bluecoat School,201702,Central Childrens Directorate Costs,Support Services,
INSERTED DETAIL,20/05/2016,GI,2109782,458.33,HC101027,Bishop Of Herefords Bluecoat School,201702,Central Childrens Directorate Costs,Support Services,
INSERTED DETAIL,20/05/2016,GI,2109784,458.33,HC101027,Bishop Of Herefords Bluecoat School,201702,Central Childrens Directorate Costs,Support Services,
INSERTED DETAIL,20/05/2016,GI,2109786,458.33,HC101027,Bishop Of Herefords Bluecoat School,201702,Central Childrens Directorate Costs,Support Services,
INSERTED DETAIL,20/05/2016,GI,2109898,458.33,HC101027,Bishop Of Herefords Bluecoat School,201702,Central Childrens Directorate Costs,Support Services,
INSERTED DETAIL,20/05/2016,GI,2109899,458.33,HC101027,Bishop Of Herefords Bluecoat School,201702,Central Childrens Directorate Costs,Support Services,
INSERTED DETAIL,20/05/2016,GI,2109901,458.33,HC101027,Bishop Of Herefords Bluecoat School,201702,Central Childrens Directorate Costs,Support Services,
INSERTED DETAIL,20/05/2016,GI,2109981,458.33,HC101027,Bishop Of Herefords Bluecoat School,201702,Central Childrens Directorate Costs,Support Services,
INSERTED DETAIL,20/05/2016,GI,2110003,458.33,HC101027,Bishop Of Herefords Bluecoat School,201702,Central Childrens Directorate Costs,Support Services,
INSERTED DETAIL,20/05/2016,GI,2110004,458.33,HC101027,Bishop Of Herefords Bluecoat School,201702,Central Childrens Directorate Costs,Support Services,
INSERTED DETAIL,20/05/2016,GI,2110062,458.33,HC101027,Bishop Of Herefords Bluecoat School,201702,Central Childrens Directorate Costs,Support Services,
INSERTED DETAIL,20/05/2016,GI,2110132,458.33,HC101027,Bishop Of Herefords Bluecoat School,201702,Central Childrens Directorate Costs,Support Services,
INSERTED DETAIL,20/05/2016,GI,2110157,916.66,HC101027,Bishop Of Herefords Bluecoat School,201702,Central Childrens Directorate Costs,Support Services,
INSERTED DETAIL,11/05/2016,SI,4687395,"2,090.00",HC101037,Bizzie Lizzies,201702,Education and Commissioning,Transfer Payments,
INSERTED DETAIL,06/05/2016,OI,3826432,468.00,HC101060,Blue Line Taxis,201702,Environment and Place,Transport-Related Expenditure,
INSERTED DETAIL,06/05/2016,OI,3826458,900.00,HC101060,Blue Line Taxis,201702,Environment and Place,Transport-Related Expenditure,
INSERTED DETAIL,06/05/2016,OI,3826589,"2,880.00",HC101060,Blue Line Taxis,201702,Environment and Place,Transport-Related Expenditure,
INSERTED DETAIL,01/06/2016,OI,3830533,830.00,HC101069,Bluewave International Ltd,201702,Schools,Support Services,
INSERTED DETAIL,11/05/2016,OI,3829044,780.00,HC101101,Bookpoint Ltd,201702,Schools,Supplies & Services,
INSERTED DETAIL,04/05/2016,SI,4687165,"1,194.64",HC101123,Boss,201702,Schools,Supplies & Services,
INSERTED DETAIL,13/05/2016,SI,4687616,"1,182.65",HC101123,Boss,201702,Schools,Supplies & Services,
INSERTED DETAIL,20/05/2016,SI,4687946,523.26,HC101123,Boss,201702,Schools,Supplies & Services,
INSERTED DETAIL,25/05/2016,SI,4688081,960.30,HC101123,Boss,201702,Schools,Supplies & Services,
INSERTED DETAIL,01/06/2016,OI,3830099,529.60,HC101123,Boss,201702,Schools,Supplies & Services,
INSERTED DETAIL,20/05/2016,OI,3829359,788.21,HC101126,Bowyer's Coaches,201702,Environment and Place,Third Party Payments,
INSERTED DETAIL,11/05/2016,OI,3828956,"1,500.00",HC101126,Bowyer's Coaches,201702,Environment and Place,Transport-Related Expenditure,
INSERTED DETAIL,31/03/2016,SI,4688287,860.00,HC101142,Brampton Abbotts & Foy G.P.C.,201702,Environment and Place,Third Party Payments,
INSERTED DETAIL,26/05/2016,SI,4688173,860.00,HC101142,Brampton Abbotts & Foy G.P.C.,201702,Environment and Place,Third Party Payments,
INSERTED DETAIL,26/05/2016,SI,4688175,594.00,HC101142,Brampton Abbotts & Foy G.P.C.,201702,Environment and Place,Third Party Payments,
INSERTED DETAIL,25/05/2016,GI,2110539,489.08,HC101143,Brampton Abbotts CE School Imprest,201702,Schools,Supplies & Services,
INSERTED DETAIL,01/06/2016,OI,3830613,"1,830.78",HC101222,British Gas Business,201702,Schools,Premises-Related Expenditure,
INSERTED DETAIL,11/05/2016,SI,4687393,630.00,HC101255,Brockhampton  Pre School,201702,Education and Commissioning,Transfer Payments,
INSERTED DETAIL,06/05/2016,SI,4687286,472.00,HC101258,Brockhampton with Much Fawley Parish Council,201702,Environment and Place,Third Party Payments,
INSERTED DETAIL,26/05/2016,SI,4688073,"1,660.00",HC101266,Bromyard & Winslow Town Council,201702,Environment and Place,Third Party Payments,
INSERTED DETAIL,18/05/2016,OI,3829252,"2,116.00",HC101309,Buchanans Coaches,201702,Environment and Place,Transport-Related Expenditure,
INSERTED DETAIL,18/05/2016,OI,3829253,"3,000.00",HC101309,Buchanans Coaches,201702,Environment and Place,Transport-Related Expenditure,
INSERTED DETAIL,11/05/2016,SI,4687397,"1,045.00",HC101340,Burley Gate Pre-School,201702,Education and Commissioning,Transfer Payments,
INSERTED DETAIL,06/05/2016,SI,4687277,"1,297.00",HC101351,Busy Bees @ LPS,201702,Education and Commissioning,Transfer Payments,
INSERTED DETAIL,11/05/2016,SI,4687398,"1,045.00",HC101353,Busy Bees Pre School (Clifford),201702,Education and Commissioning,Transfer Payments,
INSERTED DETAIL,01/06/2016,OI,3830183,"1,260.00",HC101361,REDACTED,201702,Schools,Supplies & Services,
INSERTED DETAIL,04/05/2016,SI,4687089,800.00,HC101369,REDACTED,201702,Education and Commissioning,Supplies & Services,
INSERTED DETAIL,26/05/2016,SI,4688221,800.00,HC101369,REDACTED,201702,Education and Commissioning,Supplies & Services,
INSERTED DETAIL,26/05/2016,SI,4688222,800.00,HC101369,REDACTED,201702,Education and Commissioning,Supplies & Services,
INSERTED DETAIL,16/05/2016,OI,3828491,505.56,HC101377,Booker Cash & Carry (Direct Debit),201702,Schools,Supplies & Services,
INSERTED DETAIL,03/06/2016,GI,2108605,"1,739.03",HC101379,Ross Country Cars (Standing Order),201702,Environment and Place,Supplies & Services,
INSERTED DETAIL,03/06/2016,GI,2108603,666.55,HC101381,Hay & District Dial a Ride,201702,Environment and Place,Supplies & Services,
INSERTED DETAIL,23/05/2016,SI,4687178,"5,754.03",HC101387,Allpay Ltd  (Direct Debit only),201702,Resources,Supplies & Services,
INSERTED DETAIL,25/05/2016,SI,4688087,460.29,HC101403,Jelly James Publishing Ltd,201702,Schools,Supplies & Services,
INSERTED DETAIL,11/05/2016,OI,3828796,"1,642.42",HC101440,Callow Fuels,201702,Schools,Premises-Related Expenditure,
INSERTED DETAIL,04/05/2016,OI,3828236,597.72,HC101442,Callow Marsh Ltd,201702,Environment and Place,Transport-Related Expenditure,
INSERTED DETAIL,04/05/2016,OI,3828238,597.72,HC101442,Callow Marsh Ltd,201702,Environment and Place,Transport-Related Expenditure,
INSERTED DETAIL,04/05/2016,OI,3828239,572.16,HC101442,Callow Marsh Ltd,201702,Environment and Place,Transport-Related Expenditure,
INSERTED DETAIL,17/05/2016,OI,3828359,"63,410.30",HC101472,Capita Business Services Ltd,201702,Resources,Supplies & Services,
INSERTED DETAIL,04/05/2016,SI,4687094,"1,995.00",HC101472,Capita Business Services Ltd,201702,Schools,Supplies & Services,
INSERTED DETAIL,01/06/2016,OI,3830177,489.27,HC101553,Cartridge Save Ltd,201702,Schools,Supplies & Services,
INSERTED DETAIL,26/05/2016,OI,3830095,686.64,HC101556,Cartridge World (Hereford) Ltd,201702,Schools,Supplies & Services,
INSERTED DETAIL,13/05/2016,OI,3828839,787.00,HC101648,CF Roberts (Electrical Contractors) Plc,201702,Schools,Premises-Related Expenditure,
INSERTED DETAIL,13/05/2016,SI,4687712,"1,196.73",HC101648,CF Roberts (Electrical Contractors) Plc,201702,Schools,Premises-Related Expenditure,
INSERTED DETAIL,04/05/2016,OI,3828369,"3,023.25",HC101724,Vodafone (Cable & Wireless),201702,Resources,Supplies & Services,
INSERTED DETAIL,18/05/2016,OI,3829016,480.00,HC101789,Chartered Institute of Environmental Health,201702,Environment and Place,Supplies & Services,
INSERTED DETAIL,11/05/2016,OI,3829066,421.70,HC101856,Cleanmy Ltd,201702,Schools,Premises-Related Expenditure,
INSERTED DETAIL,18/05/2016,SI,4687766,520.44,HC101861,Clearview Cleaning Services,201702,Schools,Premises-Related Expenditure,
INSERTED DETAIL,20/05/2016,OI,3829466,561.75,HC101878,Climb On Bikes,201702,Holding Codes,Holding Codes,
INSERTED DETAIL,04/05/2016,SI,4687092,"2,400.00",HC101900,Results Squared Ltd,201702,Schools,Supplies & Services,
INSERTED DETAIL,26/05/2016,OI,3829710,"1,144.08",HC101929,Lea Village Hall,201702,Schools,Premises-Related Expenditure,
INSERTED DETAIL,11/05/2016,OI,3828953,712.80,HC101969,CVA Ledbury & District,201702,Environment and Place,Transport-Related Expenditure,
INSERTED DETAIL,11/05/2016,OI,3828955,"1,306.20",HC101969,CVA Ledbury & District,201702,Environment and Place,Transport-Related Expenditure,
INSERTED DETAIL,04/05/2016,SI,4687129,"1,529.00",HC101975,Complete Security & Fire Protection Ltd,201702,Schools,Supplies & Services,
INSERTED DETAIL,25/05/2016,SI,4688084,"1,573.00",HC101975,Complete Security & Fire Protection Ltd,201702,Schools,Supplies & Services,
INSERTED DETAIL,18/05/2016,SI,4687773,"1,995.00",HC102087,Create Development Ltd,201702,Schools,Employees,
INSERTED DETAIL,11/05/2016,SI,4687400,"1,045.00",HC102141,Cut & Paste Childcare,201702,Education and Commissioning,Transfer Payments,
INSERTED DETAIL,06/05/2016,OI,3828590,"80,478.50",HC102151,2Gether NHS Foundation Trust,201702,Commissioning Adults,Third Party Payments,
INSERTED DETAIL,13/05/2016,OI,3829179,"80,478.50",HC102151,2Gether NHS Foundation Trust,201702,Commissioning Adults,Third Party Payments,
INSERTED DETAIL,20/05/2016,GI,2109937,458.33,HC102152,Ashperton Primary Academy,201702,Central Childrens Directorate Costs,Support Services,
INSERTED DETAIL,20/05/2016,GI,2110017,458.33,HC102152,Ashperton Primary Academy,201702,Central Childrens Directorate Costs,Support Services,
INSERTED DETAIL,20/05/2016,GI,2110155,488.89,HC102152,Ashperton Primary Academy,201702,Central Childrens Directorate Costs,Support Services,
INSERTED DETAIL,20/05/2016,GI,2110156,488.89,HC102152,Ashperton Primary Academy,201702,Central Childrens Directorate Costs,Support Services,
INSERTED DETAIL,26/05/2016,OI,3830003,455.00,HC102156,D & D Network Services Ltd,201702,Schools,Supplies & Services,
INSERTED DETAIL,26/05/2016,OI,3830148,746.00,HC102156,D & D Network Services Ltd,201702,Schools,Supplies & Services,
INSERTED DETAIL,01/06/2016,OI,3830346,"2,032.00",HC102156,D & D Network Services Ltd,201702,Schools,Supplies & Services,
INSERTED DETAIL,01/06/2016,OI,3830509,"4,116.20",HC102156,D & D Network Services Ltd,201702,Schools,Supplies & Services,
INSERTED DETAIL,18/05/2016,OI,3829396,"4,506.00",HC102156,D & D Network Services Ltd,201702,Schools,Support Services,
INSERTED DETAIL,20/05/2016,GI,2109957,458.33,HC102183,Herefordshire Marches Federation-Kings Caple,201702,Central Childrens Directorate Costs,Support Services,
INSERTED DETAIL,11/05/2016,OI,3828822,"4,310.00",HC102354,Ledbury Rugby Football Club Ltd,201702,Resources,Supplies & Services,
INSERTED DETAIL,06/05/2016,SI,4687190,541.00,HC102362,Dell Corporation Ltd,201702,Schools,Supplies & Services,
INSERTED DETAIL,20/05/2016,GI,2109626,868.80,HC102369,Madley Primary School Imprest A/C,201702,Schools,Supplies & Services,
INSERTED DETAIL,06/05/2016,SI,4687243,"4,515.00",HC102416,Neopost Ltd,201702,Resources,Supplies & Services,
INSERTED DETAIL,01/06/2016,OI,3830540,"1,111.86",HC102444,Falcon Document Solutions Limited,201702,Schools,Supplies & Services,
INSERTED DETAIL,11/05/2016,SI,4687401,"2,263.00",HC102462,Dolly Mixtures Pre School,201702,Education and Commissioning,Transfer Payments,
INSERTED DETAIL,03/06/2016,GI,2108602,"1,517.32",HC102478,Dore Community Transport,201702,Environment and Place,Supplies & Services,
INSERTED DETAIL,13/05/2016,SI,4687553,"1,151.75",HC102482,Dormington & Mordiford G.P.C.,201702,Environment and Place,Third Party Payments,
INSERTED DETAIL,20/05/2016,GI,2110064,458.33,HC102524,Brockhampton Primary School (Academy),201702,Central Childrens Directorate Costs,Support Services,
INSERTED DETAIL,06/05/2016,OI,3828706,"23,504.75",HC102595,DRM (Bromyard) Ltd,201702,Environment and Place,Transport-Related Expenditure,
INSERTED DETAIL,20/05/2016,OI,3829462,"2,175.00",HC102613,Dukes Travel Ltd,201702,Environment and Place,Transport-Related Expenditure,
INSERTED DETAIL,20/05/2016,OI,3829463,"1,200.01",HC102613,Dukes Travel Ltd,201702,Environment and Place,Transport-Related Expenditure,
INSERTED DETAIL,01/06/2016,OI,3830659,"4,230.00",HC102694,Eastnor Castle Estates Company,201702,Education and Commissioning,Premises-Related Expenditure,
INSERTED DETAIL,18/05/2016,SI,4687739,462.00,HC102700,Eaton Bishop Parish Council,201702,Environment and Place,Third Party Payments,
INSERTED DETAIL,01/06/2016,OI,3830117,"1,107.41",HC102702,Ebuyer (Uk) Ltd,201702,Schools,Supplies & Services,
INSERTED DETAIL,18/05/2016,OI,3829147,960.00,HC102728,Education City Ltd,201702,Schools,Supplies & Services,
INSERTED DETAIL,01/06/2016,OI,3830298,"9,363.88",HC102736,Kidwells Law Solicitors Ltd,201702,Environment and Place,Supplies & Services,
INSERTED DETAIL,13/05/2016,OI,3829018,"1,750.00",HC102749,Edutech Solutions Ltd,201702,Schools,Supplies & Services,
INSERTED DETAIL,13/05/2016,OI,3829019,692.54,HC102749,Edutech Solutions Ltd,201702,Schools,Supplies & Services,
INSERTED DETAIL,18/05/2016,OI,3829375,"3,692.00",HC102749,Edutech Solutions Ltd,201702,Schools,Supplies & Services,
INSERTED DETAIL,20/05/2016,OI,3829551,"2,346.77",HC102749,Edutech Solutions Ltd,201702,Schools,Supplies & Services,
INSERTED DETAIL,20/05/2016,SI,4687955,"2,647.27",HC102749,Edutech Solutions Ltd,201702,Schools,Supplies & Services,
INSERTED DETAIL,25/05/2016,SI,4688139,"2,538.88",HC102749,Edutech Solutions Ltd,201702,Schools,Supplies & Services,
INSERTED DETAIL,26/05/2016,OI,3830023,"2,128.00",HC102749,Edutech Solutions Ltd,201702,Schools,Supplies & Services,
INSERTED DETAIL,01/06/2016,OI,3830574,"2,600.82",HC102749,Edutech Solutions Ltd,201702,Schools,Supplies & Services,
INSERTED DETAIL,18/05/2016,OI,3829393,"3,800.88",HC102749,Edutech Solutions Ltd,201702,Schools,Support Services,
INSERTED DETAIL,18/05/2016,OI,3829394,"1,940.50",HC102749,Edutech Solutions Ltd,201702,Schools,Support Services,
INSERTED DETAIL,11/05/2016,SI,4687362,"5,449.82",HC102778,Zurich Municipal,201702,Schools,Premises-Related Expenditure,
INSERTED DETAIL,11/05/2016,OI,3828467,"5,008.00",HC102778,Zurich Municipal,201702,Schools,Supplies & Services,
INSERTED DETAIL,06/05/2016,OI,3828436,995.00,HC102799,Ludlow & District RDA,201702,Schools,Supplies & Services,
INSERTED DETAIL,01/06/2016,OI,3830538,"4,820.00",HC102816,The National Trust,201702,Schools,Supplies & Services,
INSERTED DETAIL,01/06/2016,OI,3830473,605.00,HC102825,Elklan,201702,Education and Commissioning,Supplies & Services,
INSERTED DETAIL,26/05/2016,OI,3829851,"2,157.20",HC102908,Environmental Management Solutions Ltd,201702,Growth Capital,Capital Expenditure,
INSERTED DETAIL,11/05/2016,OI,3828881,735.00,HC102941,Discovery Education Europe Ltd,201702,Schools,Supplies & Services,
INSERTED DETAIL,01/06/2016,OI,3830238,"1,869.65",HC102941,Discovery Education Europe Ltd,201702,Schools,Supplies & Services,
INSERTED DETAIL,11/05/2016,OI,3828799,500.00,HC102949,Eteach.Com,201702,Schools,Employees,
INSERTED DETAIL,06/05/2016,SI,4687302,"4,165.00",HC102990,Ewyas Harold Group Parish Council,201702,Environment and Place,Third Party Payments,
INSERTED DETAIL,01/06/2016,OI,3830244,700.00,HC103030,Falconry Services,201702,Environment and Place,Premises-Related Expenditure,
INSERTED DETAIL,25/05/2016,OI,3829682,"331,447.45",HC103144,Fcc Environment Services (uk) Ltd,201702,Environment and Place,Third Party Payments,
INSERTED DETAIL,20/05/2016,SI,4687896,805.00,HC103165,Forensics Ltd,201702,Communities,Supplies & Services,
INSERTED DETAIL,06/05/2016,SI,4687276,630.00,HC103201,Wyeside Day Nursery,201702,Education and Commissioning,Transfer Payments,
INSERTED DETAIL,25/05/2016,SI,4688118,426.00,HC103201,Wyeside Day Nursery,201702,Education and Commissioning,Transfer Payments,
INSERTED DETAIL,04/05/2016,OI,3826367,544.00,HC103243,Frome Private Hire Cars,201702,Environment and Place,Transport-Related Expenditure,
INSERTED DETAIL,11/05/2016,OI,3828714,"1,321.00",HC103243,Frome Private Hire Cars,201702,Environment and Place,Transport-Related Expenditure,
INSERTED DETAIL,04/05/2016,SI,4687095,"1,109.23",HC103249,Full House Furniture & Recycling Service Ltd,201702,Environment and Place,Third Party Payments,
INSERTED DETAIL,25/05/2016,OI,3829996,"1,230.64",HC103263,Future Industrial Services Ltd,201702,Environment and Place,Third Party Payments,
INSERTED DETAIL,06/05/2016,OI,3828556,504.81,HC103355,Ge Capital Equipment Finance Ltd,201702,Schools,Supplies & Services,
INSERTED DETAIL,01/06/2016,OI,3830488,"1,066.00",HC103461,Gloucestershire County Council,201702,Education and Commissioning,Support Services,
INSERTED DETAIL,11/05/2016,SI,4687402,547.00,HC103492,Golden Valley Pre School,201702,Education and Commissioning,Transfer Payments,
INSERTED DETAIL,13/05/2016,OI,3829039,"2,451.80",HC103508,Goodrich School Meals Ass.,201702,Schools,Supplies & Services,
INSERTED DETAIL,04/05/2016,OI,3828380,590.90,HC103621,H & H Motors,201702,Environment and Place,Third Party Payments,
INSERTED DETAIL,06/05/2016,OI,3828684,"2,385.01",HC103621,H & H Motors,201702,Environment and Place,Transport-Related Expenditure,
INSERTED DETAIL,11/05/2016,OI,3828679,"1,625.00",HC103621,H & H Motors,201702,Environment and Place,Transport-Related Expenditure,
INSERTED DETAIL,11/05/2016,OI,3828680,"2,340.00",HC103621,H & H Motors,201702,Environment and Place,Transport-Related Expenditure,
INSERTED DETAIL,18/05/2016,OI,3828876,595.00,HC103621,H & H Motors,201702,Schools,Transport-Related Expenditure,
INSERTED DETAIL,18/05/2016,OI,3829416,"5,000.00",HC103660,Halo Leisure Services Ltd,201702,Communities,Supplies & Services,
INSERTED DETAIL,01/06/2016,OI,3830353,"2,043.25",HC103660,Halo Leisure Services Ltd,201702,Communities,Third Party Payments,
INSERTED DETAIL,04/05/2016,OI,3828402,642.00,HC103660,Halo Leisure Services Ltd,201702,Schools,Premises-Related Expenditure,
INSERTED DETAIL,04/05/2016,SI,4687136,510.00,HC103660,Halo Leisure Services Ltd,201702,Schools,Premises-Related Expenditure,
INSERTED DETAIL,06/05/2016,OI,3828549,663.00,HC103660,Halo Leisure Services Ltd,201702,Schools,Premises-Related Expenditure,
INSERTED DETAIL,06/05/2016,OI,3828568,"2,728.50",HC103660,Halo Leisure Services Ltd,201702,Schools,Premises-Related Expenditure,
INSERTED DETAIL,13/05/2016,OI,3829143,"1,188.00",HC103660,Halo Leisure Services Ltd,201702,Schools,Premises-Related Expenditure,
INSERTED DETAIL,18/05/2016,OI,3828877,695.50,HC103660,Halo Leisure Services Ltd,201702,Schools,Premises-Related Expenditure,
INSERTED DETAIL,20/05/2016,OI,3829498,425.00,HC103660,Halo Leisure Services Ltd,201702,Schools,Premises-Related Expenditure,
INSERTED DETAIL,25/05/2016,OI,3829824,612.00,HC103660,Halo Leisure Services Ltd,201702,Schools,Premises-Related Expenditure,
INSERTED DETAIL,01/06/2016,OI,3830561,695.50,HC103660,Halo Leisure Services Ltd,201702,Schools,Premises-Related Expenditure,
INSERTED DETAIL,04/05/2016,SI,4687138,"1,185.00",HC103660,Halo Leisure Services Ltd,201702,Schools,Supplies & Services,
INSERTED DETAIL,04/05/2016,GI,2104609,430.88,HC103672,Hampton Dene Primary Imprest A/C,201702,Schools,Supplies & Services,
INSERTED DETAIL,01/06/2016,OI,3830290,759.00,HC103731,Haymarket Business Media,201702,Environment and Place,Employees,
INSERTED DETAIL,06/05/2016,OI,3828634,"10,823.00",HC103827,Herdman Coaches Ltd,201702,Environment and Place,Transport-Related Expenditure,
INSERTED DETAIL,18/05/2016,OI,3828921,500.00,HC103847,Hereford Cathedral Perpetual Trust (HCPT),201702,Communities,Supplies & Services,
INSERTED DETAIL,20/05/2016,GI,2110129,447.92,HC103854,Hereford College Of Arts,201702,Central Childrens Directorate Costs,Support Services,
INSERTED DETAIL,11/05/2016,SI,4687327,"196,308.92",HC103869,Wye Valley NHS Trust,201702,Public Health,Third Party Payments,
INSERTED DETAIL,03/06/2016,GI,2108607,"42,796.00",HC103869,Wye Valley NHS Trust,201702,Public Health,Third Party Payments,
INSERTED DETAIL,11/05/2016,OI,3828932,"2,480.00",HC103869,Wye Valley NHS Trust,201702,Resources,Third Party Payments,
INSERTED DETAIL,04/05/2016,OI,3828413,"2,125.00",HC103888,Hereford Pedicabs Ltd,201702,Communities,Supplies & Services,
INSERTED DETAIL,06/05/2016,OI,3828596,"68,750.00",HC103929,Herefordshire Carers Support Ltd,201702,Commissioning Adults,Supplies & Services,
INSERTED DETAIL,20/05/2016,GI,2110034,"1,676.68",HC103935,Herefordshire & Ludlow College,201702,Central Childrens Directorate Costs,Support Services,
INSERTED DETAIL,20/05/2016,GI,2110035,950.00,HC103935,Herefordshire & Ludlow College,201702,Central Childrens Directorate Costs,Support Services,
INSERTED DETAIL,20/05/2016,GI,2110036,"3,700.00",HC103935,Herefordshire & Ludlow College,201702,Central Childrens Directorate Costs,Support Services,
INSERTED DETAIL,20/05/2016,GI,2110037,"3,108.33",HC103935,Herefordshire & Ludlow College,201702,Central Childrens Directorate Costs,Support Services,
INSERTED DETAIL,20/05/2016,GI,2110038,"3,266.67",HC103935,Herefordshire & Ludlow College,201702,Central Childrens Directorate Costs,Support Services,
INSERTED DETAIL,20/05/2016,GI,2110040,"3,108.33",HC103935,Herefordshire & Ludlow College,201702,Central Childrens Directorate Costs,Support Services,
INSERTED DETAIL,20/05/2016,GI,2110041,"3,266.67",HC103935,Herefordshire & Ludlow College,201702,Central Childrens Directorate Costs,Support Services,
INSERTED DETAIL,20/05/2016,GI,2110042,447.92,HC103935,Herefordshire & Ludlow College,201702,Central Childrens Directorate Costs,Support Services,
INSERTED DETAIL,20/05/2016,GI,2110043,"3,266.67",HC103935,Herefordshire & Ludlow College,201702,Central Childrens Directorate Costs,Support Services,
INSERTED DETAIL,20/05/2016,GI,2110044,"3,447.92",HC103935,Herefordshire & Ludlow College,201702,Central Childrens Directorate Costs,Support Services,
INSERTED DETAIL,20/05/2016,GI,2110075,"3,447.92",HC103935,Herefordshire & Ludlow College,201702,Central Childrens Directorate Costs,Support Services,
INSERTED DETAIL,25/05/2016,OI,3829525,"1,630.00",HC103935,Herefordshire & Ludlow College,201702,Education and Commissioning,Supplies & Services,
INSERTED DETAIL,04/05/2016,OI,3827975,900.00,HC103952,Herefordshire Group Training Assoc Ltd,201702,Environment and Place,Premises-Related Expenditure,
INSERTED DETAIL,20/05/2016,OI,3829638,"20,000.00",HC103952,Herefordshire Group Training Assoc Ltd,201702,Resources,Premises-Related Expenditure,
INSERTED DETAIL,01/06/2016,OI,3830621,"7,272.00",HC103954,Herefordshire Headway,201702,Commissioning Adults,Supplies & Services,
INSERTED DETAIL,01/06/2016,OI,3830231,"6,468.00",HC103954,Herefordshire Headway,201702,Education and Commissioning,Supplies & Services,
INSERTED DETAIL,06/05/2016,OI,3828593,"35,000.00",HC103959,Herefordshire Housing Ltd,201702,Commissioning Adults,Third Party Payments,
INSERTED DETAIL,17/05/2016,SI,4687856,"5,000.00",HC103959,Herefordshire Housing Ltd,201702,Housing & Independent Living Capital,Capital Expenditure,
INSERTED DETAIL,18/05/2016,SI,4687857,"30,000.00",HC103959,Herefordshire Housing Ltd,201702,Housing & Independent Living Capital,Capital Expenditure,
INSERTED DETAIL,18/05/2016,SI,4687881,"50,000.00",HC103959,Herefordshire Housing Ltd,201702,Housing & Independent Living Capital,Capital Expenditure,
INSERTED DETAIL,25/05/2016,OI,3827335,480.89,HC103959,Herefordshire Housing Ltd,201702,Schools,Premises-Related Expenditure,
INSERTED DETAIL,06/05/2016,OI,3828589,"36,000.00",HC103982,HVOSS,201702,Commissioning Adults,Third Party Payments,
INSERTED DETAIL,03/06/2016,GI,2108604,"3,128.72",HC103982,HVOSS,201702,Environment and Place,Supplies & Services,
INSERTED DETAIL,06/05/2016,OI,3826898,634.10,HC103982,HVOSS,201702,Learning Disabilities,Transport-Related Expenditure,
INSERTED DETAIL,25/05/2016,SI,4688086,968.98,HC104018,Highground Maintenance Limited,201702,Schools,Premises-Related Expenditure,
INSERTED DETAIL,01/06/2016,OI,3830118,658.57,HC104018,Highground Maintenance Limited,201702,Schools,Premises-Related Expenditure,
INSERTED DETAIL,11/05/2016,SI,4687404,836.00,HC104019,Highmore Hedgehogs Preschool,201702,Education and Commissioning,Transfer Payments,
INSERTED DETAIL,26/05/2016,SI,4688130,"4,614.00",HC104055,HM Courts & Tribunals Service,201702,Resources,Supplies & Services,
INSERTED DETAIL,13/05/2016,SI,4687554,660.00,HC104099,Hope Mansell Parish Council,201702,Environment and Place,Third Party Payments,
INSERTED DETAIL,13/05/2016,SI,4687538,444.00,HC104102,Hope Under Dinmore G P C,201702,Environment and Place,Third Party Payments,
INSERTED DETAIL,13/05/2016,SI,4687541,419.70,HC104102,Hope Under Dinmore G P C,201702,Environment and Place,Third Party Payments,
INSERTED DETAIL,06/05/2016,SI,4687306,708.00,HC104118,How Caple Sollershope & Yatton Gpc,201702,Environment and Place,Third Party Payments,
INSERTED DETAIL,06/05/2016,SI,4687313,708.00,HC104118,How Caple Sollershope & Yatton Gpc,201702,Environment and Place,Third Party Payments,
INSERTED DETAIL,06/05/2016,SI,4687314,649.00,HC104118,How Caple Sollershope & Yatton Gpc,201702,Environment and Place,Third Party Payments,
INSERTED DETAIL,11/05/2016,SI,4687405,905.00,HC104145,Hunderton Neighbourhood Nursery,201702,Education and Commissioning,Transfer Payments,
INSERTED DETAIL,11/05/2016,OI,3828676,"1,689.75",HC104165,I & S Coaches,201702,Environment and Place,Transport-Related Expenditure,
INSERTED DETAIL,11/05/2016,OI,3828780,"4,608.00",HC104194,IDN Supplies Ltd,201702,Schools,Supplies & Services,
INSERTED DETAIL,01/06/2016,OI,3830122,469.30,HC104194,IDN Supplies Ltd,201702,Schools,Supplies & Services,
INSERTED DETAIL,01/06/2016,OI,3830426,"5,207.84",HC104284,Insight Direct (UK) Ltd,201702,Education and Commissioning,Supplies & Services,
INSERTED DETAIL,26/05/2016,OI,3829999,710.00,HC104284,Insight Direct (UK) Ltd,201702,Environment and Place,Supplies & Services,
INSERTED DETAIL,01/06/2016,OI,3830425,650.98,HC104284,Insight Direct (UK) Ltd,201702,Environment and Place,Supplies & Services,
INSERTED DETAIL,01/06/2016,OI,3830411,797.89,HC104284,Insight Direct (UK) Ltd,201702,Transformation and safeguarding,Supplies & Services,
INSERTED DETAIL,13/05/2016,SI,4687559,"227,783.25",HC104323,Integral UK Ltd,201702,Holding Codes,Holding Codes,
INSERTED DETAIL,04/05/2016,OI,3828340,"1,216.60",HC104352,J P Catering,201702,Schools,Supplies & Services,
INSERTED DETAIL,06/05/2016,SI,4687180,629.20,HC104352,J P Catering,201702,Schools,Supplies & Services,
INSERTED DETAIL,11/05/2016,OI,3828753,690.00,HC104352,J P Catering,201702,Schools,Supplies & Services,
INSERTED DETAIL,13/05/2016,OI,3828893,957.00,HC104352,J P Catering,201702,Schools,Supplies & Services,
INSERTED DETAIL,18/05/2016,OI,3829348,"1,335.40",HC104352,J P Catering,201702,Schools,Supplies & Services,
INSERTED DETAIL,20/05/2016,OI,3829643,"1,166.00",HC104352,J P Catering,201702,Schools,Supplies & Services,
INSERTED DETAIL,11/05/2016,SI,4687407,630.00,HC104377,Ivington Pre-School,201702,Education and Commissioning,Transfer Payments,
INSERTED DETAIL,20/05/2016,OI,3829451,676.79,HC104438,Marches Counselling Service,201702,Public Health,Transfer Payments,
INSERTED DETAIL,18/05/2016,OI,3828581,"4,250.00",HC104591,Robert West Consulting Ltd,201702,Growth,Supplies & Services,
INSERTED DETAIL,26/05/2016,OI,3829914,"1,250.00",HC104591,Robert West Consulting Ltd,201702,Growth,Supplies & Services,
INSERTED DETAIL,06/05/2016,OI,3828672,"9,240.00",HC104674,JMC Monmouth Ltd,201702,Environment and Place,Transport-Related Expenditure,
INSERTED DETAIL,11/05/2016,OI,3828669,"2,565.00",HC104674,JMC Monmouth Ltd,201702,Environment and Place,Transport-Related Expenditure,
INSERTED DETAIL,11/05/2016,OI,3828670,"1,425.00",HC104674,JMC Monmouth Ltd,201702,Environment and Place,Transport-Related Expenditure,
INSERTED DETAIL,11/05/2016,OI,3828671,"2,100.00",HC104674,JMC Monmouth Ltd,201702,Environment and Place,Transport-Related Expenditure,
INSERTED DETAIL,11/05/2016,OI,3828673,"1,800.00",HC104674,JMC Monmouth Ltd,201702,Environment and Place,Transport-Related Expenditure,
INSERTED DETAIL,11/05/2016,OI,3828674,750.00,HC104674,JMC Monmouth Ltd,201702,Environment and Place,Transport-Related Expenditure,
INSERTED DETAIL,06/05/2016,OI,3826829,"1,415.34",HC104674,JMC Monmouth Ltd,201702,Learning Disabilities,Transport-Related Expenditure,
INSERTED DETAIL,20/05/2016,OI,3829471,"1,985.00",HC104674,JMC Monmouth Ltd,201702,Learning Disabilities,Transport-Related Expenditure,
INSERTED DETAIL,20/05/2016,OI,3829472,"1,258.08",HC104674,JMC Monmouth Ltd,201702,Learning Disabilities,Transport-Related Expenditure,
INSERTED DETAIL,13/05/2016,OI,3829240,"1,330.00",HC104676,JMP Consultants Ltd,201702,Environment and Place,Third Party Payments,
INSERTED DETAIL,06/05/2016,SI,4687257,"4,495.25",HC104726,J & W Kostorz Ltd,201702,Housing & Independent Living Capital,Capital Expenditure,
INSERTED DETAIL,25/05/2016,SI,4688041,"2,400.00",HC104726,J & W Kostorz Ltd,201702,Housing & Independent Living Capital,Capital Expenditure,
INSERTED DETAIL,20/05/2016,GI,2109774,458.33,HC104727,John Kyrle High School,201702,Central Childrens Directorate Costs,Support Services,
INSERTED DETAIL,20/05/2016,GI,2109775,458.33,HC104727,John Kyrle High School,201702,Central Childrens Directorate Costs,Support Services,
INSERTED DETAIL,20/05/2016,GI,2110091,719.17,HC104727,John Kyrle High School,201702,Central Childrens Directorate Costs,Support Services,
INSERTED DETAIL,20/05/2016,GI,2110092,458.33,HC104727,John Kyrle High School,201702,Central Childrens Directorate Costs,Support Services,
INSERTED DETAIL,20/05/2016,GI,2110123,458.33,HC104727,John Kyrle High School,201702,Central Childrens Directorate Costs,Support Services,
INSERTED DETAIL,20/05/2016,GI,2109895,458.33,HC104739,John Masefield High School (Academy),201702,Central Childrens Directorate Costs,Support Services,
INSERTED DETAIL,20/05/2016,GI,2109995,458.33,HC104739,John Masefield High School (Academy),201702,Central Childrens Directorate Costs,Support Services,
INSERTED DETAIL,20/05/2016,GI,2110063,458.33,HC104739,John Masefield High School (Academy),201702,Central Childrens Directorate Costs,Support Services,
INSERTED DETAIL,20/05/2016,GI,2110099,652.08,HC104739,John Masefield High School (Academy),201702,Central Childrens Directorate Costs,Support Services,
INSERTED DETAIL,20/05/2016,GI,2110125,458.33,HC104739,John Masefield High School (Academy),201702,Central Childrens Directorate Costs,Support Services,
INSERTED DETAIL,06/05/2016,OI,3828566,"1,149.36",HC104739,John Masefield High School (Academy),201702,Education and Commissioning,Employees,
INSERTED DETAIL,20/05/2016,GI,2109940,458.33,HC104761,Herefordshire Marches Federation-Lord Scudamore,201702,Central Childrens Directorate Costs,Support Services,
INSERTED DETAIL,13/05/2016,SI,4687557,630.00,HC104761,Herefordshire Marches Federation-Lord Scudamore,201702,Education and Commissioning,Transfer Payments,
INSERTED DETAIL,25/05/2016,OI,3829828,"1,667.00",HC104761,Herefordshire Marches Federation-Lord Scudamore,201702,Schools,Supplies & Services,
INSERTED DETAIL,13/05/2016,OI,3828398,473.05,HC104767,B C Watkins Car Services Ltd,201702,Schools,Transport-Related Expenditure,
INSERTED DETAIL,20/05/2016,SI,4687895,"9,267.30",HC104850,Met Office,201702,Environment and Place,Supplies & Services,
INSERTED DETAIL,20/05/2016,GI,2109926,458.33,HC104870,Kingstone High School (Academy),201702,Central Childrens Directorate Costs,Support Services,
INSERTED DETAIL,04/05/2016,OI,3828343,"1,250.00",HC104870,Kingstone High School (Academy),201702,Education and Commissioning,Supplies & Services,
INSERTED DETAIL,11/05/2016,OI,3828415,"1,034.25",HC104879,K S Harris Transport,201702,Environment and Place,Transport-Related Expenditure,
INSERTED DETAIL,11/05/2016,OI,3828416,"2,955.45",HC104879,K S Harris Transport,201702,Environment and Place,Transport-Related Expenditure,
INSERTED DETAIL,06/05/2016,OI,3828525,441.00,HC104882,REDACTED,201702,Schools,Supplies & Services,
INSERTED DETAIL,11/05/2016,SI,4687467,840.92,HC104882,REDACTED,201702,Schools,Supplies & Services,
INSERTED DETAIL,11/05/2016,SI,4687500,854.86,HC104882,REDACTED,201702,Schools,Supplies & Services,
INSERTED DETAIL,25/05/2016,OI,3829826,667.69,HC104882,REDACTED,201702,Schools,Supplies & Services,
INSERTED DETAIL,11/05/2016,SI,4687335,"3,247.70",HC104972,Burley Gate School Fund,201702,Schools,Supplies & Services,
INSERTED DETAIL,06/05/2016,SI,4687279,630.00,HC105005,Kes Nursery And Creche,201702,Education and Commissioning,Transfer Payments,
INSERTED DETAIL,11/05/2016,SI,4687409,"1,045.00",HC105050,Kimbolton Nursery Group,201702,Education and Commissioning,Transfer Payments,
INSERTED DETAIL,06/05/2016,SI,4687303,"1,100.00",HC105061,Kings Caple Parish Council,201702,Environment and Place,Third Party Payments,
INSERTED DETAIL,20/05/2016,GI,2110097,458.33,HC105073,Kingstone & Thruxton Primary School (Academy),201702,Central Childrens Directorate Costs,Support Services,
INSERTED DETAIL,11/05/2016,GI,2105526,971.48,HC105091,Kington Primary School Imprest A/C,201702,Schools,Supplies & Services,
INSERTED DETAIL,04/05/2016,SI,4687140,930.00,HC105158,LADS,201702,Communities,Supplies & Services,
INSERTED DETAIL,26/05/2016,SI,4688247,440.00,HC105228,Le Club Francais,201702,Schools,Supplies & Services,
INSERTED DETAIL,04/05/2016,GI,2104187,599.04,HC105275,Ledbury Primary School Imprest,201702,Schools,Supplies & Services,
INSERTED DETAIL,26/05/2016,GI,2112241,"1,323.85",HC105275,Ledbury Primary School Imprest,201702,Schools,Supplies & Services,
INSERTED DETAIL,20/05/2016,OI,3829373,"4,752.00",HC105282,Herecad Enterprises Ltd,201702,Schools,Supplies & Services,
INSERTED DETAIL,11/05/2016,OI,3828655,"1,042.50",HC105329,Leominster Taxis & Travel,201702,Environment and Place,Transport-Related Expenditure,
INSERTED DETAIL,11/05/2016,OI,3828656,750.00,HC105329,Leominster Taxis & Travel,201702,Environment and Place,Transport-Related Expenditure,
INSERTED DETAIL,11/05/2016,OI,3828665,"2,745.00",HC105329,Leominster Taxis & Travel,201702,Environment and Place,Transport-Related Expenditure,
INSERTED DETAIL,11/05/2016,OI,3828666,"1,425.00",HC105329,Leominster Taxis & Travel,201702,Environment and Place,Transport-Related Expenditure,
INSERTED DETAIL,11/05/2016,SI,4687320,"8,946.00",HC105331,Leominster Town Council,201702,Environment and Place,Third Party Payments,
INSERTED DETAIL,13/05/2016,SI,4687542,"3,849.00",HC105411,Linton Parish Council,201702,Environment and Place,Third Party Payments,
INSERTED DETAIL,18/05/2016,SI,4687741,822.00,HC105428,Little Birch Parish Council,201702,Environment and Place,Third Party Payments,
INSERTED DETAIL,11/05/2016,SI,4687410,630.00,HC105434,Little Leintwardine Nursery CIC,201702,Education and Commissioning,Transfer Payments,
INSERTED DETAIL,18/05/2016,SI,4687740,"1,500.00",HC105456,Llangarron Parish Council,201702,Environment and Place,Third Party Payments,
INSERTED DETAIL,01/06/2016,OI,3830334,484.00,HC105471,LNL Ltd,201702,Schools,Supplies & Services,
INSERTED DETAIL,01/06/2016,OI,3830511,"34,187.64",HC105477,Local Government Association,201702,Resources,Supplies & Services,
INSERTED DETAIL,11/05/2016,SI,4687411,"1,471.00",HC105490,Lollipops Nursery School And Creche,201702,Education and Commissioning,Transfer Payments,
INSERTED DETAIL,06/05/2016,OI,3828510,942.10,HC105512,Lord Combustion Services Ltd,201702,Schools,Premises-Related Expenditure,
INSERTED DETAIL,11/05/2016,OI,3828767,630.00,HC105512,Lord Combustion Services Ltd,201702,Schools,Premises-Related Expenditure,
INSERTED DETAIL,18/05/2016,OI,3829027,458.31,HC105512,Lord Combustion Services Ltd,201702,Schools,Premises-Related Expenditure,
INSERTED DETAIL,26/05/2016,OI,3829898,"1,383.64",HC105512,Lord Combustion Services Ltd,201702,Schools,Premises-Related Expenditure,
INSERTED DETAIL,06/05/2016,SI,4687315,912.00,HC105536,Lower Bullingham Parish Council,201702,Environment and Place,Third Party Payments,
INSERTED DETAIL,11/05/2016,OI,3828754,495.00,HC105551,Lucton School,201702,Schools,Premises-Related Expenditure,
INSERTED DETAIL,11/05/2016,OI,3828855,550.00,HC105551,Lucton School,201702,Schools,Transport-Related Expenditure,
INSERTED DETAIL,06/05/2016,OI,3828539,480.00,HC105552,Luctonians Sports Club Ltd,201702,Schools,Supplies & Services,
INSERTED DETAIL,06/05/2016,SI,4687189,450.00,HC105552,Luctonians Sports Club Ltd,201702,Schools,Supplies & Services,
INSERTED DETAIL,18/05/2016,OI,3829242,563.45,HC105563,Lugg Valley Primrose Travel Ltd,201702,Environment and Place,Third Party Payments,
INSERTED DETAIL,18/05/2016,OI,3829274,"4,187.85",HC105563,Lugg Valley Primrose Travel Ltd,201702,Environment and Place,Third Party Payments,
INSERTED DETAIL,06/05/2016,OI,3828690,"22,693.44",HC105563,Lugg Valley Primrose Travel Ltd,201702,Environment and Place,Transport-Related Expenditure,
INSERTED DETAIL,04/05/2016,OI,3828393,498.00,HC105563,Lugg Valley Primrose Travel Ltd,201702,Schools,Supplies & Services,
INSERTED DETAIL,20/05/2016,GI,2110133,458.33,HC105571,Wigmore Primary School (Academy),201702,Central Childrens Directorate Costs,Support Services,
INSERTED DETAIL,11/05/2016,SI,4687514,"1,675.00",HC105571,Wigmore Primary School (Academy),201702,Education and Commissioning,Transfer Payments,
INSERTED DETAIL,20/05/2016,GI,2109768,458.33,HC105572,Lady Hawkins School (Academy),201702,Central Childrens Directorate Costs,Support Services,
INSERTED DETAIL,20/05/2016,GI,2109941,458.33,HC105572,Lady Hawkins School (Academy),201702,Central Childrens Directorate Costs,Support Services,
INSERTED DETAIL,01/06/2016,GI,2112623,519.52,HC105573,Luston C P School Imprest,201702,Schools,Premises-Related Expenditure,
INSERTED DETAIL,01/06/2016,GI,2112623,"1,797.41",HC105573,Luston C P School Imprest,201702,Schools,Supplies & Services,
INSERTED DETAIL,13/05/2016,SI,4687544,"1,567.97",HC105612,Lyonshall Parish Council,201702,Environment and Place,Third Party Payments,
INSERTED DETAIL,13/05/2016,SI,4687558,799.00,HC105617,M & M Productions,201702,Schools,Supplies & Services,
INSERTED DETAIL,25/05/2016,SI,4688101,"5,571.90",HC105627,Bright Futures 4 Youth,201702,Public Health,Supplies & Services,
INSERTED DETAIL,11/05/2016,OI,3828648,"2,025.00",HC105676,M&S Coaches Of Hereford Limited,201702,Environment and Place,Transport-Related Expenditure,
INSERTED DETAIL,11/05/2016,OI,3828649,"2,070.00",HC105676,M&S Coaches Of Hereford Limited,201702,Environment and Place,Transport-Related Expenditure,
INSERTED DETAIL,11/05/2016,OI,3828651,"2,250.00",HC105676,M&S Coaches Of Hereford Limited,201702,Environment and Place,Transport-Related Expenditure,
INSERTED DETAIL,11/05/2016,OI,3828652,"2,070.00",HC105676,M&S Coaches Of Hereford Limited,201702,Environment and Place,Transport-Related Expenditure,
INSERTED DETAIL,11/05/2016,OI,3828653,"2,250.00",HC105676,M&S Coaches Of Hereford Limited,201702,Environment and Place,Transport-Related Expenditure,
INSERTED DETAIL,11/05/2016,OI,3828654,"1,650.00",HC105676,M&S Coaches Of Hereford Limited,201702,Environment and Place,Transport-Related Expenditure,
INSERTED DETAIL,04/05/2016,OI,3828394,740.00,HC105676,M&S Coaches Of Hereford Limited,201702,Schools,Transport-Related Expenditure,
INSERTED DETAIL,06/05/2016,SI,4687304,"3,189.00",HC105689,Madley Parish Council,201702,Environment and Place,Third Party Payments,
INSERTED DETAIL,11/05/2016,SI,4687413,800.00,HC105692,Madley Pre School,201702,Education and Commissioning,Transfer Payments,
INSERTED DETAIL,25/05/2016,SI,4688116,"5,000.00",HC105714,QEHC Academy Trust T/A Queen Elizabeth Humanities College,201702,Education and Commissioning,Transfer Payments,
INSERTED DETAIL,20/05/2016,OI,3829545,"1,410.00",HC105740,Manor Adventure,201702,Schools,Supplies & Services,
INSERTED DETAIL,18/05/2016,SI,4687858,"41,000.00",HC105758,Stonewater (4) Ltd,201702,Housing & Independent Living Capital,Capital Expenditure,
INSERTED DETAIL,01/06/2016,OI,3830429,"2,700.00",HC105760,Marches IT Services Ltd,201702,Schools,Supplies & Services,
INSERTED DETAIL,01/06/2016,OI,3830528,"2,700.00",HC105760,Marches IT Services Ltd,201702,Schools,Supplies & Services,
INSERTED DETAIL,11/05/2016,SI,4687414,630.00,HC105771,Marden Playgroup,201702,Education and Commissioning,Transfer Payments,
INSERTED DETAIL,20/05/2016,GI,2109892,458.33,HC105841,Marlbrook  Primary School,201702,Central Childrens Directorate Costs,Support Services,
INSERTED DETAIL,20/05/2016,GI,2109990,458.33,HC105841,Marlbrook  Primary School,201702,Central Childrens Directorate Costs,Support Services,
INSERTED DETAIL,20/05/2016,GI,2110185,777.00,HC105841,Marlbrook  Primary School,201702,Children & Young People Capital,Capital Income,
INSERTED DETAIL,04/05/2016,OI,3828412,"1,845.00",HC105919,De Leeuw Ltd,201702,Schools,Premises-Related Expenditure,
INSERTED DETAIL,18/05/2016,OI,3829279,540.00,HC105924,Tipi Adventure Ltd,201702,Schools,Supplies & Services,
INSERTED DETAIL,13/05/2016,OI,3829072,738.33,HC105926,Mavis Russell Cleaning Ltd,201702,Schools,Premises-Related Expenditure,
INSERTED DETAIL,13/05/2016,OI,3829174,884.38,HC105926,Mavis Russell Cleaning Ltd,201702,Schools,Premises-Related Expenditure,
INSERTED DETAIL,13/05/2016,OI,3829213,897.21,HC105926,Mavis Russell Cleaning Ltd,201702,Schools,Premises-Related Expenditure,
INSERTED DETAIL,13/05/2016,OI,3829260,525.60,HC105926,Mavis Russell Cleaning Ltd,201702,Schools,Premises-Related Expenditure,
INSERTED DETAIL,18/05/2016,OI,3829382,730.75,HC105926,Mavis Russell Cleaning Ltd,201702,Schools,Premises-Related Expenditure,
INSERTED DETAIL,18/05/2016,OI,3829426,887.08,HC105926,Mavis Russell Cleaning Ltd,201702,Schools,Premises-Related Expenditure,
INSERTED DETAIL,20/05/2016,OI,3829540,956.75,HC105926,Mavis Russell Cleaning Ltd,201702,Schools,Premises-Related Expenditure,
INSERTED DETAIL,25/05/2016,SI,4688126,"1,095.25",HC105926,Mavis Russell Cleaning Ltd,201702,Schools,Premises-Related Expenditure,
INSERTED DETAIL,25/05/2016,SI,4688144,"1,065.63",HC105926,Mavis Russell Cleaning Ltd,201702,Schools,Premises-Related Expenditure,
INSERTED DETAIL,26/05/2016,OI,3830143,"1,087.50",HC105926,Mavis Russell Cleaning Ltd,201702,Schools,Premises-Related Expenditure,
INSERTED DETAIL,01/06/2016,OI,3830419,"2,000.00",HC105985,Mercia Radiotelephones Ltd,201702,Environment and Place,Supplies & Services,
INSERTED DETAIL,11/05/2016,SI,4687417,523.00,HC105989,Merry Go Round,201702,Education and Commissioning,Transfer Payments,
INSERTED DETAIL,11/05/2016,SI,4687416,"1,045.00",HC105990,Merry Go Round Pre School,201702,Education and Commissioning,Transfer Payments,
INSERTED DETAIL,26/05/2016,SI,4688176,"1,104.00",HC106059,Middleton-On-The-Hill & Leysters P.C,201702,Environment and Place,Third Party Payments,
INSERTED DETAIL,01/06/2016,OI,3830046,"128,414.45",HC106064,Midland Heart,201702,Learning Disabilities,Supplies & Services,
INSERTED DETAIL,01/06/2016,OI,3830046,"140,291.86",HC106064,Midland Heart,201702,Learning Disabilities,Third Party Payments,
INSERTED DETAIL,18/05/2016,OI,3828837,457.08,HC106069,Midlands Wood Fuel Supply Ltd (MWF),201702,Schools,Premises-Related Expenditure,
INSERTED DETAIL,20/05/2016,SI,4687838,446.68,HC106071,Midshire Business Systems Ltd,201702,Schools,Supplies & Services,
INSERTED DETAIL,20/05/2016,SI,4687854,"1,397.99",HC106071,Midshire Business Systems Ltd,201702,Schools,Supplies & Services,
INSERTED DETAIL,25/05/2016,SI,4688075,645.36,HC106071,Midshire Business Systems Ltd,201702,Schools,Supplies & Services,
INSERTED DETAIL,13/05/2016,OI,3829178,"9,833.00",HC106098,Millhouse Residential Care Home,201702,Learning Disabilities,Third Party Payments,
INSERTED DETAIL,13/05/2016,SI,4687564,"1,000.00",HC106098,Millhouse Residential Care Home,201702,Learning Disabilities,Third Party Payments,
INSERTED DETAIL,20/05/2016,GI,2109761,458.33,HC106103,Holmer C of E Academy,201702,Central Childrens Directorate Costs,Support Services,
INSERTED DETAIL,20/05/2016,OI,3829468,"1,026.00",HC106106,Minibus Services,201702,Learning Disabilities,Transport-Related Expenditure,
INSERTED DETAIL,20/05/2016,OI,3829470,"1,140.00",HC106106,Minibus Services,201702,Learning Disabilities,Transport-Related Expenditure,
INSERTED DETAIL,26/05/2016,OI,3830131,"3,000.00",HC106180,Uniplay It's Educational Ltd,201702,Schools,Premises-Related Expenditure,
INSERTED DETAIL,01/06/2016,OI,3830640,"1,915.25",HC106188,Sodexo Property Solutions Ltd,201702,Environment and Place,Third Party Payments,
INSERTED DETAIL,26/05/2016,OI,3828933,600.00,HC106245,The Association of Democratic Services Officers,201702,Communities,Supplies & Services,
INSERTED DETAIL,18/05/2016,OI,3829411,"1,881.93",HC106319,Morleys Of Bicester Ltd,201702,Schools Devolved Capital,Capital Expenditure,
INSERTED DETAIL,20/05/2016,OI,3829362,700.00,HC106362,Ant's Help Ltd,201702,Education and Commissioning,Supplies & Services,
INSERTED DETAIL,28/09/2015,SI,4687459,"1,377.00",HC106363,HMS Ltd,201702,Schools,Supplies & Services,
INSERTED DETAIL,20/05/2016,SI,4687543,"1,377.00",HC106368,3P Learning Limited,201702,Schools,Supplies & Services,
INSERTED DETAIL,04/05/2016,OI,3828357,"3,837.50",HC106582,Triple P UK Limited,201702,Safeguarding and Family Support,Employees,
INSERTED DETAIL,26/05/2016,OI,3829779,442.54,HC106660,Madley Primary School,201702,Schools,Supplies & Services,
INSERTED DETAIL,20/05/2016,SI,4688021,"3,089.00",HC106749,D M Gray Plumbing,201702,Housing & Independent Living Capital,Capital Expenditure,
INSERTED DETAIL,20/05/2016,SI,4688022,"2,277.89",HC106749,D M Gray Plumbing,201702,Housing & Independent Living Capital,Capital Expenditure,
INSERTED DETAIL,20/05/2016,SI,4688023,"4,178.50",HC106749,D M Gray Plumbing,201702,Housing & Independent Living Capital,Capital Expenditure,
INSERTED DETAIL,20/05/2016,OI,3829474,840.00,HC106786,REDACTED,201702,Learning Disabilities,Transport-Related Expenditure,
INSERTED DETAIL,25/05/2016,SI,4688043,"4,285.90",HC106960,Hopton Building Services Ltd,201702,Housing & Independent Living Capital,Capital Expenditure,
INSERTED DETAIL,25/05/2016,SI,4688044,"3,432.50",HC106960,Hopton Building Services Ltd,201702,Housing & Independent Living Capital,Capital Expenditure,
INSERTED DETAIL,25/05/2016,SI,4688045,"3,625.50",HC106960,Hopton Building Services Ltd,201702,Housing & Independent Living Capital,Capital Expenditure,
INSERTED DETAIL,20/05/2016,GI,2110069,631.41,HC106975,Hoople Ltd,201702,Central Childrens Directorate Costs,Support Services,
INSERTED DETAIL,20/05/2016,GI,2110070,"1,542.22",HC106975,Hoople Ltd,201702,Central Childrens Directorate Costs,Support Services,
INSERTED DETAIL,20/05/2016,GI,2110071,920.45,HC106975,Hoople Ltd,201702,Central Childrens Directorate Costs,Support Services,
INSERTED DETAIL,20/05/2016,GI,2110072,908.73,HC106975,Hoople Ltd,201702,Central Childrens Directorate Costs,Support Services,
INSERTED DETAIL,20/05/2016,GI,2110073,"1,553.94",HC106975,Hoople Ltd,201702,Central Childrens Directorate Costs,Support Services,
INSERTED DETAIL,20/05/2016,GI,2110074,"1,529.64",HC106975,Hoople Ltd,201702,Central Childrens Directorate Costs,Support Services,
INSERTED DETAIL,20/05/2016,GI,2110100,500.00,HC106975,Hoople Ltd,201702,Central Childrens Directorate Costs,Support Services,
INSERTED DETAIL,20/05/2016,GI,2110101,447.92,HC106975,Hoople Ltd,201702,Central Childrens Directorate Costs,Support Services,
INSERTED DETAIL,11/05/2016,OI,3828502,"1,538.21",HC106975,Hoople Ltd,201702,Resources,Supplies & Services,
INSERTED DETAIL,11/05/2016,OI,3828974,476.04,HC106975,Hoople Ltd,201702,Schools,Employees,
INSERTED DETAIL,11/05/2016,SI,4687372,"1,358.50",HC106975,Hoople Ltd,201702,Schools,Employees,
INSERTED DETAIL,11/05/2016,SI,4687529,455.38,HC106975,Hoople Ltd,201702,Schools,Employees,
INSERTED DETAIL,18/05/2016,OI,3829378,426.04,HC106975,Hoople Ltd,201702,Schools,Employees,
INSERTED DETAIL,18/05/2016,SI,4687805,722.08,HC106975,Hoople Ltd,201702,Schools,Employees,
INSERTED DETAIL,20/05/2016,OI,3829546,812.08,HC106975,Hoople Ltd,201702,Schools,Employees,
INSERTED DETAIL,20/05/2016,SI,4687986,693.40,HC106975,Hoople Ltd,201702,Schools,Employees,
INSERTED DETAIL,01/06/2016,OI,3829695,555.38,HC106975,Hoople Ltd,201702,Schools,Employees,
INSERTED DETAIL,04/05/2016,SI,4687118,528.50,HC106975,Hoople Ltd,201702,Schools,Supplies & Services,
INSERTED DETAIL,06/05/2016,OI,3828483,"5,690.61",HC106975,Hoople Ltd,201702,Schools,Supplies & Services,
INSERTED DETAIL,11/05/2016,OI,3828435,"1,862.50",HC106975,Hoople Ltd,201702,Schools,Supplies & Services,
INSERTED DETAIL,11/05/2016,OI,3828817,"6,373.17",HC106975,Hoople Ltd,201702,Schools,Supplies & Services,
INSERTED DETAIL,11/05/2016,OI,3829054,"6,513.50",HC106975,Hoople Ltd,201702,Schools,Supplies & Services,
INSERTED DETAIL,11/05/2016,SI,4686363,"2,240.00",HC106975,Hoople Ltd,201702,Schools,Supplies & Services,
INSERTED DETAIL,11/05/2016,SI,4687372,"20,453.04",HC106975,Hoople Ltd,201702,Schools,Supplies & Services,
INSERTED DETAIL,13/05/2016,SI,4687562,"4,808.79",HC106975,Hoople Ltd,201702,Schools,Supplies & Services,
INSERTED DETAIL,13/05/2016,SI,4687599,"3,619.55",HC106975,Hoople Ltd,201702,Schools,Supplies & Services,
INSERTED DETAIL,18/05/2016,SI,4687804,574.72,HC106975,Hoople Ltd,201702,Schools,Supplies & Services,
INSERTED DETAIL,18/05/2016,SI,4687806,"6,829.64",HC106975,Hoople Ltd,201702,Schools,Supplies & Services,
INSERTED DETAIL,18/05/2016,SI,4687853,"1,415.65",HC106975,Hoople Ltd,201702,Schools,Supplies & Services,
INSERTED DETAIL,20/05/2016,OI,3829533,976.00,HC106975,Hoople Ltd,201702,Schools,Supplies & Services,
INSERTED DETAIL,20/05/2016,OI,3829546,"3,918.46",HC106975,Hoople Ltd,201702,Schools,Supplies & Services,
INSERTED DETAIL,20/05/2016,SI,4687995,960.00,HC106975,Hoople Ltd,201702,Schools,Supplies & Services,
INSERTED DETAIL,25/05/2016,OI,3829746,"10,760.35",HC106975,Hoople Ltd,201702,Schools,Supplies & Services,
INSERTED DETAIL,01/06/2016,OI,3829764,"5,234.34",HC106975,Hoople Ltd,201702,Schools,Supplies & Services,
INSERTED DETAIL,01/06/2016,SI,4688279,"3,998.32",HC106975,Hoople Ltd,201702,Schools,Supplies & Services,
INSERTED DETAIL,01/06/2016,SI,4688280,"1,895.50",HC106975,Hoople Ltd,201702,Schools,Supplies & Services,
INSERTED DETAIL,06/05/2016,OI,3828470,"3,484.80",HC106975,Hoople Ltd,201702,Schools,Support Services,
INSERTED DETAIL,06/05/2016,OI,3828472,"11,869.07",HC106975,Hoople Ltd,201702,Schools,Support Services,
INSERTED DETAIL,06/05/2016,OI,3828624,"7,220.49",HC106975,Hoople Ltd,201702,Schools,Support Services,
INSERTED DETAIL,11/05/2016,OI,3828437,"5,372.37",HC106975,Hoople Ltd,201702,Schools,Support Services,
INSERTED DETAIL,11/05/2016,OI,3828693,"8,863.63",HC106975,Hoople Ltd,201702,Schools,Support Services,
INSERTED DETAIL,11/05/2016,OI,3828733,"10,705.25",HC106975,Hoople Ltd,201702,Schools,Support Services,
INSERTED DETAIL,11/05/2016,OI,3828814,"6,044.90",HC106975,Hoople Ltd,201702,Schools,Support Services,
INSERTED DETAIL,11/05/2016,OI,3828817,"3,995.50",HC106975,Hoople Ltd,201702,Schools,Support Services,
INSERTED DETAIL,11/05/2016,OI,3828974,"5,830.49",HC106975,Hoople Ltd,201702,Schools,Support Services,
INSERTED DETAIL,11/05/2016,SI,4687431,"18,905.70",HC106975,Hoople Ltd,201702,Schools,Support Services,
INSERTED DETAIL,11/05/2016,SI,4687519,"4,426.59",HC106975,Hoople Ltd,201702,Schools,Support Services,
INSERTED DETAIL,11/05/2016,SI,4687525,"7,714.09",HC106975,Hoople Ltd,201702,Schools,Support Services,
INSERTED DETAIL,11/05/2016,SI,4687529,"7,308.41",HC106975,Hoople Ltd,201702,Schools,Support Services,
INSERTED DETAIL,13/05/2016,OI,3829032,"6,860.51",HC106975,Hoople Ltd,201702,Schools,Support Services,
INSERTED DETAIL,13/05/2016,OI,3829070,"5,097.29",HC106975,Hoople Ltd,201702,Schools,Support Services,
INSERTED DETAIL,13/05/2016,OI,3829075,"8,406.44",HC106975,Hoople Ltd,201702,Schools,Support Services,
INSERTED DETAIL,13/05/2016,OI,3829139,"9,159.97",HC106975,Hoople Ltd,201702,Schools,Support Services,
INSERTED DETAIL,13/05/2016,SI,4687599,717.75,HC106975,Hoople Ltd,201702,Schools,Support Services,
INSERTED DETAIL,18/05/2016,OI,3829278,"8,808.94",HC106975,Hoople Ltd,201702,Schools,Support Services,
INSERTED DETAIL,18/05/2016,OI,3829378,"4,347.25",HC106975,Hoople Ltd,201702,Schools,Support Services,
INSERTED DETAIL,18/05/2016,SI,4687794,"5,370.00",HC106975,Hoople Ltd,201702,Schools,Support Services,
INSERTED DETAIL,18/05/2016,SI,4687795,"10,952.87",HC106975,Hoople Ltd,201702,Schools,Support Services,
INSERTED DETAIL,18/05/2016,SI,4687804,"6,151.61",HC106975,Hoople Ltd,201702,Schools,Support Services,
INSERTED DETAIL,18/05/2016,SI,4687805,"11,394.98",HC106975,Hoople Ltd,201702,Schools,Support Services,
INSERTED DETAIL,18/05/2016,SI,4687853,"3,833.00",HC106975,Hoople Ltd,201702,Schools,Support Services,
INSERTED DETAIL,20/05/2016,OI,3829533,"4,804.25",HC106975,Hoople Ltd,201702,Schools,Support Services,
INSERTED DETAIL,20/05/2016,OI,3829546,"2,970.25",HC106975,Hoople Ltd,201702,Schools,Support Services,
INSERTED DETAIL,20/05/2016,OI,3829625,"7,385.72",HC106975,Hoople Ltd,201702,Schools,Support Services,
INSERTED DETAIL,20/05/2016,SI,4687986,"10,128.75",HC106975,Hoople Ltd,201702,Schools,Support Services,
INSERTED DETAIL,25/05/2016,OI,3829557,"9,925.84",HC106975,Hoople Ltd,201702,Schools,Support Services,
INSERTED DETAIL,01/06/2016,OI,3829695,"6,745.19",HC106975,Hoople Ltd,201702,Schools,Support Services,
INSERTED DETAIL,01/06/2016,OI,3830192,"1,192.00",HC106975,Hoople Ltd,201702,Schools,Support Services,
INSERTED DETAIL,01/06/2016,OI,3830558,"5,076.77",HC106975,Hoople Ltd,201702,Schools,Support Services,
INSERTED DETAIL,25/05/2016,OI,3829630,"2,200.00",HC107237,Harper Adams University College,201702,Communities,Supplies & Services,
INSERTED DETAIL,26/05/2016,OI,3830090,"3,778.00",HC107237,Harper Adams University College,201702,Communities,Supplies & Services,
INSERTED DETAIL,01/06/2016,OI,3830080,"6,778.00",HC107237,Harper Adams University College,201702,Communities,Supplies & Services,
INSERTED DETAIL,06/05/2016,OI,3828698,"1,214.99",HC107382,REDACTED,201702,Environment and Place,Transport-Related Expenditure,
INSERTED DETAIL,11/05/2016,OI,3828697,"1,147.50",HC107382,REDACTED,201702,Environment and Place,Transport-Related Expenditure,
INSERTED DETAIL,11/05/2016,OI,3828701,"1,200.00",HC107382,REDACTED,201702,Environment and Place,Transport-Related Expenditure,
INSERTED DETAIL,11/05/2016,OI,3828982,515.00,HC107466,Worcestershire Health & Care NHS Trust,201702,Public Health,Third Party Payments,
INSERTED DETAIL,03/06/2016,GI,2108608,"117,687.14",HC107466,Worcestershire Health & Care NHS Trust,201702,Public Health,Third Party Payments,
INSERTED DETAIL,06/05/2016,SI,4687266,"1,883.70",HC107522,REDACTED,201702,Schools,Supplies & Services,
INSERTED DETAIL,11/05/2016,OI,3828532,"3,080.00",HC107522,REDACTED,201702,Schools,Supplies & Services,
INSERTED DETAIL,11/05/2016,SI,4687287,"2,714.80",HC107522,REDACTED,201702,Schools,Supplies & Services,
INSERTED DETAIL,11/05/2016,SI,4687293,"3,370.40",HC107522,REDACTED,201702,Schools,Supplies & Services,
INSERTED DETAIL,18/05/2016,SI,4687813,"2,149.40",HC107522,REDACTED,201702,Schools,Supplies & Services,
INSERTED DETAIL,18/05/2016,SI,4687876,"1,471.50",HC107522,REDACTED,201702,Schools,Supplies & Services,
INSERTED DETAIL,25/05/2016,OI,3829556,"2,241.80",HC107522,REDACTED,201702,Schools,Supplies & Services,
INSERTED DETAIL,01/06/2016,OI,3830653,"2,904.00",HC107522,REDACTED,201702,Schools,Supplies & Services,
INSERTED DETAIL,11/05/2016,SI,4687517,"1,251.40",HC107574,Lugwardine Primary Academy,201702,Central Childrens Directorate Costs,Support Services,
INSERTED DETAIL,20/05/2016,GI,2109757,458.33,HC107574,Lugwardine Primary Academy,201702,Central Childrens Directorate Costs,Support Services,
INSERTED DETAIL,20/05/2016,GI,2109959,458.33,HC107574,Lugwardine Primary Academy,201702,Central Childrens Directorate Costs,Support Services,
INSERTED DETAIL,20/05/2016,GI,2109764,458.33,HC107656,St Pauls Church of England Primary School,201702,Central Childrens Directorate Costs,Support Services,
INSERTED DETAIL,20/05/2016,GI,2109765,458.33,HC107656,St Pauls Church of England Primary School,201702,Central Childrens Directorate Costs,Support Services,
INSERTED DETAIL,20/05/2016,GI,2109952,719.17,HC107656,St Pauls Church of England Primary School,201702,Central Childrens Directorate Costs,Support Services,
INSERTED DETAIL,20/05/2016,GI,2110119,458.33,HC107656,St Pauls Church of England Primary School,201702,Central Childrens Directorate Costs,Support Services,
INSERTED DETAIL,01/06/2016,OI,3830553,"3,627.00",HC107737,MS & EM Patrick Ltd,201702,Environment and Place,Supplies & Services,
INSERTED DETAIL,01/06/2016,OI,3830554,"1,200.00",HC107737,MS & EM Patrick Ltd,201702,Environment and Place,Supplies & Services,
INSERTED DETAIL,06/05/2016,GI,2104796,"22,531.51",HC107838,Ethica Resourcing Ltd,201702,Adults Operations,Employees,
INSERTED DETAIL,13/05/2016,GI,2108435,"5,591.59",HC107838,Ethica Resourcing Ltd,201702,Adults Operations,Employees,
INSERTED DETAIL,06/05/2016,GI,2104796,"3,940.08",HC107838,Ethica Resourcing Ltd,201702,Commissioning Adults,Employees,
INSERTED DETAIL,06/05/2016,GI,2104796,"1,518.75",HC107838,Ethica Resourcing Ltd,201702,Communities,Employees,
INSERTED DETAIL,06/05/2016,GI,2104796,"9,758.79",HC107838,Ethica Resourcing Ltd,201702,Education and Commissioning,Employees,
INSERTED DETAIL,06/05/2016,GI,2104796,"10,014.09",HC107838,Ethica Resourcing Ltd,201702,Environment and Place,Employees,
INSERTED DETAIL,06/05/2016,GI,2104796,"2,133.85",HC107838,Ethica Resourcing Ltd,201702,Mental Health,Employees,
INSERTED DETAIL,06/05/2016,GI,2104796,"4,330.76",HC107838,Ethica Resourcing Ltd,201702,Public Health,Employees,
INSERTED DETAIL,06/05/2016,GI,2104796,"1,242.30",HC107838,Ethica Resourcing Ltd,201702,Resources,Employees,
INSERTED DETAIL,06/05/2016,GI,2104796,"30,172.74",HC107838,Ethica Resourcing Ltd,201702,Safeguarding and Family Support,Employees,
INSERTED DETAIL,13/05/2016,GI,2108435,"6,971.40",HC107838,Ethica Resourcing Ltd,201702,Safeguarding and Family Support,Employees,
INSERTED DETAIL,20/05/2016,GI,2109625,"3,363.93",HC107838,Ethica Resourcing Ltd,201702,Safeguarding and Family Support,Employees,
INSERTED DETAIL,06/05/2016,GI,2104796,"2,140.00",HC107838,Ethica Resourcing Ltd,201702,Transformation and safeguarding,Employees,
INSERTED DETAIL,04/05/2016,SI,4687130,"1,175.00",HC107858,MVF Builders Ltd,201702,Housing & Independent Living Capital,Capital Expenditure,
INSERTED DETAIL,04/05/2016,SI,4687131,"2,591.50",HC107858,MVF Builders Ltd,201702,Housing & Independent Living Capital,Capital Expenditure,
INSERTED DETAIL,01/06/2016,OI,3830641,611.37,HC107979,Neopost Finance Ltd,201702,Resources,Supplies & Services,
INSERTED DETAIL,26/05/2016,OI,3829869,632.50,HC107995,Network Rail,201702,Resources,Premises-Related Expenditure,
INSERTED DETAIL,11/05/2016,SI,4687419,"2,511.00",HC108094,Noahs Ark Pre-School,201702,Education and Commissioning,Transfer Payments,
INSERTED DETAIL,01/06/2016,OI,3830287,"1,319.20",HC108134,Northgate Public Services (UK) Ltd,201702,Communities,Supplies & Services,
INSERTED DETAIL,01/06/2016,OI,3830076,"2,484.10",HC108143,Nottingham Rehab Ltd,201702,Transformation and safeguarding,Supplies & Services,
INSERTED DETAIL,11/05/2016,OI,3828801,"1,334.45",HC108149,Npower,201702,Schools,Premises-Related Expenditure,
INSERTED DETAIL,04/05/2016,GI,2104610,955.24,HC108165,NYS Corporate,201702,Adults Operations,Transport-Related Expenditure,
INSERTED DETAIL,11/05/2016,SI,4687421,"1,045.00",HC108172,Oak House Nursery (Ohns),201702,Education and Commissioning,Transfer Payments,
INSERTED DETAIL,18/05/2016,OI,3829321,"2,175.00",HC108174,Oaker Wood Leisure Ltd,201702,Schools,Supplies & Services,
INSERTED DETAIL,25/05/2016,OI,3829922,"4,050.00",HC108174,Oaker Wood Leisure Ltd,201702,Schools,Supplies & Services,
INSERTED DETAIL,25/05/2016,SI,4688113,"1,045.00",HC108179,Oaks Ltd,201702,Education and Commissioning,Transfer Payments,
INSERTED DETAIL,06/05/2016,OI,3828433,659.40,HC108193,OCS Group Uk Limited T/A Cannon,201702,Schools,Supplies & Services,
INSERTED DETAIL,13/05/2016,OI,3829126,605.15,HC108208,ESPO,201702,Schools,Supplies & Services,
INSERTED DETAIL,13/05/2016,SI,4687581,"7,971.43",HC108260,Orange plc (Airtime),201702,Resources,Supplies & Services,
INSERTED DETAIL,13/05/2016,SI,4687584,"1,823.21",HC108260,Orange plc (Airtime),201702,Resources,Supplies & Services,
INSERTED DETAIL,20/05/2016,SI,4685453,"16,741.92",HC108260,Orange plc (Airtime),201702,Resources,Supplies & Services,
INSERTED DETAIL,01/06/2016,GI,2113039,559.69,HC108278,Orleton C.E. Primary School Imprest,201702,Schools,Supplies & Services,
INSERTED DETAIL,04/05/2016,OI,3828358,"2,702.40",HC108283,Orleton School Meals,201702,Schools,Supplies & Services,
INSERTED DETAIL,26/05/2016,OI,3830069,"1,713.60",HC108283,Orleton School Meals,201702,Schools,Supplies & Services,
INSERTED DETAIL,01/06/2016,OI,3830307,"2,073.20",HC108283,Orleton School Meals,201702,Schools,Supplies & Services,
INSERTED DETAIL,01/06/2016,SI,4688270,"1,132.00",HC108283,Orleton School Meals,201702,Schools,Supplies & Services,
INSERTED DETAIL,04/05/2016,OI,3827220,756.18,HC108286,Orphans Press Ltd,201702,Communities,Supplies & Services,
INSERTED DETAIL,06/05/2016,OI,3828577,439.00,HC108288,Osiris Educational Ltd,201702,Schools,Employees,
INSERTED DETAIL,06/05/2016,OI,3828579,439.00,HC108288,Osiris Educational Ltd,201702,Schools,Employees,
INSERTED DETAIL,11/05/2016,OI,3828658,"2,513.25",HC108361,P W Jones (Hereford) Ltd,201702,Environment and Place,Transport-Related Expenditure,
INSERTED DETAIL,11/05/2016,OI,3828659,"2,542.50",HC108361,P W Jones (Hereford) Ltd,201702,Environment and Place,Transport-Related Expenditure,
INSERTED DETAIL,11/05/2016,OI,3828660,"3,150.00",HC108361,P W Jones (Hereford) Ltd,201702,Environment and Place,Transport-Related Expenditure,
INSERTED DETAIL,01/06/2016,OI,3830608,"1,395.00",HC108361,P W Jones (Hereford) Ltd,201702,Schools,Transport-Related Expenditure,
INSERTED DETAIL,23/03/2016,SI,4688189,"2,948.07",HC108396,Ezitracker,201702,Transformation and safeguarding,Supplies & Services,
INSERTED DETAIL,18/05/2016,OI,3829438,"3,912.36",HC108396,Ezitracker,201702,Transformation and safeguarding,Supplies & Services,
INSERTED DETAIL,20/05/2016,OI,3829510,"3,000.00",HC108396,Ezitracker,201702,Transformation and safeguarding,Supplies & Services,
INSERTED DETAIL,20/05/2016,OI,3829534,"3,263.14",HC108396,Ezitracker,201702,Transformation and safeguarding,Supplies & Services,
INSERTED DETAIL,11/05/2016,WM,2105377,"1,736.36",HC108443,West Mercia Energy,201702,Environment and Place,Premises-Related Expenditure,
INSERTED DETAIL,11/05/2016,WM,2105378,977.89,HC108443,West Mercia Energy,201702,Environment and Place,Premises-Related Expenditure,
INSERTED DETAIL,11/05/2016,WM,2105384,"2,155.41",HC108443,West Mercia Energy,201702,Environment and Place,Premises-Related Expenditure,
INSERTED DETAIL,11/05/2016,WM,2105385,"2,016.25",HC108443,West Mercia Energy,201702,Environment and Place,Premises-Related Expenditure,
INSERTED DETAIL,11/05/2016,WM,2105386,"2,155.41",HC108443,West Mercia Energy,201702,Environment and Place,Premises-Related Expenditure,
INSERTED DETAIL,25/05/2016,WM,2110248,"1,135.81",HC108443,West Mercia Energy,201702,Environment and Place,Premises-Related Expenditure,
INSERTED DETAIL,25/05/2016,WM,2110251,421.42,HC108443,West Mercia Energy,201702,Environment and Place,Premises-Related Expenditure,
INSERTED DETAIL,25/05/2016,WM,2110273,601.41,HC108443,West Mercia Energy,201702,Environment and Place,Premises-Related Expenditure,
INSERTED DETAIL,25/05/2016,WM,2110279,425.92,HC108443,West Mercia Energy,201702,Environment and Place,Premises-Related Expenditure,
INSERTED DETAIL,25/05/2016,WM,2110281,499.57,HC108443,West Mercia Energy,201702,Environment and Place,Premises-Related Expenditure,
INSERTED DETAIL,25/05/2016,WM,2110287,"2,151.94",HC108443,West Mercia Energy,201702,Environment and Place,Premises-Related Expenditure,
INSERTED DETAIL,25/05/2016,WM,2110288,"1,678.03",HC108443,West Mercia Energy,201702,Environment and Place,Premises-Related Expenditure,
INSERTED DETAIL,25/05/2016,WM,2110295,778.54,HC108443,West Mercia Energy,201702,Environment and Place,Premises-Related Expenditure,
INSERTED DETAIL,25/05/2016,WM,2110303,901.44,HC108443,West Mercia Energy,201702,Environment and Place,Premises-Related Expenditure,
INSERTED DETAIL,25/05/2016,WM,2110318,463.85,HC108443,West Mercia Energy,201702,Environment and Place,Premises-Related Expenditure,
INSERTED DETAIL,11/05/2016,WM,2105368,726.96,HC108443,West Mercia Energy,201702,Schools,Premises-Related Expenditure,
INSERTED DETAIL,11/05/2016,WM,2105369,428.20,HC108443,West Mercia Energy,201702,Schools,Premises-Related Expenditure,
INSERTED DETAIL,11/05/2016,WM,2105370,913.48,HC108443,West Mercia Energy,201702,Schools,Premises-Related Expenditure,
INSERTED DETAIL,11/05/2016,WM,2105376,"1,075.89",HC108443,West Mercia Energy,201702,Schools,Premises-Related Expenditure,
INSERTED DETAIL,13/05/2016,OI,3829135,600.76,HC108443,West Mercia Energy,201702,Schools,Premises-Related Expenditure,
INSERTED DETAIL,13/05/2016,OI,3829142,547.50,HC108443,West Mercia Energy,201702,Schools,Premises-Related Expenditure,
INSERTED DETAIL,25/05/2016,WM,2110250,561.54,HC108443,West Mercia Energy,201702,Schools,Premises-Related Expenditure,
INSERTED DETAIL,25/05/2016,WM,2110272,652.94,HC108443,West Mercia Energy,201702,Schools,Premises-Related Expenditure,
INSERTED DETAIL,25/05/2016,WM,2110275,"1,162.34",HC108443,West Mercia Energy,201702,Schools,Premises-Related Expenditure,
INSERTED DETAIL,25/05/2016,WM,2110292,557.53,HC108443,West Mercia Energy,201702,Schools,Premises-Related Expenditure,
INSERTED DETAIL,25/05/2016,WM,2110302,444.49,HC108443,West Mercia Energy,201702,Schools,Premises-Related Expenditure,
INSERTED DETAIL,25/05/2016,WM,2110306,417.53,HC108443,West Mercia Energy,201702,Schools,Premises-Related Expenditure,
INSERTED DETAIL,25/05/2016,WM,2110316,630.82,HC108443,West Mercia Energy,201702,Schools,Premises-Related Expenditure,
INSERTED DETAIL,01/06/2016,OI,3830661,"2,443.09",HC108452,NCER CIC,201702,Education and Commissioning,Supplies & Services,
INSERTED DETAIL,18/05/2016,OI,3829413,537.35,HC108484,Paula's Blinds,201702,Schools Devolved Capital,Capital Expenditure,
INSERTED DETAIL,25/05/2016,OI,3829815,620.00,HC108505,Pearson Education Ltd,201702,Schools,Supplies & Services,
INSERTED DETAIL,26/05/2016,SI,4688038,"3,903.20",HC108512,Pembridge Parish Council,201702,Environment and Place,Third Party Payments,
INSERTED DETAIL,11/05/2016,SI,4687422,836.00,HC108514,Pembridge Pre-School,201702,Education and Commissioning,Transfer Payments,
INSERTED DETAIL,25/05/2016,SI,4688110,"1,570.22",HC108593,Peters Bookselling Services,201702,Communities,Supplies & Services,
INSERTED DETAIL,06/05/2016,OI,3828463,541.76,HC108646,PHS Group Plc,201702,Schools,Supplies & Services,
INSERTED DETAIL,06/05/2016,SI,4687253,"1,193.54",HC108646,PHS Group Plc,201702,Schools,Supplies & Services,
INSERTED DETAIL,11/05/2016,OI,3829030,757.86,HC108646,PHS Group Plc,201702,Schools,Supplies & Services,
INSERTED DETAIL,11/05/2016,SI,4687412,630.00,HC108654,Lord Scudamore Academy (School Fund A/C),201702,Education and Commissioning,Transfer Payments,
INSERTED DETAIL,13/05/2016,OI,3829259,436.80,HC108657,REDACTED,201702,Environment and Place,Transport-Related Expenditure,
INSERTED DETAIL,11/05/2016,SI,4687423,630.00,HC108691,Play And Learn Nurseries Ltd,201702,Education and Commissioning,Transfer Payments,
INSERTED DETAIL,20/05/2016,GI,2110052,458.33,HC108716,Stretton Sugwas CE Academy,201702,Central Childrens Directorate Costs,Support Services,
INSERTED DETAIL,20/05/2016,GI,2110054,458.33,HC108716,Stretton Sugwas CE Academy,201702,Central Childrens Directorate Costs,Support Services,
INSERTED DETAIL,20/05/2016,GI,2110065,458.33,HC108716,Stretton Sugwas CE Academy,201702,Central Childrens Directorate Costs,Support Services,
INSERTED DETAIL,06/05/2016,OI,3828588,"1,000.00",HC108716,Stretton Sugwas CE Academy,201702,Education and Commissioning,Employees,
INSERTED DETAIL,13/05/2016,SI,4687384,450.00,HC108799,Primarily Science,201702,Schools,Supplies & Services,
INSERTED DETAIL,20/05/2016,OI,3829414,532.00,HC108799,Primarily Science,201702,Schools,Supplies & Services,
INSERTED DETAIL,03/06/2016,OI,3830539,450.00,HC108799,Primarily Science,201702,Schools,Supplies & Services,
INSERTED DETAIL,06/05/2016,OI,3828595,"1,437.30",HC108807,Primecare,201702,Transformation and safeguarding,Third Party Payments,
INSERTED DETAIL,26/05/2016,OI,3830058,945.00,HC108834,Project Link Services Cic,201702,Education and Commissioning,Supplies & Services,
INSERTED DETAIL,06/05/2016,SI,4687219,660.00,HC108836,Assessments & Learning,201702,Schools,Supplies & Services,
INSERTED DETAIL,04/05/2016,SI,4687048,825.00,HC108866,Education Property Partnership Ltd,201702,Schools,Supplies & Services,
INSERTED DETAIL,11/05/2016,OI,3828779,"2,475.00",HC108866,Education Property Partnership Ltd,201702,Schools,Supplies & Services,
INSERTED DETAIL,11/05/2016,SI,4687329,"1,050.00",HC108866,Education Property Partnership Ltd,201702,Schools,Supplies & Services,
INSERTED DETAIL,18/05/2016,OI,3828867,950.00,HC108866,Education Property Partnership Ltd,201702,Schools,Supplies & Services,
INSERTED DETAIL,18/05/2016,OI,3829148,875.00,HC108866,Education Property Partnership Ltd,201702,Schools,Supplies & Services,
INSERTED DETAIL,20/05/2016,OI,3829496,875.00,HC108866,Education Property Partnership Ltd,201702,Schools,Supplies & Services,
INSERTED DETAIL,01/06/2016,OI,3830194,"1,600.00",HC108866,Education Property Partnership Ltd,201702,Schools,Supplies & Services,
INSERTED DETAIL,06/05/2016,OI,3828474,417.39,HC108869,Ogleby Butchers,201702,Schools,Supplies & Services,
INSERTED DETAIL,20/05/2016,GI,2110048,"2,799.30",HC108927,Queen Alexandra College,201702,Central Childrens Directorate Costs,Support Services,
INSERTED DETAIL,06/05/2016,OI,3828639,"1,095.00",HC108990,REDACTED,201702,Environment and Place,Transport-Related Expenditure,
INSERTED DETAIL,11/05/2016,OI,3828637,"1,215.00",HC108990,REDACTED,201702,Environment and Place,Transport-Related Expenditure,
INSERTED DETAIL,11/05/2016,OI,3828638,"1,417.50",HC108990,REDACTED,201702,Environment and Place,Transport-Related Expenditure,
INSERTED DETAIL,11/05/2016,SI,4687364,505.00,HC109084,CF Corporate Finance Ltd,201702,Schools,Supplies & Services,
INSERTED DETAIL,13/05/2016,SI,4687607,"8,182.94",HC109084,CF Corporate Finance Ltd,201702,Schools,Supplies & Services,
INSERTED DETAIL,04/05/2016,OI,3828410,"1,435.00",HC109089,Investec Asset Finance,201702,Schools,Supplies & Services,
INSERTED DETAIL,13/05/2016,OI,3829068,"2,604.00",HC109121,Red Spark Learning CIC,201702,Education and Commissioning,Supplies & Services,
INSERTED DETAIL,25/05/2016,SI,4688088,"3,165.45",HC109152,Relion Heating Services Ltd,201702,Schools,Premises-Related Expenditure,
INSERTED DETAIL,11/05/2016,OI,3828884,"1,950.25",HC109436,REDACTED,201702,Environment and Place,Transport-Related Expenditure,
INSERTED DETAIL,11/05/2016,OI,3828939,"1,192.50",HC109436,REDACTED,201702,Environment and Place,Transport-Related Expenditure,
INSERTED DETAIL,06/05/2016,SI,4687194,"2,880.00",HC109458,S C Joseph Ltd,201702,Schools,Premises-Related Expenditure,
INSERTED DETAIL,13/05/2016,SI,4687713,646.85,HC109484,S M Stanley Builders Ltd,201702,Schools,Premises-Related Expenditure,
INSERTED DETAIL,25/05/2016,SI,4688074,"1,100.00",HC109484,S M Stanley Builders Ltd,201702,Schools,Premises-Related Expenditure,
INSERTED DETAIL,26/05/2016,OI,3829911,"2,337.54",HC109484,S M Stanley Builders Ltd,201702,Schools,Premises-Related Expenditure,
INSERTED DETAIL,25/05/2016,SI,4688147,"14,272.25",HC109484,S M Stanley Builders Ltd,201702,Schools Devolved Capital,Capital Expenditure,
INSERTED DETAIL,13/05/2016,OI,3829166,500.00,HC109547,REDACTED,201702,Schools,Employees,
INSERTED DETAIL,11/05/2016,OI,3828585,595.00,HC109547,REDACTED,201702,Schools,Supplies & Services,
INSERTED DETAIL,13/05/2016,OI,3829117,450.00,HC109547,REDACTED,201702,Schools,Supplies & Services,
INSERTED DETAIL,26/05/2016,OI,3829917,480.00,HC109547,REDACTED,201702,Schools,Supplies & Services,
INSERTED DETAIL,18/05/2016,OI,3829275,"7,055.00",HC109622,Sargeants Brothers Ltd,201702,Environment and Place,Third Party Payments,
INSERTED DETAIL,25/05/2016,OI,3829885,"7,688.89",HC109622,Sargeants Brothers Ltd,201702,Environment and Place,Third Party Payments,
INSERTED DETAIL,25/05/2016,OI,3829894,639.60,HC109622,Sargeants Brothers Ltd,201702,Environment and Place,Third Party Payments,
INSERTED DETAIL,25/05/2016,OI,3829895,770.40,HC109622,Sargeants Brothers Ltd,201702,Environment and Place,Third Party Payments,
INSERTED DETAIL,20/05/2016,OI,3829460,"1,820.00",HC109622,Sargeants Brothers Ltd,201702,Environment and Place,Transport-Related Expenditure,
INSERTED DETAIL,20/05/2016,OI,3829461,"2,199.57",HC109622,Sargeants Brothers Ltd,201702,Environment and Place,Transport-Related Expenditure,
INSERTED DETAIL,01/06/2016,OI,3829464,"14,000.00",HC109622,Sargeants Brothers Ltd,201702,Environment and Place,Transport-Related Expenditure,
INSERTED DETAIL,13/05/2016,SI,4687611,"1,225.00",HC109660,Nicholas O'Sullivan T/A Fire and Risk Management Services,201702,Schools,Premises-Related Expenditure,
INSERTED DETAIL,04/05/2016,SI,4687149,500.00,HC109660,Nicholas O'Sullivan T/A Fire and Risk Management Services,201702,Schools,Supplies & Services,
INSERTED DETAIL,04/05/2016,SI,4687162,850.00,HC109660,Nicholas O'Sullivan T/A Fire and Risk Management Services,201702,Schools,Supplies & Services,
INSERTED DETAIL,11/05/2016,OI,3828787,"1,000.00",HC109660,Nicholas O'Sullivan T/A Fire and Risk Management Services,201702,Schools,Supplies & Services,
INSERTED DETAIL,11/05/2016,OI,3828961,500.00,HC109660,Nicholas O'Sullivan T/A Fire and Risk Management Services,201702,Schools,Supplies & Services,
INSERTED DETAIL,13/05/2016,OI,3829153,650.00,HC109660,Nicholas O'Sullivan T/A Fire and Risk Management Services,201702,Schools,Supplies & Services,
INSERTED DETAIL,20/05/2016,OI,3829581,500.00,HC109660,Nicholas O'Sullivan T/A Fire and Risk Management Services,201702,Schools,Supplies & Services,
INSERTED DETAIL,25/05/2016,OI,3829741,500.00,HC109660,Nicholas O'Sullivan T/A Fire and Risk Management Services,201702,Schools,Supplies & Services,
INSERTED DETAIL,04/05/2016,OI,3828427,"12,776.00",HC109663,Schoolscapes Ltd,201702,Schools,Premises-Related Expenditure,
INSERTED DETAIL,01/06/2016,SI,4688105,"3,641.70",HC109677,Scottish Power Group,201702,Environment and Place,Premises-Related Expenditure,
INSERTED DETAIL,18/05/2016,SI,4687847,"1,838.48",HC109726,Services For Independent Living,201702,Physical Disabilities,Third Party Payments,
INSERTED DETAIL,18/05/2016,SI,4687852,"1,838.48",HC109726,Services For Independent Living,201702,Physical Disabilities,Third Party Payments,
INSERTED DETAIL,11/05/2016,OI,3828408,"1,100.00",HC109739,Achievement for All (3As) Ltd,201702,Schools,Supplies & Services,
INSERTED DETAIL,04/05/2016,SI,4687133,419.25,HC109745,SF Software Ltd,201702,Schools,Supplies & Services,
INSERTED DETAIL,01/06/2016,OI,3830328,722.52,HC109745,SF Software Ltd,201702,Schools,Supplies & Services,
INSERTED DETAIL,11/05/2016,OI,3828748,438.25,HC109747,SG World Ltd,201702,Schools,Supplies & Services,
INSERTED DETAIL,11/05/2016,OI,3828887,420.00,HC109765,REDACTED,201702,Schools,Supplies & Services,
INSERTED DETAIL,11/05/2016,OI,3828891,"1,050.00",HC109765,REDACTED,201702,Schools,Supplies & Services,
INSERTED DETAIL,13/05/2016,SI,4687589,"1,155.00",HC109765,REDACTED,201702,Schools,Supplies & Services,
INSERTED DETAIL,25/05/2016,OI,3829859,420.00,HC109765,REDACTED,201702,Schools,Supplies & Services,
INSERTED DETAIL,25/05/2016,OI,3829860,595.00,HC109765,REDACTED,201702,Schools,Supplies & Services,
INSERTED DETAIL,26/05/2016,OI,3829958,475.00,HC109765,REDACTED,201702,Schools,Supplies & Services,
INSERTED DETAIL,13/05/2016,OI,3829107,"254,675.54",HC109769,Shaw Healthcare (Herefordshire) Ltd,201702,Physical Disabilities,Third Party Payments,
INSERTED DETAIL,18/05/2016,OI,3829302,429.00,HC109769,Shaw Healthcare (Herefordshire) Ltd,201702,Physical Disabilities,Third Party Payments,
INSERTED DETAIL,18/05/2016,OI,3829303,"1,905.90",HC109769,Shaw Healthcare (Herefordshire) Ltd,201702,Physical Disabilities,Third Party Payments,
INSERTED DETAIL,18/05/2016,OI,3829339,"4,785.85",HC109769,Shaw Healthcare (Herefordshire) Ltd,201702,Physical Disabilities,Third Party Payments,
INSERTED DETAIL,18/05/2016,OI,3829340,"57,407.35",HC109769,Shaw Healthcare (Herefordshire) Ltd,201702,Physical Disabilities,Third Party Payments,
INSERTED DETAIL,18/05/2016,OI,3829341,"4,960.00",HC109769,Shaw Healthcare (Herefordshire) Ltd,201702,Physical Disabilities,Third Party Payments,
INSERTED DETAIL,06/05/2016,OI,3828591,"7,928.25",HC109776,Shaw Trust,201702,Mental Health,Supplies & Services,
INSERTED DETAIL,04/05/2016,OI,3828375,"6,576.90",HC109826,Shropshire Council,201702,Education and Commissioning,Third Party Payments,
INSERTED DETAIL,04/05/2016,OI,3828376,"6,635.20",HC109826,Shropshire Council,201702,Education and Commissioning,Third Party Payments,
INSERTED DETAIL,04/05/2016,OI,3828377,682.00,HC109826,Shropshire Council,201702,Education and Commissioning,Third Party Payments,
INSERTED DETAIL,04/05/2016,OI,3828379,"6,512.00",HC109826,Shropshire Council,201702,Education and Commissioning,Third Party Payments,
INSERTED DETAIL,20/05/2016,SI,4687893,"9,516.05",HC109826,Shropshire Council,201702,Environment and Place,Third Party Payments,
INSERTED DETAIL,20/05/2016,OI,3829491,"2,289.00",HC109826,Shropshire Council,201702,Schools,Supplies & Services,
INSERTED DETAIL,20/05/2016,SI,4687987,"6,149.00",HC109826,Shropshire Council,201702,Schools,Supplies & Services,
INSERTED DETAIL,18/05/2016,OI,3829313,489.34,HC109835,Siemens Financial Services Ltd,201702,Schools,Supplies & Services,
INSERTED DETAIL,25/05/2016,OI,3829706,500.00,HC109848,Sign-Rite Uk Ltd,201702,Growth Capital,Capital Expenditure,
INSERTED DETAIL,13/05/2016,OI,3829012,800.00,HC109912,Snowdome Ltd,201702,Schools,Supplies & Services,
INSERTED DETAIL,04/05/2016,OI,3828243,467.32,HC109997,Spa Gas Ltd,201702,Schools,Premises-Related Expenditure,
INSERTED DETAIL,20/05/2016,SI,4687974,673.00,HC109997,Spa Gas Ltd,201702,Schools,Premises-Related Expenditure,
INSERTED DETAIL,04/05/2016,OI,3828397,618.00,HC110034,Superstars/Sports Stars Ltd,201702,Schools,Supplies & Services,
INSERTED DETAIL,06/05/2016,OI,3828578,936.00,HC110034,Superstars/Sports Stars Ltd,201702,Schools,Supplies & Services,
INSERTED DETAIL,11/05/2016,SI,4687488,540.00,HC110034,Superstars/Sports Stars Ltd,201702,Schools,Supplies & Services,
INSERTED DETAIL,26/05/2016,OI,3830114,618.00,HC110034,Superstars/Sports Stars Ltd,201702,Schools,Supplies & Services,
INSERTED DETAIL,20/05/2016,SI,4688019,"3,278.00",HC110046,SRJ Plumbing & Heating,201702,Housing & Independent Living Capital,Capital Expenditure,
INSERTED DETAIL,26/05/2016,OI,3830102,700.00,HC110079,Aerial - Cam Ltd,201702,Environment and Place,Supplies & Services,
INSERTED DETAIL,20/05/2016,GI,2109902,458.33,HC110083,St Mary's R C High School,201702,Central Childrens Directorate Costs,Support Services,
INSERTED DETAIL,20/05/2016,GI,2109978,458.33,HC110083,St Mary's R C High School,201702,Central Childrens Directorate Costs,Support Services,
INSERTED DETAIL,13/05/2016,SI,4687719,"8,438.80",HC110083,St Mary's R C High School,201702,Schools,Supplies & Services,
INSERTED DETAIL,11/05/2016,SI,4687426,"1,045.00",HC110092,St Pauls Nursery Group,201702,Education and Commissioning,Transfer Payments,
INSERTED DETAIL,25/05/2016,OI,3829890,"3,516.00",HC110117,Stagecoach Services Limited,201702,Environment and Place,Third Party Payments,
INSERTED DETAIL,11/05/2016,OI,3828941,"19,545.84",HC110117,Stagecoach Services Limited,201702,Environment and Place,Transport-Related Expenditure,
INSERTED DETAIL,13/05/2016,OI,3828781,624.97,HC110160,REDACTED,201702,Schools,Supplies & Services,
INSERTED DETAIL,13/05/2016,SI,4687722,831.60,HC110250,RJ & RB Mailes,201702,Schools,Supplies & Services,
INSERTED DETAIL,01/06/2016,OI,3830548,500.00,HC110273,Sunderlands & Thompsons LLP,201702,Resources,Supplies & Services,
INSERTED DETAIL,04/05/2016,GI,2104608,"9,590.30",HC110287,Support Services - Legal,201702,Communities,Supplies & Services,
INSERTED DETAIL,01/06/2016,GI,2113037,"6,365.00",HC110287,Support Services - Legal,201702,Communities,Supplies & Services,
INSERTED DETAIL,01/06/2016,GI,2113037,"2,836.00",HC110287,Support Services - Legal,201702,Environment and Place,Supplies & Services,
INSERTED DETAIL,11/05/2016,SI,4687427,"1,254.00",HC110322,Sutton Seedlings,201702,Education and Commissioning,Transfer Payments,
INSERTED DETAIL,20/05/2016,OI,3829605,"1,900.00",HC110372,T S Matthews & Son (Bartonsham Farm Dairies),201702,Schools,Supplies & Services,
INSERTED DETAIL,25/05/2016,OI,3829046,593.84,HC110372,T S Matthews & Son (Bartonsham Farm Dairies),201702,Schools,Supplies & Services,
INSERTED DETAIL,04/05/2016,OI,3828318,"2,000.00",HC110386,REDACTED,201702,Schools,Employees,
INSERTED DETAIL,06/05/2016,OI,3828695,"1,850.00",HC110386,REDACTED,201702,Schools,Supplies & Services,
INSERTED DETAIL,01/06/2016,OI,3830188,"3,500.00",HC110403,Tarmac,201702,Resources,Premises-Related Expenditure,
INSERTED DETAIL,25/05/2016,OI,3829918,749.00,HC110424,Teachers2parents Ltd,201702,Schools,Supplies & Services,
INSERTED DETAIL,01/06/2016,OI,3830240,"3,638.26",HC110431,Business Angel Ltd,201702,Education and Commissioning,Supplies & Services,
INSERTED DETAIL,13/05/2016,SI,4687602,660.00,HC110459,The Key Support Services Ltd,201702,Schools,Supplies & Services,
INSERTED DETAIL,25/05/2016,OI,3828875,981.75,HC110459,The Key Support Services Ltd,201702,Schools,Supplies & Services,
INSERTED DETAIL,01/06/2016,OI,3830142,981.75,HC110459,The Key Support Services Ltd,201702,Schools,Supplies & Services,
INSERTED DETAIL,13/05/2016,OI,3829209,"1,298.40",HC110473,Phoenix Software Ltd,201702,Schools,Supplies & Services,
INSERTED DETAIL,06/05/2016,SI,4687233,"1,050.00",HC110504,The Award Scheme Ltd,201702,Schools,Supplies & Services,
INSERTED DETAIL,20/05/2016,SI,4687943,"1,850.00",HC110546,The Carnival Arts Group,201702,Environment and Place,Supplies & Services,
INSERTED DETAIL,01/06/2016,OI,3830180,"1,425.00",HC110573,The Courtyard Trust,201702,Schools,Supplies & Services,
INSERTED DETAIL,13/05/2016,OI,3829200,593.13,HC110583,The Danwood Group Limited,201702,Schools,Supplies & Services,
INSERTED DETAIL,26/05/2016,SI,4688235,443.01,HC110583,The Danwood Group Limited,201702,Schools,Supplies & Services,
INSERTED DETAIL,20/05/2016,GI,2109789,458.33,HC110648,BAE Trust T/A The Hereford Academy,201702,Central Childrens Directorate Costs,Support Services,
INSERTED DETAIL,20/05/2016,GI,2109790,458.33,HC110648,BAE Trust T/A The Hereford Academy,201702,Central Childrens Directorate Costs,Support Services,
INSERTED DETAIL,20/05/2016,GI,2109904,458.33,HC110648,BAE Trust T/A The Hereford Academy,201702,Central Childrens Directorate Costs,Support Services,
INSERTED DETAIL,20/05/2016,GI,2109927,458.33,HC110648,BAE Trust T/A The Hereford Academy,201702,Central Childrens Directorate Costs,Support Services,
INSERTED DETAIL,20/05/2016,GI,2110002,458.33,HC110648,BAE Trust T/A The Hereford Academy,201702,Central Childrens Directorate Costs,Support Services,
INSERTED DETAIL,25/05/2016,OI,3829934,630.00,HC110658,The Houghton Project,201702,Education and Commissioning,Supplies & Services,
INSERTED DETAIL,04/05/2016,OI,3828388,"1,725.00",HC110658,The Houghton Project,201702,Education and Commissioning,Third Party Payments,
INSERTED DETAIL,01/06/2016,OI,3830552,"1,380.00",HC110658,The Houghton Project,201702,Education and Commissioning,Third Party Payments,
INSERTED DETAIL,26/05/2016,SI,4688241,433.25,HC110681,The Living Rainforest,201702,Schools,Supplies & Services,
INSERTED DETAIL,25/05/2016,OI,3829971,700.00,HC110692,The Messaging Centre Ltd,201702,Environment and Place,Supplies & Services,
INSERTED DETAIL,06/05/2016,OI,3828562,691.50,HC110717,The NST Travel Group Plc,201702,Schools,Supplies & Services,
INSERTED DETAIL,03/06/2016,GI,2108606,"2,156.22",HC110743,The Plynlimon Trust Community Car Scheme,201702,Environment and Place,Supplies & Services,
INSERTED DETAIL,18/05/2016,OI,3829234,996.75,HC110743,The Plynlimon Trust Community Car Scheme,201702,Environment and Place,Transport-Related Expenditure,
INSERTED DETAIL,18/05/2016,OI,3829235,"2,142.60",HC110743,The Plynlimon Trust Community Car Scheme,201702,Environment and Place,Transport-Related Expenditure,
INSERTED DETAIL,18/05/2016,OI,3829236,620.25,HC110743,The Plynlimon Trust Community Car Scheme,201702,Environment and Place,Transport-Related Expenditure,
INSERTED DETAIL,04/05/2016,OI,3828219,"1,190.50",HC110786,The South Wye Development Trust Ltd,201702,Resources,Premises-Related Expenditure,
INSERTED DETAIL,20/05/2016,GI,2109794,458.33,HC110794,The Steiner Academy Hereford,201702,Central Childrens Directorate Costs,Support Services,
INSERTED DETAIL,20/05/2016,GI,2109954,458.33,HC110794,The Steiner Academy Hereford,201702,Central Childrens Directorate Costs,Support Services,
INSERTED DETAIL,01/06/2016,OI,3830490,"1,070.00",HC110794,The Steiner Academy Hereford,201702,Education and Commissioning,Support Services,
INSERTED DETAIL,01/06/2016,OI,3830491,535.00,HC110794,The Steiner Academy Hereford,201702,Education and Commissioning,Support Services,
INSERTED DETAIL,11/05/2016,OI,3827440,547.93,HC110854,Alcontrol UK Ltd,201702,Environment and Place,Supplies & Services,
INSERTED DETAIL,11/05/2016,OI,3828630,892.46,HC110854,Alcontrol UK Ltd,201702,Environment and Place,Supplies & Services,
INSERTED DETAIL,01/06/2016,OI,3830336,478.05,HC110854,Alcontrol UK Ltd,201702,Environment and Place,Supplies & Services,
INSERTED DETAIL,25/05/2016,OI,3829699,"7,608.00",HC110861,Thomson Reuters (Professional) UK Ltd,201702,Communities,Supplies & Services,
INSERTED DETAIL,20/05/2016,OI,3829535,"4,741.39",HC110975,Tradebe  Gwent Ltd,201702,Environment and Place,Supplies & Services,
INSERTED DETAIL,06/05/2016,SI,4687298,680.00,HC111004,Trend Control Systems Limited,201702,Schools,Premises-Related Expenditure,
INSERTED DETAIL,13/05/2016,OI,3828996,660.00,HC111004,Trend Control Systems Limited,201702,Schools,Supplies & Services,
INSERTED DETAIL,11/05/2016,SI,4687430,487.00,HC111022,Trinity Extended Services CIC 1 Nursery,201702,Education and Commissioning,Transfer Payments,
INSERTED DETAIL,11/05/2016,SI,4687336,"5,634.68",HC111024,Trinity Primary School (Imprest/Petty Cash),201702,Schools,Supplies & Services,
INSERTED DETAIL,01/06/2016,OI,3830181,475.18,HC111062,Tucasi Limited,201702,Schools,Supplies & Services,
INSERTED DETAIL,13/05/2016,SI,4687537,"2,505.08",HC111157,Updata Infrastructure UK Ltd,201702,Resources,Supplies & Services,
INSERTED DETAIL,06/05/2016,OI,3828563,875.00,HC111192,Marlbrook Collaboration,201702,Education and Commissioning,Support Services,
INSERTED DETAIL,11/05/2016,OI,3828705,"1,125.00",HC111203,Venture Taxi Services Ltd,201702,Environment and Place,Transport-Related Expenditure,
INSERTED DETAIL,13/05/2016,SI,4687603,679.95,HC111204,Veolia ES Onyx Ltd,201702,Schools,Third Party Payments,
INSERTED DETAIL,13/05/2016,OI,3829188,"3,825.00",HC111283,W F Howes Ltd,201702,Communities,Supplies & Services,
INSERTED DETAIL,11/05/2016,OI,3828745,"6,624.03",HC111332,Warwickshire County Council,201702,Communities,Supplies & Services,
INSERTED DETAIL,01/06/2016,OI,3830546,"2,137.50",HC111340,Waterstones,201702,Schools,Supplies & Services,
INSERTED DETAIL,04/05/2016,SI,4687167,"21,500.00",HC111373,Wellington Parish Council,201702,Resources Capital,Capital Income,
INSERTED DETAIL,25/05/2016,SI,4688094,"2,004.60",HC111377,Welsh Joint Education Committee,201702,Schools,Supplies & Services,
INSERTED DETAIL,01/06/2016,SI,4688266,"1,264.44",HC111377,Welsh Joint Education Committee,201702,Schools,Supplies & Services,
INSERTED DETAIL,01/06/2016,SI,4688267,462.60,HC111377,Welsh Joint Education Committee,201702,Schools,Supplies & Services,
INSERTED DETAIL,06/05/2016,SI,4687076,"1,302.07",HC111380,Welsh Water,201702,Environment and Place,Premises-Related Expenditure,
INSERTED DETAIL,06/05/2016,SI,4687171,"1,315.08",HC111380,Welsh Water,201702,Environment and Place,Premises-Related Expenditure,
INSERTED DETAIL,18/05/2016,SI,4686469,475.76,HC111380,Welsh Water,201702,Environment and Place,Premises-Related Expenditure,
INSERTED DETAIL,18/05/2016,SI,4686472,453.65,HC111380,Welsh Water,201702,Environment and Place,Premises-Related Expenditure,
INSERTED DETAIL,20/05/2016,SI,4686456,"1,566.80",HC111380,Welsh Water,201702,Environment and Place,Premises-Related Expenditure,
INSERTED DETAIL,26/05/2016,SI,4687173,419.69,HC111380,Welsh Water,201702,Environment and Place,Premises-Related Expenditure,
INSERTED DETAIL,04/05/2016,SI,4686465,777.27,HC111380,Welsh Water,201702,Resources,Premises-Related Expenditure,
INSERTED DETAIL,04/05/2016,OI,3828401,440.05,HC111380,Welsh Water,201702,Schools,Premises-Related Expenditure,
INSERTED DETAIL,11/05/2016,OI,3828434,510.09,HC111380,Welsh Water,201702,Schools,Premises-Related Expenditure,
INSERTED DETAIL,11/05/2016,OI,3828774,"2,714.78",HC111380,Welsh Water,201702,Schools,Premises-Related Expenditure,
INSERTED DETAIL,13/05/2016,OI,3829008,"1,082.29",HC111380,Welsh Water,201702,Schools,Premises-Related Expenditure,
INSERTED DETAIL,18/05/2016,OI,3828873,713.16,HC111380,Welsh Water,201702,Schools,Premises-Related Expenditure,
INSERTED DETAIL,18/05/2016,SI,4687817,"1,969.18",HC111380,Welsh Water,201702,Schools,Premises-Related Expenditure,
INSERTED DETAIL,18/05/2016,SI,4687818,429.89,HC111380,Welsh Water,201702,Schools,Premises-Related Expenditure,
INSERTED DETAIL,19/05/2016,SI,4687921,"7,100.00",HC111380,Welsh Water,201702,Schools,Premises-Related Expenditure,
INSERTED DETAIL,19/05/2016,SI,4687922,"7,100.00",HC111380,Welsh Water,201702,Schools,Premises-Related Expenditure,
INSERTED DETAIL,25/05/2016,SI,4688039,614.00,HC111382,Welsh Water (CIS ONLY),201702,Growth Capital,Capital Expenditure,
INSERTED DETAIL,25/05/2016,OI,3829633,430.50,HC111396,Wenlock Spring Water Ltd,201702,Schools,Supplies & Services,
INSERTED DETAIL,20/05/2016,GI,2106264,534.69,HC111402,Weobley High School Petty Cash,201702,Schools,Premises-Related Expenditure,
INSERTED DETAIL,18/05/2016,GI,2108986,"2,230.49",HC111402,Weobley High School Petty Cash,201702,Schools,Supplies & Services,
INSERTED DETAIL,20/05/2016,GI,2106264,"2,141.39",HC111402,Weobley High School Petty Cash,201702,Schools,Supplies & Services,
INSERTED DETAIL,26/05/2016,SI,4688177,"3,664.00",HC111404,Weobley Parish Council,201702,Environment and Place,Third Party Payments,
INSERTED DETAIL,20/05/2016,OI,3829436,"29,706.58",HC111414,West Mercia  Womens Aid,201702,Commissioning Adults,Supplies & Services,
INSERTED DETAIL,20/05/2016,OI,3829437,"29,706.58",HC111414,West Mercia  Womens Aid,201702,Commissioning Adults,Supplies & Services,
INSERTED DETAIL,01/06/2016,OI,3830185,"17,533.34",HC111420,West Mercia Homes Ltd,201702,Commissioning Adults,Supplies & Services,
INSERTED DETAIL,18/05/2016,SI,4687827,"1,284,956.00",HC111421,West Mercia Police & Crime Commissioner,201702,Collection Fund,Collection Fund Accounts,
INSERTED DETAIL,18/05/2016,OI,3829293,517.18,HC111426,West Mercia Supplies (The Consortium),201702,Schools,Premises-Related Expenditure,
INSERTED DETAIL,20/05/2016,OI,3829548,463.63,HC111426,West Mercia Supplies (The Consortium),201702,Schools,Premises-Related Expenditure,
INSERTED DETAIL,25/05/2016,SI,4688046,498.88,HC111426,West Mercia Supplies (The Consortium),201702,Schools,Premises-Related Expenditure,
INSERTED DETAIL,13/05/2016,OI,3829006,"1,381.61",HC111426,West Mercia Supplies (The Consortium),201702,Schools,Supplies & Services,
INSERTED DETAIL,13/05/2016,OI,3829167,592.17,HC111426,West Mercia Supplies (The Consortium),201702,Schools,Supplies & Services,
INSERTED DETAIL,18/05/2016,OI,3829004,582.22,HC111426,West Mercia Supplies (The Consortium),201702,Schools,Supplies & Services,
INSERTED DETAIL,18/05/2016,OI,3829231,"1,040.75",HC111426,West Mercia Supplies (The Consortium),201702,Schools,Supplies & Services,
INSERTED DETAIL,01/06/2016,OI,3830469,"3,375.00",HC111431,West Midlands Employers,201702,Resources,Supplies & Services,
INSERTED DETAIL,13/05/2016,OI,3829110,"1,150.00",HC111440,Westcom Business Communications Ltd,201702,Communities,Supplies & Services,
INSERTED DETAIL,04/05/2016,SI,4687174,"237,080.88",HC111489,Whitecross@Stepnell Ltd,201702,Education and Commissioning,Premises-Related Expenditure,
INSERTED DETAIL,16/05/2016,SI,4687738,"238,529.96",HC111489,Whitecross@Stepnell Ltd,201702,Education and Commissioning,Premises-Related Expenditure,
INSERTED DETAIL,20/05/2016,GI,2109772,458.33,HC111508,Wigmore High School (Academy),201702,Central Childrens Directorate Costs,Support Services,
INSERTED DETAIL,01/06/2016,OI,3830519,500.00,HC111508,Wigmore High School (Academy),201702,Schools,Employees,
INSERTED DETAIL,20/05/2016,SI,4687956,"1,520.30",HC111508,Wigmore High School (Academy),201702,Schools,Supplies & Services,
INSERTED DETAIL,25/05/2016,OI,3829796,673.30,HC111536,Cycle Training Affinity Ltd,201702,Environment and Place,Supplies & Services,
INSERTED DETAIL,01/06/2016,SI,4688282,"4,158.00",HC111559,Withington Group Parish Council,201702,Environment and Place,Third Party Payments,
INSERTED DETAIL,31/03/2016,SI,4688288,"1,669.00",HC111592,Woolhope Parish Council,201702,Environment and Place,Third Party Payments,
INSERTED DETAIL,26/05/2016,SI,4688178,"1,669.00",HC111592,Woolhope Parish Council,201702,Environment and Place,Third Party Payments,
INSERTED DETAIL,26/05/2016,OI,3830039,"2,000.00",HC111597,Worcester Research Ltd,201702,Growth,Supplies & Services,
INSERTED DETAIL,17/05/2016,SI,4687788,"40,750.00",HC111602,Worcestershire County Council Pension Fund,201702,Corporate,Employees,
INSERTED DETAIL,25/05/2016,SI,4687917,"24,516.58",HC111603,Worcestershire County Council,201702,Corporate,Employees,
INSERTED DETAIL,25/05/2016,OI,3829656,"10,000.00",HC111603,Worcestershire County Council,201702,Director and Management,Supplies & Services,
INSERTED DETAIL,01/06/2016,OI,3830582,525.00,HC111603,Worcestershire County Council,201702,Education and Commissioning,Support Services,
INSERTED DETAIL,20/05/2016,OI,3829536,"2,830.80",HC111603,Worcestershire County Council,201702,Environment and Place,Third Party Payments,
INSERTED DETAIL,11/05/2016,SI,4687429,630.00,HC111648,Wye Nursery,201702,Education and Commissioning,Transfer Payments,
INSERTED DETAIL,01/06/2016,OI,3830581,"1,383.16",HC111665,XMA Ltd,201702,Communities,Supplies & Services,
INSERTED DETAIL,18/05/2016,OI,3829277,"1,854.56",HC111685,Yeomans Travel Ltd,201702,Environment and Place,Third Party Payments,
INSERTED DETAIL,06/05/2016,OI,3828691,"30,871.53",HC111685,Yeomans Travel Ltd,201702,Environment and Place,Transport-Related Expenditure,
INSERTED DETAIL,11/05/2016,OI,3828958,"1,762.50",HC111685,Yeomans Travel Ltd,201702,Environment and Place,Transport-Related Expenditure,
INSERTED DETAIL,01/06/2016,OI,3829227,450.00,HC111685,Yeomans Travel Ltd,201702,Environment and Place,Transport-Related Expenditure,
INSERTED DETAIL,20/05/2016,OI,3829562,"2,205.00",HC111685,Yeomans Travel Ltd,201702,Schools,Supplies & Services,
INSERTED DETAIL,20/05/2016,GI,2109894,458.33,HC111701,Whitecross Hereford Academy,201702,Central Childrens Directorate Costs,Support Services,
INSERTED DETAIL,20/05/2016,GI,2110006,458.33,HC111701,Whitecross Hereford Academy,201702,Central Childrens Directorate Costs,Support Services,
INSERTED DETAIL,04/05/2016,OI,3828273,"2,143.47",HC111775,Compass Minerals UK Limited,201702,Environment and Place,Supplies & Services,
INSERTED DETAIL,04/05/2016,OI,3828274,"2,191.64",HC111775,Compass Minerals UK Limited,201702,Environment and Place,Supplies & Services,
INSERTED DETAIL,11/05/2016,OI,3828276,"1,070.13",HC111775,Compass Minerals UK Limited,201702,Environment and Place,Supplies & Services,
INSERTED DETAIL,01/06/2016,OI,3830214,450.00,HC111804,Newton Farm Community Association,201702,Growth,Supplies & Services,
INSERTED DETAIL,04/05/2016,SI,4687156,"4,181.26",HC111920,Metalliform Holdings Limited,201702,Schools,Premises-Related Expenditure,
INSERTED DETAIL,03/06/2016,GI,2108600,"1,612.48",HC111924,Bromyard Community Transport Ltd,201702,Environment and Place,Supplies & Services,
INSERTED DETAIL,04/05/2016,OI,3828060,"1,039.50",HC111924,Bromyard Community Transport Ltd,201702,Environment and Place,Transport-Related Expenditure,
INSERTED DETAIL,04/05/2016,OI,3828062,"1,097.25",HC111924,Bromyard Community Transport Ltd,201702,Environment and Place,Transport-Related Expenditure,
INSERTED DETAIL,04/05/2016,OI,3825499,444.50,HC111941,Yorkshire Purchasing,201702,Schools,Premises-Related Expenditure,
INSERTED DETAIL,01/06/2016,OI,3830368,"1,199.39",HC111941,Yorkshire Purchasing,201702,Schools,Supplies & Services,
INSERTED DETAIL,25/05/2016,OI,3829970,"1,000.00",HC111997,SMS Energy Services,201702,Growth Capital,Capital Expenditure,
INSERTED DETAIL,26/05/2016,OI,3829818,"1,000.00",HC111997,SMS Energy Services,201702,Growth Capital,Capital Expenditure,
INSERTED DETAIL,13/05/2016,OI,3829156,430.00,HC112034,YHA London Thameside,201702,Schools,Supplies & Services,
INSERTED DETAIL,03/06/2016,GI,2108601,"2,268.76",HC112080,CVS Ledbury & District (Ledbury Ring & Ride),201702,Environment and Place,Supplies & Services,
INSERTED DETAIL,12/05/2016,SI,4688151,"30,000.00",HC112120,Desperate Men Ltd,201702,Environment and Place,Supplies & Services,
INSERTED DETAIL,25/05/2016,SI,4688152,"3,000.00",HC112120,Desperate Men Ltd,201702,Environment and Place,Supplies & Services,
INSERTED DETAIL,25/05/2016,SI,4688159,"3,000.00",HC112120,Desperate Men Ltd,201702,Environment and Place,Supplies & Services,
INSERTED DETAIL,06/05/2016,SI,4687185,560.00,HC112240,You Time Counselling Trust,201702,Schools,Supplies & Services,
INSERTED DETAIL,26/05/2016,OI,3830040,560.00,HC112240,You Time Counselling Trust,201702,Schools,Supplies & Services,
INSERTED DETAIL,11/05/2016,SI,4687406,625.00,HC112316,Imagination Station Pre-School,201702,Education and Commissioning,Transfer Payments,
INSERTED DETAIL,20/05/2016,SI,4687928,556.75,HC112412,Forward Products,201702,Schools,Supplies & Services,
INSERTED DETAIL,25/05/2016,SI,4688085,445.00,HC112412,Forward Products,201702,Schools,Supplies & Services,
INSERTED DETAIL,01/06/2016,OI,3830245,489.00,HC112412,Forward Products,201702,Schools,Supplies & Services,
INSERTED DETAIL,13/05/2016,SI,4687711,575.00,HC112440,Hereford Asbestos Services Ltd,201702,Schools,Premises-Related Expenditure,
INSERTED DETAIL,06/05/2016,SI,4687161,420.00,HC112536,REDACTED,201702,Schools,Premises-Related Expenditure,
INSERTED DETAIL,18/05/2016,OI,3828922,581.18,HC112576,University Of Wolverhampton,201702,Adults Operations,Supplies & Services,
INSERTED DETAIL,18/05/2016,OI,3828923,581.18,HC112576,University Of Wolverhampton,201702,Adults Operations,Supplies & Services,
INSERTED DETAIL,18/05/2016,OI,3828924,581.18,HC112576,University Of Wolverhampton,201702,Adults Operations,Supplies & Services,
INSERTED DETAIL,18/05/2016,OI,3828925,581.18,HC112576,University Of Wolverhampton,201702,Adults Operations,Supplies & Services,
INSERTED DETAIL,18/05/2016,OI,3828926,581.18,HC112576,University Of Wolverhampton,201702,Adults Operations,Supplies & Services,
INSERTED DETAIL,20/05/2016,GI,2110049,835.42,HC112582,Royal National College,201702,Central Childrens Directorate Costs,Support Services,
INSERTED DETAIL,20/05/2016,GI,2110058,962.67,HC112582,Royal National College,201702,Central Childrens Directorate Costs,Support Services,
INSERTED DETAIL,06/05/2016,SI,4687188,"1,300.00",HC112594,Andrell Education Ltd,201702,Schools,Supplies & Services,
INSERTED DETAIL,20/05/2016,SI,4687931,609.50,HC112594,Andrell Education Ltd,201702,Schools,Supplies & Services,
INSERTED DETAIL,11/05/2016,OI,3828897,999.00,HC112667,School Pupil Tracker Ltd,201702,Schools,Supplies & Services,
INSERTED DETAIL,13/05/2016,OI,3829173,999.00,HC112667,School Pupil Tracker Ltd,201702,Schools,Supplies & Services,
INSERTED DETAIL,18/05/2016,OI,3829326,803.25,HC112667,School Pupil Tracker Ltd,201702,Schools,Supplies & Services,
INSERTED DETAIL,18/05/2016,OI,3829328,"1,055.00",HC112667,School Pupil Tracker Ltd,201702,Schools,Supplies & Services,
INSERTED DETAIL,01/06/2016,OI,3830559,999.00,HC112667,School Pupil Tracker Ltd,201702,Schools,Supplies & Services,
INSERTED DETAIL,01/06/2016,SI,4688331,"1,805.19",HC112681,REDACTED,201702,Growth,Supplies & Services,
INSERTED DETAIL,26/05/2016,OI,3829946,547.20,HC112921,Ancer Spa Ltd,201702,Growth,Third Party Payments,
INSERTED DETAIL,04/05/2016,OI,3828390,420.00,HC112977,Brightstripe - Cultural Health CIC,201702,Education and Commissioning,Supplies & Services,
INSERTED DETAIL,04/05/2016,OI,3828391,455.00,HC112977,Brightstripe - Cultural Health CIC,201702,Education and Commissioning,Supplies & Services,
INSERTED DETAIL,25/05/2016,OI,3829982,420.00,HC112977,Brightstripe - Cultural Health CIC,201702,Education and Commissioning,Supplies & Services,
INSERTED DETAIL,18/05/2016,OI,3829450,853.60,HC112977,Brightstripe - Cultural Health CIC,201702,Public Health,Transfer Payments,
INSERTED DETAIL,26/05/2016,OI,3829986,"2,000.00",HC112995,Landmark Information Group Ltd,201702,Environment and Place,Supplies & Services,
INSERTED DETAIL,06/05/2016,GI,2105164,460.10,HC113047,Children's Social Care,201702,Safeguarding and Family Support,Third Party Payments,
INSERTED DETAIL,20/05/2016,GI,2110117,458.33,HC113733,Canon Pyon CE Academy,201702,Central Childrens Directorate Costs,Support Services,
INSERTED DETAIL,26/05/2016,SI,4688246,"2,625.00",HC113885,University of Cambridge (UCLES),201702,Schools,Supplies & Services,
INSERTED DETAIL,20/05/2016,GI,2109797,"1,033.33",HC113960,Barrs Court Academy,201702,Central Childrens Directorate Costs,Support Services,
INSERTED DETAIL,20/05/2016,GI,2109798,"1,033.33",HC113960,Barrs Court Academy,201702,Central Childrens Directorate Costs,Support Services,
INSERTED DETAIL,20/05/2016,GI,2109799,"1,033.33",HC113960,Barrs Court Academy,201702,Central Childrens Directorate Costs,Support Services,
INSERTED DETAIL,20/05/2016,GI,2109800,"1,033.33",HC113960,Barrs Court Academy,201702,Central Childrens Directorate Costs,Support Services,
INSERTED DETAIL,20/05/2016,GI,2109801,458.33,HC113960,Barrs Court Academy,201702,Central Childrens Directorate Costs,Support Services,
INSERTED DETAIL,20/05/2016,GI,2109802,719.17,HC113960,Barrs Court Academy,201702,Central Childrens Directorate Costs,Support Services,
INSERTED DETAIL,20/05/2016,GI,2109803,719.17,HC113960,Barrs Court Academy,201702,Central Childrens Directorate Costs,Support Services,
INSERTED DETAIL,20/05/2016,GI,2109804,458.33,HC113960,Barrs Court Academy,201702,Central Childrens Directorate Costs,Support Services,
INSERTED DETAIL,20/05/2016,GI,2109805,719.17,HC113960,Barrs Court Academy,201702,Central Childrens Directorate Costs,Support Services,
INSERTED DETAIL,20/05/2016,GI,2109806,"1,033.33",HC113960,Barrs Court Academy,201702,Central Childrens Directorate Costs,Support Services,
INSERTED DETAIL,20/05/2016,GI,2109807,"1,033.33",HC113960,Barrs Court Academy,201702,Central Childrens Directorate Costs,Support Services,
INSERTED DETAIL,20/05/2016,GI,2109808,719.17,HC113960,Barrs Court Academy,201702,Central Childrens Directorate Costs,Support Services,
INSERTED DETAIL,20/05/2016,GI,2109809,"1,033.33",HC113960,Barrs Court Academy,201702,Central Childrens Directorate Costs,Support Services,
INSERTED DETAIL,20/05/2016,GI,2109810,458.33,HC113960,Barrs Court Academy,201702,Central Childrens Directorate Costs,Support Services,
INSERTED DETAIL,20/05/2016,GI,2109811,"1,399.17",HC113960,Barrs Court Academy,201702,Central Childrens Directorate Costs,Support Services,
INSERTED DETAIL,20/05/2016,GI,2109812,719.17,HC113960,Barrs Court Academy,201702,Central Childrens Directorate Costs,Support Services,
INSERTED DETAIL,20/05/2016,GI,2109813,719.17,HC113960,Barrs Court Academy,201702,Central Childrens Directorate Costs,Support Services,
INSERTED DETAIL,20/05/2016,GI,2109814,"1,033.33",HC113960,Barrs Court Academy,201702,Central Childrens Directorate Costs,Support Services,
INSERTED DETAIL,20/05/2016,GI,2109815,719.17,HC113960,Barrs Court Academy,201702,Central Childrens Directorate Costs,Support Services,
INSERTED DETAIL,20/05/2016,GI,2109816,719.17,HC113960,Barrs Court Academy,201702,Central Childrens Directorate Costs,Support Services,
INSERTED DETAIL,20/05/2016,GI,2109817,458.33,HC113960,Barrs Court Academy,201702,Central Childrens Directorate Costs,Support Services,
INSERTED DETAIL,20/05/2016,GI,2109818,"1,033.33",HC113960,Barrs Court Academy,201702,Central Childrens Directorate Costs,Support Services,
INSERTED DETAIL,20/05/2016,GI,2109819,"1,033.33",HC113960,Barrs Court Academy,201702,Central Childrens Directorate Costs,Support Services,
INSERTED DETAIL,20/05/2016,GI,2109820,719.17,HC113960,Barrs Court Academy,201702,Central Childrens Directorate Costs,Support Services,
INSERTED DETAIL,20/05/2016,GI,2109821,719.17,HC113960,Barrs Court Academy,201702,Central Childrens Directorate Costs,Support Services,
INSERTED DETAIL,20/05/2016,GI,2109822,"1,033.33",HC113960,Barrs Court Academy,201702,Central Childrens Directorate Costs,Support Services,
INSERTED DETAIL,20/05/2016,GI,2109823,"1,033.33",HC113960,Barrs Court Academy,201702,Central Childrens Directorate Costs,Support Services,
INSERTED DETAIL,20/05/2016,GI,2109824,719.17,HC113960,Barrs Court Academy,201702,Central Childrens Directorate Costs,Support Services,
INSERTED DETAIL,20/05/2016,GI,2109825,"1,399.17",HC113960,Barrs Court Academy,201702,Central Childrens Directorate Costs,Support Services,
INSERTED DETAIL,20/05/2016,GI,2109826,"1,033.33",HC113960,Barrs Court Academy,201702,Central Childrens Directorate Costs,Support Services,
INSERTED DETAIL,20/05/2016,GI,2109827,"1,033.33",HC113960,Barrs Court Academy,201702,Central Childrens Directorate Costs,Support Services,
INSERTED DETAIL,20/05/2016,GI,2109828,458.33,HC113960,Barrs Court Academy,201702,Central Childrens Directorate Costs,Support Services,
INSERTED DETAIL,20/05/2016,GI,2109829,719.17,HC113960,Barrs Court Academy,201702,Central Childrens Directorate Costs,Support Services,
INSERTED DETAIL,20/05/2016,GI,2109830,458.33,HC113960,Barrs Court Academy,201702,Central Childrens Directorate Costs,Support Services,
INSERTED DETAIL,20/05/2016,GI,2109831,"1,033.33",HC113960,Barrs Court Academy,201702,Central Childrens Directorate Costs,Support Services,
INSERTED DETAIL,20/05/2016,GI,2109832,458.33,HC113960,Barrs Court Academy,201702,Central Childrens Directorate Costs,Support Services,
INSERTED DETAIL,20/05/2016,GI,2109833,458.33,HC113960,Barrs Court Academy,201702,Central Childrens Directorate Costs,Support Services,
INSERTED DETAIL,20/05/2016,GI,2109834,719.17,HC113960,Barrs Court Academy,201702,Central Childrens Directorate Costs,Support Services,
INSERTED DETAIL,20/05/2016,GI,2109835,719.17,HC113960,Barrs Court Academy,201702,Central Childrens Directorate Costs,Support Services,
INSERTED DETAIL,20/05/2016,GI,2109836,719.17,HC113960,Barrs Court Academy,201702,Central Childrens Directorate Costs,Support Services,
INSERTED DETAIL,20/05/2016,GI,2109837,"1,033.33",HC113960,Barrs Court Academy,201702,Central Childrens Directorate Costs,Support Services,
INSERTED DETAIL,20/05/2016,GI,2109838,"1,033.33",HC113960,Barrs Court Academy,201702,Central Childrens Directorate Costs,Support Services,
INSERTED DETAIL,20/05/2016,GI,2109839,"1,399.17",HC113960,Barrs Court Academy,201702,Central Childrens Directorate Costs,Support Services,
INSERTED DETAIL,20/05/2016,GI,2109840,"1,399.17",HC113960,Barrs Court Academy,201702,Central Childrens Directorate Costs,Support Services,
INSERTED DETAIL,20/05/2016,GI,2109841,719.17,HC113960,Barrs Court Academy,201702,Central Childrens Directorate Costs,Support Services,
INSERTED DETAIL,20/05/2016,GI,2109842,719.17,HC113960,Barrs Court Academy,201702,Central Childrens Directorate Costs,Support Services,
INSERTED DETAIL,20/05/2016,GI,2109844,719.17,HC113960,Barrs Court Academy,201702,Central Childrens Directorate Costs,Support Services,
INSERTED DETAIL,20/05/2016,GI,2109845,719.17,HC113960,Barrs Court Academy,201702,Central Childrens Directorate Costs,Support Services,
INSERTED DETAIL,20/05/2016,GI,2109846,719.17,HC113960,Barrs Court Academy,201702,Central Childrens Directorate Costs,Support Services,
INSERTED DETAIL,20/05/2016,GI,2109847,719.17,HC113960,Barrs Court Academy,201702,Central Childrens Directorate Costs,Support Services,
INSERTED DETAIL,20/05/2016,GI,2109848,"1,033.33",HC113960,Barrs Court Academy,201702,Central Childrens Directorate Costs,Support Services,
INSERTED DETAIL,20/05/2016,GI,2109849,719.17,HC113960,Barrs Court Academy,201702,Central Childrens Directorate Costs,Support Services,
INSERTED DETAIL,20/05/2016,GI,2109850,458.33,HC113960,Barrs Court Academy,201702,Central Childrens Directorate Costs,Support Services,
INSERTED DETAIL,20/05/2016,GI,2109851,719.17,HC113960,Barrs Court Academy,201702,Central Childrens Directorate Costs,Support Services,
INSERTED DETAIL,20/05/2016,GI,2109852,719.17,HC113960,Barrs Court Academy,201702,Central Childrens Directorate Costs,Support Services,
INSERTED DETAIL,20/05/2016,GI,2109853,"1,033.33",HC113960,Barrs Court Academy,201702,Central Childrens Directorate Costs,Support Services,
INSERTED DETAIL,20/05/2016,GI,2109854,"1,033.33",HC113960,Barrs Court Academy,201702,Central Childrens Directorate Costs,Support Services,
INSERTED DETAIL,20/05/2016,GI,2109855,"1,033.33",HC113960,Barrs Court Academy,201702,Central Childrens Directorate Costs,Support Services,
INSERTED DETAIL,20/05/2016,GI,2109856,"1,033.33",HC113960,Barrs Court Academy,201702,Central Childrens Directorate Costs,Support Services,
INSERTED DETAIL,20/05/2016,GI,2109857,"1,399.17",HC113960,Barrs Court Academy,201702,Central Childrens Directorate Costs,Support Services,
INSERTED DETAIL,20/05/2016,GI,2109858,"1,033.33",HC113960,Barrs Court Academy,201702,Central Childrens Directorate Costs,Support Services,
INSERTED DETAIL,20/05/2016,GI,2109859,"1,033.33",HC113960,Barrs Court Academy,201702,Central Childrens Directorate Costs,Support Services,
INSERTED DETAIL,20/05/2016,GI,2109860,"1,399.17",HC113960,Barrs Court Academy,201702,Central Childrens Directorate Costs,Support Services,
INSERTED DETAIL,20/05/2016,GI,2109861,"1,033.33",HC113960,Barrs Court Academy,201702,Central Childrens Directorate Costs,Support Services,
INSERTED DETAIL,20/05/2016,GI,2109862,719.17,HC113960,Barrs Court Academy,201702,Central Childrens Directorate Costs,Support Services,
INSERTED DETAIL,20/05/2016,GI,2109863,719.17,HC113960,Barrs Court Academy,201702,Central Childrens Directorate Costs,Support Services,
INSERTED DETAIL,20/05/2016,GI,2109864,719.17,HC113960,Barrs Court Academy,201702,Central Childrens Directorate Costs,Support Services,
INSERTED DETAIL,20/05/2016,GI,2109865,719.17,HC113960,Barrs Court Academy,201702,Central Childrens Directorate Costs,Support Services,
INSERTED DETAIL,20/05/2016,GI,2109866,719.17,HC113960,Barrs Court Academy,201702,Central Childrens Directorate Costs,Support Services,
INSERTED DETAIL,20/05/2016,GI,2109908,458.33,HC113960,Barrs Court Academy,201702,Central Childrens Directorate Costs,Support Services,
INSERTED DETAIL,20/05/2016,GI,2109909,"1,033.33",HC113960,Barrs Court Academy,201702,Central Childrens Directorate Costs,Support Services,
INSERTED DETAIL,20/05/2016,GI,2109910,"1,399.17",HC113960,Barrs Court Academy,201702,Central Childrens Directorate Costs,Support Services,
INSERTED DETAIL,20/05/2016,GI,2109911,"1,033.33",HC113960,Barrs Court Academy,201702,Central Childrens Directorate Costs,Support Services,
INSERTED DETAIL,20/05/2016,GI,2109912,"1,033.33",HC113960,Barrs Court Academy,201702,Central Childrens Directorate Costs,Support Services,
INSERTED DETAIL,20/05/2016,GI,2109913,719.17,HC113960,Barrs Court Academy,201702,Central Childrens Directorate Costs,Support Services,
INSERTED DETAIL,20/05/2016,GI,2109914,719.17,HC113960,Barrs Court Academy,201702,Central Childrens Directorate Costs,Support Services,
INSERTED DETAIL,20/05/2016,GI,2109915,"1,033.33",HC113960,Barrs Court Academy,201702,Central Childrens Directorate Costs,Support Services,
INSERTED DETAIL,20/05/2016,GI,2109916,458.33,HC113960,Barrs Court Academy,201702,Central Childrens Directorate Costs,Support Services,
INSERTED DETAIL,20/05/2016,GI,2109917,458.33,HC113960,Barrs Court Academy,201702,Central Childrens Directorate Costs,Support Services,
INSERTED DETAIL,20/05/2016,GI,2109918,458.33,HC113960,Barrs Court Academy,201702,Central Childrens Directorate Costs,Support Services,
INSERTED DETAIL,20/05/2016,GI,2109919,458.33,HC113960,Barrs Court Academy,201702,Central Childrens Directorate Costs,Support Services,
INSERTED DETAIL,20/05/2016,GI,2109920,"1,033.33",HC113960,Barrs Court Academy,201702,Central Childrens Directorate Costs,Support Services,
INSERTED DETAIL,20/05/2016,GI,2109921,"1,399.17",HC113960,Barrs Court Academy,201702,Central Childrens Directorate Costs,Support Services,
INSERTED DETAIL,20/05/2016,GI,2109922,"1,033.33",HC113960,Barrs Court Academy,201702,Central Childrens Directorate Costs,Support Services,
INSERTED DETAIL,20/05/2016,GI,2109933,719.17,HC113960,Barrs Court Academy,201702,Central Childrens Directorate Costs,Support Services,
INSERTED DETAIL,20/05/2016,GI,2109934,458.33,HC113960,Barrs Court Academy,201702,Central Childrens Directorate Costs,Support Services,
INSERTED DETAIL,20/05/2016,GI,2109935,719.17,HC113960,Barrs Court Academy,201702,Central Childrens Directorate Costs,Support Services,
INSERTED DETAIL,20/05/2016,GI,2109936,719.17,HC113960,Barrs Court Academy,201702,Central Childrens Directorate Costs,Support Services,
INSERTED DETAIL,20/05/2016,GI,2109943,458.33,HC113960,Barrs Court Academy,201702,Central Childrens Directorate Costs,Support Services,
INSERTED DETAIL,20/05/2016,GI,2109955,"1,033.33",HC113960,Barrs Court Academy,201702,Central Childrens Directorate Costs,Support Services,
INSERTED DETAIL,20/05/2016,GI,2109974,458.33,HC113960,Barrs Court Academy,201702,Central Childrens Directorate Costs,Support Services,
INSERTED DETAIL,20/05/2016,GI,2109975,458.33,HC113960,Barrs Court Academy,201702,Central Childrens Directorate Costs,Support Services,
INSERTED DETAIL,20/05/2016,GI,2109976,458.33,HC113960,Barrs Court Academy,201702,Central Childrens Directorate Costs,Support Services,
INSERTED DETAIL,20/05/2016,GI,2109977,"1,033.33",HC113960,Barrs Court Academy,201702,Central Childrens Directorate Costs,Support Services,
INSERTED DETAIL,20/05/2016,GI,2109982,458.33,HC113960,Barrs Court Academy,201702,Central Childrens Directorate Costs,Support Services,
INSERTED DETAIL,20/05/2016,GI,2109984,"1,033.33",HC113960,Barrs Court Academy,201702,Central Childrens Directorate Costs,Support Services,
INSERTED DETAIL,20/05/2016,GI,2109985,458.33,HC113960,Barrs Court Academy,201702,Central Childrens Directorate Costs,Support Services,
INSERTED DETAIL,20/05/2016,GI,2109986,"1,033.33",HC113960,Barrs Court Academy,201702,Central Childrens Directorate Costs,Support Services,
INSERTED DETAIL,20/05/2016,GI,2109991,458.33,HC113960,Barrs Court Academy,201702,Central Childrens Directorate Costs,Support Services,
INSERTED DETAIL,20/05/2016,GI,2109996,458.33,HC113960,Barrs Court Academy,201702,Central Childrens Directorate Costs,Support Services,
INSERTED DETAIL,20/05/2016,GI,2109997,458.33,HC113960,Barrs Court Academy,201702,Central Childrens Directorate Costs,Support Services,
INSERTED DETAIL,20/05/2016,GI,2109998,719.17,HC113960,Barrs Court Academy,201702,Central Childrens Directorate Costs,Support Services,
INSERTED DETAIL,20/05/2016,GI,2109999,458.33,HC113960,Barrs Court Academy,201702,Central Childrens Directorate Costs,Support Services,
INSERTED DETAIL,20/05/2016,GI,2110000,458.33,HC113960,Barrs Court Academy,201702,Central Childrens Directorate Costs,Support Services,
INSERTED DETAIL,20/05/2016,GI,2110118,458.33,HC113960,Barrs Court Academy,201702,Central Childrens Directorate Costs,Support Services,
INSERTED DETAIL,20/05/2016,GI,2110126,719.17,HC113960,Barrs Court Academy,201702,Central Childrens Directorate Costs,Support Services,
INSERTED DETAIL,20/05/2016,GI,2110141,"1,033.33",HC113960,Barrs Court Academy,201702,Central Childrens Directorate Costs,Support Services,
INSERTED DETAIL,20/05/2016,GI,2110143,458.33,HC113960,Barrs Court Academy,201702,Central Childrens Directorate Costs,Support Services,
INSERTED DETAIL,20/05/2016,GI,2110144,"1,033.33",HC113960,Barrs Court Academy,201702,Central Childrens Directorate Costs,Support Services,
INSERTED DETAIL,20/05/2016,GI,2110145,719.17,HC113960,Barrs Court Academy,201702,Central Childrens Directorate Costs,Support Services,
INSERTED DETAIL,20/05/2016,GI,2110122,458.33,HC113961,Burghill Community Academy,201702,Central Childrens Directorate Costs,Support Services,
INSERTED DETAIL,04/05/2016,SI,4686996,"1,233.81",HC114072,TomHead Limited,201702,Resources,Premises-Related Expenditure,
INSERTED DETAIL,18/05/2016,OI,3829330,774.32,HC114093,H G Clewer Ltd,201702,Public Health,Supplies & Services,
INSERTED DETAIL,20/05/2016,OI,3829647,595.02,HC114093,H G Clewer Ltd,201702,Public Health,Supplies & Services,
INSERTED DETAIL,06/05/2016,OI,3828466,"2,200.00",HC114180,SLS School Improvement Ltd,201702,Schools,Supplies & Services,
INSERTED DETAIL,13/05/2016,SI,4687632,"1,800.00",HC114180,SLS School Improvement Ltd,201702,Schools,Supplies & Services,
INSERTED DETAIL,25/05/2016,OI,3829687,425.00,HC114180,SLS School Improvement Ltd,201702,Schools,Supplies & Services,
INSERTED DETAIL,25/05/2016,OI,3829827,425.00,HC114180,SLS School Improvement Ltd,201702,Schools,Supplies & Services,
INSERTED DETAIL,23/05/2016,SI,4687350,484.09,HC114240,Allstar Business Solutions (Direct Debit only),201702,Environment and Place,Transport-Related Expenditure,
INSERTED DETAIL,06/05/2016,OI,3827971,422.00,HC114280,Day Lewis Chemists Ltd (DAY127),201702,Public Health,Supplies & Services,
INSERTED DETAIL,25/05/2016,SI,4688042,"4,274.44",HC114361,Dolphin Lifts Midlands Ltd,201702,Housing & Independent Living Capital,Capital Expenditure,
INSERTED DETAIL,13/05/2016,SI,4687515,"2,866.21",HC114362,Anglia Stairlifts Ltd,201702,Housing & Independent Living Capital,Capital Expenditure,
INSERTED DETAIL,13/05/2016,SI,4687580,"4,545.00",HC114362,Anglia Stairlifts Ltd,201702,Housing & Independent Living Capital,Capital Expenditure,
INSERTED DETAIL,20/05/2016,GI,2110018,"1,078.01",HC114595,Derwen College,201702,Central Childrens Directorate Costs,Support Services,
INSERTED DETAIL,20/05/2016,GI,2110019,"1,104.35",HC114595,Derwen College,201702,Central Childrens Directorate Costs,Support Services,
INSERTED DETAIL,20/05/2016,GI,2110020,"1,136.31",HC114595,Derwen College,201702,Central Childrens Directorate Costs,Support Services,
INSERTED DETAIL,20/05/2016,GI,2110021,"1,104.35",HC114595,Derwen College,201702,Central Childrens Directorate Costs,Support Services,
INSERTED DETAIL,20/05/2016,GI,2110022,"1,136.31",HC114595,Derwen College,201702,Central Childrens Directorate Costs,Support Services,
INSERTED DETAIL,20/05/2016,GI,2110023,"1,136.31",HC114595,Derwen College,201702,Central Childrens Directorate Costs,Support Services,
INSERTED DETAIL,20/05/2016,GI,2110024,"1,136.31",HC114595,Derwen College,201702,Central Childrens Directorate Costs,Support Services,
INSERTED DETAIL,20/05/2016,GI,2110025,"1,299.31",HC114595,Derwen College,201702,Central Childrens Directorate Costs,Support Services,
INSERTED DETAIL,20/05/2016,GI,2110026,"1,145.72",HC114595,Derwen College,201702,Central Childrens Directorate Costs,Support Services,
INSERTED DETAIL,20/05/2016,GI,2110027,629.49,HC114595,Derwen College,201702,Central Childrens Directorate Costs,Support Services,
INSERTED DETAIL,20/05/2016,GI,2110028,629.49,HC114595,Derwen College,201702,Central Childrens Directorate Costs,Support Services,
INSERTED DETAIL,20/05/2016,GI,2110029,629.49,HC114595,Derwen College,201702,Central Childrens Directorate Costs,Support Services,
INSERTED DETAIL,20/05/2016,GI,2110030,629.49,HC114595,Derwen College,201702,Central Childrens Directorate Costs,Support Services,
INSERTED DETAIL,20/05/2016,GI,2110031,629.49,HC114595,Derwen College,201702,Central Childrens Directorate Costs,Support Services,
INSERTED DETAIL,20/05/2016,GI,2110050,"1,911.67",HC114596,William Morris Camphill Community,201702,Central Childrens Directorate Costs,Support Services,
INSERTED DETAIL,20/05/2016,GI,2110047,"3,337.92",HC114610,New College,201702,Central Childrens Directorate Costs,Support Services,
INSERTED DETAIL,20/05/2016,GI,2110033,"4,185.50",HC114612,Hereward College,201702,Central Childrens Directorate Costs,Support Services,
INSERTED DETAIL,20/05/2016,GI,2110059,"2,422.28",HC114613,National Star College,201702,Central Childrens Directorate Costs,Support Services,
INSERTED DETAIL,20/05/2016,GI,2110060,"1,352.82",HC114613,National Star College,201702,Central Childrens Directorate Costs,Support Services,
INSERTED DETAIL,20/05/2016,GI,2110068,"4,036.26",HC114613,National Star College,201702,Central Childrens Directorate Costs,Support Services,
INSERTED DETAIL,20/05/2016,GI,2110076,"1,669.42",HC114613,National Star College,201702,Central Childrens Directorate Costs,Support Services,
INSERTED DETAIL,20/05/2016,GI,2110077,"1,683.88",HC114613,National Star College,201702,Central Childrens Directorate Costs,Support Services,
INSERTED DETAIL,20/05/2016,GI,2110078,"1,450.79",HC114613,National Star College,201702,Central Childrens Directorate Costs,Support Services,
INSERTED DETAIL,20/05/2016,GI,2110079,"1,076.66",HC114613,National Star College,201702,Central Childrens Directorate Costs,Support Services,
INSERTED DETAIL,20/05/2016,GI,2110080,997.20,HC114613,National Star College,201702,Central Childrens Directorate Costs,Support Services,
INSERTED DETAIL,20/05/2016,GI,2110081,"1,091.08",HC114613,National Star College,201702,Central Childrens Directorate Costs,Support Services,
INSERTED DETAIL,20/05/2016,GI,2110082,943.23,HC114613,National Star College,201702,Central Childrens Directorate Costs,Support Services,
INSERTED DETAIL,20/05/2016,GI,2110083,"1,070.16",HC114613,National Star College,201702,Central Childrens Directorate Costs,Support Services,
INSERTED DETAIL,20/05/2016,GI,2110131,"2,487.65",HC114613,National Star College,201702,Central Childrens Directorate Costs,Support Services,
INSERTED DETAIL,20/05/2016,GI,2110147,687.32,HC114613,National Star College,201702,Central Childrens Directorate Costs,Support Services,
INSERTED DETAIL,13/05/2016,SI,4687682,"38,751.79",HC114613,National Star College,201702,Education and Commissioning,Third Party Payments,
INSERTED DETAIL,11/05/2016,SI,4687539,"2,473,588.32",HC114724,Balfour Beatty Living Places Ltd,201702,Holding Codes,Holding Codes,
INSERTED DETAIL,13/05/2016,SI,4687597,"4,179.28",HC114737,Enterprise Herefordshire,201702,Housing & Independent Living Capital,Capital Expenditure,
INSERTED DETAIL,06/05/2016,OI,3828116,"2,160.00",HC114748,PJB Merchants Ltd,201702,Schools,Premises-Related Expenditure,
INSERTED DETAIL,06/05/2016,OI,3828614,"9,485.00",HC114748,PJB Merchants Ltd,201702,Schools Devolved Capital,Capital Expenditure,
INSERTED DETAIL,26/05/2016,SI,4688226,"9,566.50",HC114802,Malvern Hills Outdoor Education Co Ltd,201702,Schools,Supplies & Services,
INSERTED DETAIL,11/05/2016,OI,3823328,"3,605.00",HC114833,NEPRO Limited,201702,Communities,Premises-Related Expenditure,
INSERTED DETAIL,25/05/2016,OI,3829420,"9,270.00",HC114833,NEPRO Limited,201702,Communities,Premises-Related Expenditure,
INSERTED DETAIL,01/06/2016,OI,3830043,"7,786.80",HC114833,NEPRO Limited,201702,Growth,Employees,
INSERTED DETAIL,20/05/2016,OI,3822418,"5,665.00",HC114833,NEPRO Limited,201702,Growth,Premises-Related Expenditure,
INSERTED DETAIL,20/05/2016,OI,3827239,"6,695.00",HC114833,NEPRO Limited,201702,Growth,Premises-Related Expenditure,
INSERTED DETAIL,06/05/2016,SI,4687261,"5,175.65",HC114843,REDACTED,201702,Central Childrens Directorate Costs,Support Services,
INSERTED DETAIL,20/05/2016,OI,3829555,"1,432.50",HC114874,HCT Construction Consultants Ltd,201702,Growth Capital,Capital Expenditure,
INSERTED DETAIL,25/05/2016,OI,3829749,"2,550.00",HC114874,HCT Construction Consultants Ltd,201702,Growth Capital,Capital Expenditure,
INSERTED DETAIL,11/05/2016,SI,4687418,630.00,HC114882,Merry Go Round Day Nursery @ Riverside,201702,Education and Commissioning,Transfer Payments,
INSERTED DETAIL,01/06/2016,OI,3830228,"1,135.13",HC115345,Smart Distribution Solutions Ltd,201702,Communities,Supplies & Services,
INSERTED DETAIL,01/06/2016,OI,3830243,"4,649.65",HC115345,Smart Distribution Solutions Ltd,201702,Communities,Supplies & Services,
INSERTED DETAIL,18/05/2016,OI,3829106,"1,438.20",HC115388,Digital ID Ltd,201702,Resources,Supplies & Services,
INSERTED DETAIL,11/05/2016,SI,4687469,600.00,HC115590,Phillips & Leslie Education Consultants,201702,Schools,Supplies & Services,
INSERTED DETAIL,20/05/2016,GI,2109763,458.33,HC115716,Mordiford Church of England Primary School,201702,Central Childrens Directorate Costs,Support Services,
INSERTED DETAIL,20/05/2016,GI,2110053,458.33,HC115716,Mordiford Church of England Primary School,201702,Central Childrens Directorate Costs,Support Services,
INSERTED DETAIL,13/05/2016,OI,3829074,"5,711.28",HC115722,The Nationwide Community Learning Partnership (NCLP),201702,Education and Commissioning,Supplies & Services,
INSERTED DETAIL,06/05/2016,SI,4686918,"25,135.95",HC115806,Lee Baron Ltd,201702,Resources,Premises-Related Expenditure,
INSERTED DETAIL,06/05/2016,SI,4686919,"1,469.00",HC115806,Lee Baron Ltd,201702,Resources,Premises-Related Expenditure,
INSERTED DETAIL,06/05/2016,SI,4687039,"1,788.20",HC115806,Lee Baron Ltd,201702,Resources,Premises-Related Expenditure,
INSERTED DETAIL,06/05/2016,SI,4687040,576.55,HC115806,Lee Baron Ltd,201702,Resources,Premises-Related Expenditure,
INSERTED DETAIL,11/05/2016,SI,4687385,"5,739.50",HC115815,YHA London St Pauls,201702,Schools,Supplies & Services,
INSERTED DETAIL,20/05/2016,GI,2109766,458.33,HC115884,St Thomas Cantilupe CE Academy,201702,Central Childrens Directorate Costs,Support Services,
INSERTED DETAIL,20/05/2016,GI,2109964,458.33,HC115884,St Thomas Cantilupe CE Academy,201702,Central Childrens Directorate Costs,Support Services,
INSERTED DETAIL,20/05/2016,GI,2110093,458.33,HC115884,St Thomas Cantilupe CE Academy,201702,Central Childrens Directorate Costs,Support Services,
INSERTED DETAIL,06/05/2016,SI,4687300,469.40,HC115887,Serve (DHET) LtD,201702,Schools,Supplies & Services,
INSERTED DETAIL,11/05/2016,OI,3828849,596.54,HC115887,Serve (DHET) LtD,201702,Schools,Supplies & Services,
INSERTED DETAIL,18/05/2016,OI,3829338,810.84,HC115887,Serve (DHET) LtD,201702,Schools,Supplies & Services,
INSERTED DETAIL,20/05/2016,GI,2109925,458.33,HC115994,Marden Primary Academy,201702,Central Childrens Directorate Costs,Support Services,
INSERTED DETAIL,20/05/2016,SI,4687968,"5,000.00",HC115994,Marden Primary Academy,201702,Schools,Support Services,
INSERTED DETAIL,11/05/2016,OI,3826993,"1,089.00",HC116004,Able 2 Occupational Therapy Services Limited,201702,Communities,Supplies & Services,
INSERTED DETAIL,01/06/2016,OI,3829995,898.00,HC116004,Able 2 Occupational Therapy Services Limited,201702,Communities,Supplies & Services,
INSERTED DETAIL,25/05/2016,OI,3829742,"28,705.00",HC116018,J G Price & Sons Ltd,201702,Growth Capital,Capital Expenditure,
INSERTED DETAIL,04/05/2016,OI,3828367,"1,354.70",HC116124,Woods of Whitchurch,201702,Schools,Supplies & Services,
INSERTED DETAIL,11/05/2016,OI,3828966,"2,490.90",HC116124,Woods of Whitchurch,201702,Schools,Supplies & Services,
INSERTED DETAIL,01/06/2016,OI,3830605,"2,490.90",HC116124,Woods of Whitchurch,201702,Schools,Supplies & Services,
INSERTED DETAIL,26/05/2016,OI,3829873,"2,310.00",HC116149,M & J Travel,201702,Environment and Place,Transport-Related Expenditure,
INSERTED DETAIL,26/05/2016,OI,3829874,"2,002.00",HC116149,M & J Travel,201702,Environment and Place,Transport-Related Expenditure,
INSERTED DETAIL,13/05/2016,OI,3828675,"5,985.00",HC116150,Roy Browns Coaches,201702,Environment and Place,Transport-Related Expenditure,
INSERTED DETAIL,18/05/2016,OI,3829069,"1,200.00",HC116181,HB Editorial Services Ltd,201702,Communities,Supplies & Services,
INSERTED DETAIL,18/05/2016,OI,3828890,500.00,HC116214,NWG Network,201702,Safeguarding and Family Support,Supplies & Services,
INSERTED DETAIL,11/05/2016,OI,3828545,"2,200.00",HC116250,Ecoteric SDS Ltd,201702,Growth Capital,Capital Expenditure,
INSERTED DETAIL,01/06/2016,OI,3830664,825.00,HC116254,Learning Support Partnership Ltd,201702,Education and Commissioning,Supplies & Services,
INSERTED DETAIL,18/05/2016,OI,3829108,613.50,HC116317,NOCN,201702,Education and Commissioning,Supplies & Services,
INSERTED DETAIL,20/05/2016,GI,2110193,448.00,HC116432,Ewyas Harold Primary School-A/C 63712842,201702,Children & Young People Capital,Capital Income,
INSERTED DETAIL,18/05/2016,SI,4687808,556.36,HC116477,REDACTED,201702,Schools,Supplies & Services,
INSERTED DETAIL,18/05/2016,SI,4687809,539.16,HC116477,REDACTED,201702,Schools,Supplies & Services,
INSERTED DETAIL,06/05/2016,OI,3828699,"2,212.35",HC116520,Regus Management (UK)Ltd (Direct Debit),201702,Growth,Premises-Related Expenditure,
INSERTED DETAIL,06/05/2016,OI,3828700,"2,297.35",HC116520,Regus Management (UK)Ltd (Direct Debit),201702,Growth,Premises-Related Expenditure,
INSERTED DETAIL,06/05/2016,OI,3828700,900.00,HC116520,Regus Management (UK)Ltd (Direct Debit),201702,Growth,Supplies & Services,
INSERTED DETAIL,01/06/2016,OI,3830612,431.98,HC116524,Future Digital Footprint Ltd,201702,Schools,Supplies & Services,
INSERTED DETAIL,13/05/2016,SI,4687704,"1,212.64",HC116548,REDACTED,201702,Environment and Place,Supplies & Services,
INSERTED DETAIL,20/05/2016,SI,4687991,"5,420.80",HC116548,REDACTED,201702,Environment and Place,Supplies & Services,
INSERTED DETAIL,01/06/2016,OI,3830634,899.00,HC116576,The Hub Events,201702,Environment and Place,Employees,
INSERTED DETAIL,20/05/2016,SI,4687944,624.00,HC116639,Hereford River Carnival Ltd,201702,Environment and Place,Supplies & Services,
INSERTED DETAIL,18/05/2016,SI,4687815,"12,500.00",HC116670,And Now Ltd,201702,Environment and Place,Supplies & Services,
INSERTED DETAIL,25/05/2016,OI,3828185,439.00,HC116829,British Heart Foundation,201702,Adults Operations,Supplies & Services,
INSERTED DETAIL,20/05/2016,GI,2109942,458.33,HC116854,Fairfield High School (Academy),201702,Central Childrens Directorate Costs,Support Services,
INSERTED DETAIL,20/05/2016,GI,2110086,458.33,HC116854,Fairfield High School (Academy),201702,Central Childrens Directorate Costs,Support Services,
INSERTED DETAIL,20/05/2016,GI,2110152,458.33,HC116854,Fairfield High School (Academy),201702,Central Childrens Directorate Costs,Support Services,
INSERTED DETAIL,06/05/2016,OI,3828565,"3,000.00",HC116854,Fairfield High School (Academy),201702,Education and Commissioning,Support Services,
INSERTED DETAIL,11/05/2016,SI,4687381,670.00,HC116854,Fairfield High School (Academy),201702,Schools,Supplies & Services,
INSERTED DETAIL,13/05/2016,SI,4687723,623.66,HC116854,Fairfield High School (Academy),201702,Schools,Supplies & Services,
INSERTED DETAIL,11/05/2016,SI,4687534,"2,115.00",HC116872,Green Stewards Ltd,201702,Environment and Place,Supplies & Services,
INSERTED DETAIL,01/06/2016,OI,3830662,"1,300.00",HC116893,Red Castle Training,201702,Education and Commissioning,Supplies & Services,
INSERTED DETAIL,01/06/2016,OI,3830520,855.94,HC117049,Practice Supplies Ltd,201702,Schools,Supplies & Services,
INSERTED DETAIL,01/06/2016,OI,3830521,805.87,HC117049,Practice Supplies Ltd,201702,Schools,Supplies & Services,
INSERTED DETAIL,11/05/2016,OI,3828972,"2,523.00",HC117075,Barton Hyett Associates Ltd,201702,Environment and Place,Third Party Payments,
INSERTED DETAIL,26/05/2016,OI,3830146,795.00,HC117119,Smart Payments Ltd,201702,Schools,Supplies & Services,
INSERTED DETAIL,25/05/2016,OI,3829698,"8,100.00",HC117202,Permanent Futures Ltd,201702,Education and Commissioning,Supplies & Services,
INSERTED DETAIL,11/05/2016,OI,3827021,"12,740.00",HC117202,Permanent Futures Ltd,201702,Integrated Commissioning,Capital Expenditure,
INSERTED DETAIL,20/05/2016,OI,3829430,"7,105.00",HC117202,Permanent Futures Ltd,201702,Integrated Commissioning,Capital Expenditure,
INSERTED DETAIL,20/05/2016,GI,2110009,458.33,HC117215,Robert Owen Academey,201702,Central Childrens Directorate Costs,Support Services,
INSERTED DETAIL,01/06/2016,OI,3830475,"1,600.00",HC117215,Robert Owen Academey,201702,Education and Commissioning,Support Services,
INSERTED DETAIL,11/05/2016,OI,3828786,950.81,HC117224,WSM Engineering Facilities Ltd,201702,Schools,Supplies & Services,
INSERTED DETAIL,01/06/2016,OI,3830038,"1,250.00",HC117257,Turner & Company,201702,Resources,Premises-Related Expenditure,
INSERTED DETAIL,20/05/2016,OI,3829558,"10,257.14",HC117274,Mount Pleasant Hotel,201702,Growth Capital,Capital Expenditure,
INSERTED DETAIL,25/05/2016,OI,3829983,"10,948.43",HC117274,Mount Pleasant Hotel,201702,Growth Capital,Capital Expenditure,
INSERTED DETAIL,13/05/2016,SI,4687579,"4,309.55",HC117310,Level Access Bathrooms,201702,Housing & Independent Living Capital,Capital Expenditure,
INSERTED DETAIL,20/05/2016,SI,4688020,"2,869.00",HC117310,Level Access Bathrooms,201702,Housing & Independent Living Capital,Capital Expenditure,
INSERTED DETAIL,13/05/2016,OI,3829182,"16,659.00",HC117351,Ategi Ltd,201702,Commissioning Adults,Third Party Payments,
INSERTED DETAIL,26/05/2016,SI,4688168,"54,916.75",HC117423,Interserve FS (UK) Ltd,201702,Holding Codes,Holding Codes,
INSERTED DETAIL,11/05/2016,SI,4687520,"11,923.81",HC117467,Brandon Trust,201702,Learning Disabilities,Third Party Payments,
INSERTED DETAIL,11/05/2016,SI,4687521,"32,979.87",HC117467,Brandon Trust,201702,Learning Disabilities,Third Party Payments,
INSERTED DETAIL,11/05/2016,SI,4687522,"6,634.02",HC117467,Brandon Trust,201702,Learning Disabilities,Third Party Payments,
INSERTED DETAIL,11/05/2016,SI,4687523,"4,373.42",HC117467,Brandon Trust,201702,Learning Disabilities,Third Party Payments,
INSERTED DETAIL,13/05/2016,SI,4687565,"12,061.08",HC117467,Brandon Trust,201702,Learning Disabilities,Third Party Payments,
INSERTED DETAIL,13/05/2016,SI,4687566,"5,205.92",HC117467,Brandon Trust,201702,Learning Disabilities,Third Party Payments,
INSERTED DETAIL,13/05/2016,SI,4687567,"7,213.18",HC117467,Brandon Trust,201702,Learning Disabilities,Third Party Payments,
INSERTED DETAIL,20/05/2016,OI,3829528,619.20,HC117520,Allsigns International Ltd T/A Pryorsign,201702,Environment and Place,Supplies & Services,
INSERTED DETAIL,13/05/2016,SI,4687546,"4,000.00",HC117528,Longner Farms,201702,Growth Capital,Capital Expenditure,
INSERTED DETAIL,06/05/2016,OI,3828464,"1,816.00",HC117586,Vince Mantle Flooring Ltd,201702,Schools,Premises-Related Expenditure,
INSERTED DETAIL,18/05/2016,OI,3827924,"1,391.32",HC117651,Michael Page International Recruitment Ltd,201702,Communities,Employees,
INSERTED DETAIL,18/05/2016,OI,3827925,"1,590.08",HC117651,Michael Page International Recruitment Ltd,201702,Communities,Employees,
INSERTED DETAIL,18/05/2016,OI,3827969,"3,180.16",HC117651,Michael Page International Recruitment Ltd,201702,Communities,Employees,
INSERTED DETAIL,20/05/2016,GI,2110032,"4,789.83",HC117656,Ruskin Mill Trust (Glasshouse College),201702,Central Childrens Directorate Costs,Support Services,
INSERTED DETAIL,26/05/2016,OI,3829878,"27,789.66",HC117682,Portakabin Ltd,201702,Education and Commissioning,Premises-Related Expenditure,
INSERTED DETAIL,20/05/2016,GI,2109867,719.17,HC117835,The Brookfield School (Academy),201702,Central Childrens Directorate Costs,Support Services,
INSERTED DETAIL,20/05/2016,GI,2109868,719.17,HC117835,The Brookfield School (Academy),201702,Central Childrens Directorate Costs,Support Services,
INSERTED DETAIL,20/05/2016,GI,2109870,719.17,HC117835,The Brookfield School (Academy),201702,Central Childrens Directorate Costs,Support Services,
INSERTED DETAIL,20/05/2016,GI,2109871,458.33,HC117835,The Brookfield School (Academy),201702,Central Childrens Directorate Costs,Support Services,
INSERTED DETAIL,20/05/2016,GI,2109872,719.17,HC117835,The Brookfield School (Academy),201702,Central Childrens Directorate Costs,Support Services,
INSERTED DETAIL,20/05/2016,GI,2109873,458.33,HC117835,The Brookfield School (Academy),201702,Central Childrens Directorate Costs,Support Services,
INSERTED DETAIL,20/05/2016,GI,2109874,458.33,HC117835,The Brookfield School (Academy),201702,Central Childrens Directorate Costs,Support Services,
INSERTED DETAIL,20/05/2016,GI,2109875,458.33,HC117835,The Brookfield School (Academy),201702,Central Childrens Directorate Costs,Support Services,
INSERTED DETAIL,20/05/2016,GI,2109876,719.17,HC117835,The Brookfield School (Academy),201702,Central Childrens Directorate Costs,Support Services,
INSERTED DETAIL,20/05/2016,GI,2109877,719.17,HC117835,The Brookfield School (Academy),201702,Central Childrens Directorate Costs,Support Services,
INSERTED DETAIL,20/05/2016,GI,2109878,719.17,HC117835,The Brookfield School (Academy),201702,Central Childrens Directorate Costs,Support Services,
INSERTED DETAIL,20/05/2016,GI,2109879,719.17,HC117835,The Brookfield School (Academy),201702,Central Childrens Directorate Costs,Support Services,
INSERTED DETAIL,20/05/2016,GI,2109880,719.17,HC117835,The Brookfield School (Academy),201702,Central Childrens Directorate Costs,Support Services,
INSERTED DETAIL,20/05/2016,GI,2109881,719.17,HC117835,The Brookfield School (Academy),201702,Central Childrens Directorate Costs,Support Services,
INSERTED DETAIL,20/05/2016,GI,2109882,719.17,HC117835,The Brookfield School (Academy),201702,Central Childrens Directorate Costs,Support Services,
INSERTED DETAIL,20/05/2016,GI,2109883,458.33,HC117835,The Brookfield School (Academy),201702,Central Childrens Directorate Costs,Support Services,
INSERTED DETAIL,20/05/2016,GI,2109884,458.33,HC117835,The Brookfield School (Academy),201702,Central Childrens Directorate Costs,Support Services,
INSERTED DETAIL,20/05/2016,GI,2109885,719.17,HC117835,The Brookfield School (Academy),201702,Central Childrens Directorate Costs,Support Services,
INSERTED DETAIL,20/05/2016,GI,2109886,719.17,HC117835,The Brookfield School (Academy),201702,Central Childrens Directorate Costs,Support Services,
INSERTED DETAIL,20/05/2016,GI,2109887,458.33,HC117835,The Brookfield School (Academy),201702,Central Childrens Directorate Costs,Support Services,
INSERTED DETAIL,20/05/2016,GI,2109888,719.17,HC117835,The Brookfield School (Academy),201702,Central Childrens Directorate Costs,Support Services,
INSERTED DETAIL,20/05/2016,GI,2109889,458.33,HC117835,The Brookfield School (Academy),201702,Central Childrens Directorate Costs,Support Services,
INSERTED DETAIL,20/05/2016,GI,2109890,719.17,HC117835,The Brookfield School (Academy),201702,Central Childrens Directorate Costs,Support Services,
INSERTED DETAIL,20/05/2016,GI,2109891,719.17,HC117835,The Brookfield School (Academy),201702,Central Childrens Directorate Costs,Support Services,
INSERTED DETAIL,20/05/2016,GI,2109905,719.17,HC117835,The Brookfield School (Academy),201702,Central Childrens Directorate Costs,Support Services,
INSERTED DETAIL,20/05/2016,GI,2109906,719.17,HC117835,The Brookfield School (Academy),201702,Central Childrens Directorate Costs,Support Services,
INSERTED DETAIL,20/05/2016,GI,2109907,719.17,HC117835,The Brookfield School (Academy),201702,Central Childrens Directorate Costs,Support Services,
INSERTED DETAIL,20/05/2016,GI,2109923,"2,141.67",HC117835,The Brookfield School (Academy),201702,Central Childrens Directorate Costs,Support Services,
INSERTED DETAIL,20/05/2016,GI,2109928,458.33,HC117835,The Brookfield School (Academy),201702,Central Childrens Directorate Costs,Support Services,
INSERTED DETAIL,20/05/2016,GI,2109929,458.33,HC117835,The Brookfield School (Academy),201702,Central Childrens Directorate Costs,Support Services,
INSERTED DETAIL,20/05/2016,GI,2109931,458.33,HC117835,The Brookfield School (Academy),201702,Central Childrens Directorate Costs,Support Services,
INSERTED DETAIL,20/05/2016,GI,2109945,719.17,HC117835,The Brookfield School (Academy),201702,Central Childrens Directorate Costs,Support Services,
INSERTED DETAIL,20/05/2016,GI,2109946,719.17,HC117835,The Brookfield School (Academy),201702,Central Childrens Directorate Costs,Support Services,
INSERTED DETAIL,20/05/2016,GI,2109947,458.33,HC117835,The Brookfield School (Academy),201702,Central Childrens Directorate Costs,Support Services,
INSERTED DETAIL,20/05/2016,GI,2109948,458.33,HC117835,The Brookfield School (Academy),201702,Central Childrens Directorate Costs,Support Services,
INSERTED DETAIL,20/05/2016,GI,2109949,719.17,HC117835,The Brookfield School (Academy),201702,Central Childrens Directorate Costs,Support Services,
INSERTED DETAIL,20/05/2016,GI,2109950,458.33,HC117835,The Brookfield School (Academy),201702,Central Childrens Directorate Costs,Support Services,
INSERTED DETAIL,20/05/2016,GI,2109951,719.17,HC117835,The Brookfield School (Academy),201702,Central Childrens Directorate Costs,Support Services,
INSERTED DETAIL,20/05/2016,GI,2109961,719.17,HC117835,The Brookfield School (Academy),201702,Central Childrens Directorate Costs,Support Services,
INSERTED DETAIL,20/05/2016,GI,2109979,458.33,HC117835,The Brookfield School (Academy),201702,Central Childrens Directorate Costs,Support Services,
INSERTED DETAIL,20/05/2016,GI,2109992,458.33,HC117835,The Brookfield School (Academy),201702,Central Childrens Directorate Costs,Support Services,
INSERTED DETAIL,20/05/2016,GI,2109993,458.33,HC117835,The Brookfield School (Academy),201702,Central Childrens Directorate Costs,Support Services,
INSERTED DETAIL,20/05/2016,GI,2110007,458.33,HC117835,The Brookfield School (Academy),201702,Central Childrens Directorate Costs,Support Services,
INSERTED DETAIL,20/05/2016,GI,2110008,458.33,HC117835,The Brookfield School (Academy),201702,Central Childrens Directorate Costs,Support Services,
INSERTED DETAIL,20/05/2016,GI,2110011,458.33,HC117835,The Brookfield School (Academy),201702,Central Childrens Directorate Costs,Support Services,
INSERTED DETAIL,20/05/2016,GI,2110056,458.33,HC117835,The Brookfield School (Academy),201702,Central Childrens Directorate Costs,Support Services,
INSERTED DETAIL,20/05/2016,GI,2110057,458.33,HC117835,The Brookfield School (Academy),201702,Central Childrens Directorate Costs,Support Services,
INSERTED DETAIL,20/05/2016,GI,2110087,458.33,HC117835,The Brookfield School (Academy),201702,Central Childrens Directorate Costs,Support Services,
INSERTED DETAIL,20/05/2016,GI,2110088,458.33,HC117835,The Brookfield School (Academy),201702,Central Childrens Directorate Costs,Support Services,
INSERTED DETAIL,20/05/2016,GI,2110090,458.33,HC117835,The Brookfield School (Academy),201702,Central Childrens Directorate Costs,Support Services,
INSERTED DETAIL,20/05/2016,GI,2110106,"1,033.33",HC117835,The Brookfield School (Academy),201702,Central Childrens Directorate Costs,Support Services,
INSERTED DETAIL,20/05/2016,GI,2110107,719.17,HC117835,The Brookfield School (Academy),201702,Central Childrens Directorate Costs,Support Services,
INSERTED DETAIL,20/05/2016,GI,2110108,719.17,HC117835,The Brookfield School (Academy),201702,Central Childrens Directorate Costs,Support Services,
INSERTED DETAIL,20/05/2016,GI,2110109,719.17,HC117835,The Brookfield School (Academy),201702,Central Childrens Directorate Costs,Support Services,
INSERTED DETAIL,20/05/2016,GI,2110110,719.17,HC117835,The Brookfield School (Academy),201702,Central Childrens Directorate Costs,Support Services,
INSERTED DETAIL,20/05/2016,GI,2110111,719.17,HC117835,The Brookfield School (Academy),201702,Central Childrens Directorate Costs,Support Services,
INSERTED DETAIL,20/05/2016,GI,2110112,719.17,HC117835,The Brookfield School (Academy),201702,Central Childrens Directorate Costs,Support Services,
INSERTED DETAIL,20/05/2016,GI,2110113,719.17,HC117835,The Brookfield School (Academy),201702,Central Childrens Directorate Costs,Support Services,
INSERTED DETAIL,20/05/2016,GI,2110114,719.17,HC117835,The Brookfield School (Academy),201702,Central Childrens Directorate Costs,Support Services,
INSERTED DETAIL,20/05/2016,GI,2110115,719.17,HC117835,The Brookfield School (Academy),201702,Central Childrens Directorate Costs,Support Services,
INSERTED DETAIL,20/05/2016,GI,2110120,458.33,HC117835,The Brookfield School (Academy),201702,Central Childrens Directorate Costs,Support Services,
INSERTED DETAIL,20/05/2016,GI,2110127,458.33,HC117835,The Brookfield School (Academy),201702,Central Childrens Directorate Costs,Support Services,
INSERTED DETAIL,20/05/2016,GI,2110128,"1,399.17",HC117835,The Brookfield School (Academy),201702,Central Childrens Directorate Costs,Support Services,
INSERTED DETAIL,20/05/2016,GI,2110134,458.33,HC117835,The Brookfield School (Academy),201702,Central Childrens Directorate Costs,Support Services,
INSERTED DETAIL,20/05/2016,GI,2110136,458.33,HC117835,The Brookfield School (Academy),201702,Central Childrens Directorate Costs,Support Services,
INSERTED DETAIL,20/05/2016,GI,2110138,458.33,HC117835,The Brookfield School (Academy),201702,Central Childrens Directorate Costs,Support Services,
INSERTED DETAIL,20/05/2016,GI,2110139,458.33,HC117835,The Brookfield School (Academy),201702,Central Childrens Directorate Costs,Support Services,
INSERTED DETAIL,20/05/2016,GI,2110140,719.17,HC117835,The Brookfield School (Academy),201702,Central Childrens Directorate Costs,Support Services,
INSERTED DETAIL,20/05/2016,GI,2110142,458.33,HC117835,The Brookfield School (Academy),201702,Central Childrens Directorate Costs,Support Services,
INSERTED DETAIL,20/05/2016,GI,2110149,719.17,HC117835,The Brookfield School (Academy),201702,Central Childrens Directorate Costs,Support Services,
INSERTED DETAIL,20/05/2016,GI,2110159,916.66,HC117835,The Brookfield School (Academy),201702,Central Childrens Directorate Costs,Support Services,
INSERTED DETAIL,20/05/2016,GI,2110160,458.33,HC117835,The Brookfield School (Academy),201702,Central Childrens Directorate Costs,Support Services,
INSERTED DETAIL,25/05/2016,SI,4688156,"7,036.00",HC117835,The Brookfield School (Academy),201702,Central Childrens Directorate Costs,Support Services,
INSERTED DETAIL,25/05/2016,SI,4688157,"6,664.00",HC117835,The Brookfield School (Academy),201702,Central Childrens Directorate Costs,Support Services,
INSERTED DETAIL,06/05/2016,OI,3828564,"2,675.00",HC117835,The Brookfield School (Academy),201702,Education and Commissioning,Support Services,
INSERTED DETAIL,13/05/2016,SI,4687587,835.00,HC117835,The Brookfield School (Academy),201702,Schools,Supplies & Services,
INSERTED DETAIL,18/05/2016,OI,3829286,"1,431.00",HC117855,Superstars Intervention Ltd,201702,Schools,Supplies & Services,
INSERTED DETAIL,18/05/2016,OI,3829368,"2,216.90",HC117865,Food For Thought,201702,Schools,Supplies & Services,
INSERTED DETAIL,06/05/2016,OI,3828620,"1,875.00",HC117934,Rapid Maintenance,201702,Schools,Premises-Related Expenditure,
INSERTED DETAIL,18/05/2016,OI,3829249,"1,987.50",HC118023,REDACTED,201702,Environment and Place,Transport-Related Expenditure,
INSERTED DETAIL,20/05/2016,OI,3829459,"1,320.00",HC118023,REDACTED,201702,Environment and Place,Transport-Related Expenditure,
INSERTED DETAIL,06/05/2016,SI,4687264,"1,126.84",HC118084,REDACTED,201702,Schools,Supplies & Services,
INSERTED DETAIL,06/05/2016,OI,3828621,466.64,HC118096,Twinkl Ltd,201702,Schools,Supplies & Services,
INSERTED DETAIL,11/05/2016,SI,4687494,624.90,HC118096,Twinkl Ltd,201702,Schools,Supplies & Services,
INSERTED DETAIL,26/05/2016,OI,3830070,960.00,HC118155,REDACTED,201702,Education and Commissioning,Supplies & Services,
INSERTED DETAIL,13/05/2016,OI,3829217,"10,000.00",HC118182,Fairoaks,201702,Growth Capital,Capital Expenditure,
INSERTED DETAIL,03/06/2016,OI,3830152,435.00,HC118382,Ward Andrews Ltd,201702,Safeguarding and Family Support,Supplies & Services,
INSERTED DETAIL,04/05/2016,OI,3828183,"9,129.48",HC118443,Hydro Mechanical Services Ltd,201702,Growth Capital,Capital Expenditure,
INSERTED DETAIL,11/05/2016,OI,3819790,"2,271.06",HC118449,V1 Ltd,201702,Resources,Supplies & Services,
INSERTED DETAIL,13/05/2016,OI,3829161,"2,311.98",HC118449,V1 Ltd,201702,Resources,Supplies & Services,
INSERTED DETAIL,13/05/2016,OI,3829124,900.00,HC118574,The Guardian News & Media Ltd,201702,Safeguarding and Family Support,Employees,
INSERTED DETAIL,26/05/2016,SI,4688171,"2,188.80",HC118604,Cobalt Telephone Technologies Ltd,201702,Environment and Place,Premises-Related Expenditure,
INSERTED DETAIL,25/05/2016,OI,3827165,790.00,HC118710,AK Designs,201702,Schools,Premises-Related Expenditure,
INSERTED DETAIL,11/05/2016,OI,3828473,"2,400.00",HC118782,TGMS Ltd,201702,Commissioning Capital,Capital Expenditure,
INSERTED DETAIL,11/05/2016,OI,3828973,"1,807.62",HC118842,Computer Systems in Education Ltd,201702,Schools,Supplies & Services,
INSERTED DETAIL,18/05/2016,OI,3829448,500.00,HC118884,REDACTED,201702,Communities,Supplies & Services,
INSERTED DETAIL,18/05/2016,OI,3829449,600.00,HC118884,REDACTED,201702,Communities,Supplies & Services,
INSERTED DETAIL,26/05/2016,OI,3830071,"1,140.00",HC118884,REDACTED,201702,Communities,Supplies & Services,
INSERTED DETAIL,20/05/2016,SI,4687941,"2,250.00",HC118914,Sound Intervention Ltd,201702,Environment and Place,Supplies & Services,
INSERTED DETAIL,20/05/2016,GI,2109956,458.33,HC118939,Riverside Primary School - HCC,201702,Central Childrens Directorate Costs,Support Services,
INSERTED DETAIL,20/05/2016,GI,2109960,458.33,HC118939,Riverside Primary School - HCC,201702,Central Childrens Directorate Costs,Support Services,
INSERTED DETAIL,20/05/2016,GI,2110015,458.33,HC118939,Riverside Primary School - HCC,201702,Central Childrens Directorate Costs,Support Services,
INSERTED DETAIL,20/05/2016,GI,2110135,458.33,HC118939,Riverside Primary School - HCC,201702,Central Childrens Directorate Costs,Support Services,
INSERTED DETAIL,20/05/2016,GI,2110137,458.33,HC118939,Riverside Primary School - HCC,201702,Central Childrens Directorate Costs,Support Services,
INSERTED DETAIL,20/05/2016,GI,2110198,794.00,HC118939,Riverside Primary School - HCC,201702,Children & Young People Capital,Capital Income,
INSERTED DETAIL,11/05/2016,SI,4687424,"1,260.00",HC118939,Riverside Primary School - HCC,201702,Education and Commissioning,Transfer Payments,
INSERTED DETAIL,20/05/2016,GI,2109967,458.33,HC118940,Earl Mortimer College & Sixth Form HCC,201702,Central Childrens Directorate Costs,Support Services,
INSERTED DETAIL,20/05/2016,GI,2110175,"1,137.00",HC118940,Earl Mortimer College & Sixth Form HCC,201702,Children & Young People Capital,Capital Income,
INSERTED DETAIL,18/05/2016,OI,3829444,"5,000.00",HC118940,Earl Mortimer College & Sixth Form HCC,201702,Education and Commissioning,Support Services,
INSERTED DETAIL,06/05/2016,OI,3827015,"14,250.00",HC118978,Taurus Healthcare,201702,Public Health,Supplies & Services,
INSERTED DETAIL,18/05/2016,OI,3829371,"15,600.00",HC118978,Taurus Healthcare,201702,Public Health,Supplies & Services,
INSERTED DETAIL,06/05/2016,SI,4687186,"1,584.00",HC118990,Arthur J Gallagher Insurance Brokers Ltd,201702,Schools,Supplies & Services,
INSERTED DETAIL,06/05/2016,SI,4687187,"18,198.75",HC118990,Arthur J Gallagher Insurance Brokers Ltd,201702,Schools,Supplies & Services,
INSERTED DETAIL,10/05/2016,GI,2109619,"1,495.00",HC119027,Benefits Immediate Payments,201702,Corporate,Transfer Payments,
INSERTED DETAIL,18/05/2016,OI,3829282,"6,825.00",HC119070,Airtree Ltd T/A Rest Up London,201702,Schools,Supplies & Services,
INSERTED DETAIL,01/06/2016,OI,3830149,"6,300.00",HC119092,Pathways2Prevention Ltd,201702,Public Health,Supplies & Services,
INSERTED DETAIL,18/05/2016,OI,3829320,500.00,HC119098,REDACTED,201702,Communities,Supplies & Services,
INSERTED DETAIL,18/05/2016,OI,3829285,710.64,HC119205,Oaktree Environmental Ltd,201702,Growth Capital,Capital Expenditure,
INSERTED DETAIL,11/05/2016,OI,3828841,"2,697.24",HC119243,Whizz Education,201702,Schools,Supplies & Services,
INSERTED DETAIL,13/05/2016,SI,4687582,462.00,HC119293,Age UK Hereford & Locatities,201702,Physical Disabilities,Third Party Payments,
INSERTED DETAIL,18/05/2016,OI,3829452,"1,884.17",HC119293,Age UK Hereford & Locatities,201702,Public Health,Transfer Payments,
INSERTED DETAIL,06/05/2016,OI,3828546,422.15,HC119304,Carter Haynes Ltd,201702,Schools,Supplies & Services,
INSERTED DETAIL,01/06/2016,OI,3830617,"15,000.00",HC119318,Herefordshire Vennture-Hereford Family Pastors,201702,Growth,Transfer Payments,
INSERTED DETAIL,20/05/2016,OI,3829594,"21,000.00",HC119350,System Associates Ltd,201702,Integrated Commissioning,Suspense Accounts,
INSERTED DETAIL,20/05/2016,OI,3829595,"12,000.00",HC119350,System Associates Ltd,201702,Integrated Commissioning,Suspense Accounts,
INSERTED DETAIL,11/05/2016,OI,3828971,"2,240.00",HC119374,MP Education Services Ltd,201702,Schools,Supplies & Services,
INSERTED DETAIL,26/05/2016,OI,3830007,"2,094.51",HC119408,The Wharf 1771 Ltd,201702,Growth Capital,Capital Expenditure,
INSERTED DETAIL,26/05/2016,SI,4688216,"5,943.76",HC119408,The Wharf 1771 Ltd,201702,Growth Capital,Capital Expenditure,
INSERTED DETAIL,03/06/2016,OI,3830333,499.00,HC119425,Parago Software Ltd,201702,Schools,Supplies & Services,
INSERTED DETAIL,11/05/2016,OI,3828719,500.00,HC119537,REDACTED,201702,Growth,Third Party Payments,
INSERTED DETAIL,11/05/2016,OI,3828720,"2,000.00",HC119537,REDACTED,201702,Growth,Third Party Payments,
INSERTED DETAIL,26/05/2016,OI,3829649,660.00,HC119548,Active and Fun PE,201702,Schools,Supplies & Services,
INSERTED DETAIL,18/05/2016,OI,3829446,437.50,HC119662,REDACTED,201702,Communities,Supplies & Services,
INSERTED DETAIL,18/05/2016,OI,3829335,800.00,HC119663,REDACTED,201702,Communities,Supplies & Services,
INSERTED DETAIL,18/05/2016,OI,3829342,"8,000.00",HC119706,Essential Supply Products Ltd,201702,Growth Capital,Capital Expenditure,
INSERTED DETAIL,18/05/2016,OI,3829453,"8,000.00",HC119706,Essential Supply Products Ltd,201702,Growth Capital,Capital Expenditure,
INSERTED DETAIL,26/05/2016,OI,3830031,"4,569.41",HC119706,Essential Supply Products Ltd,201702,Growth Capital,Capital Expenditure,
INSERTED DETAIL,18/05/2016,OI,3829344,"1,457.58",HC119740,Harrier Fluid Power Ltd T/A Flowfit,201702,Growth Capital,Capital Expenditure,
INSERTED DETAIL,20/05/2016,OI,3829584,"2,195.57",HC119740,Harrier Fluid Power Ltd T/A Flowfit,201702,Growth Capital,Capital Expenditure,
INSERTED DETAIL,04/05/2016,OI,3828345,600.00,HC119805,Jackie Wilson t/a Supreme Pony Parties,201702,Growth,Supplies & Services,
INSERTED DETAIL,18/05/2016,OI,3829454,"4,670.42",HC119827,Alpha Eyecare Ltd,201702,Growth Capital,Capital Expenditure,
INSERTED DETAIL,20/05/2016,OI,3829583,"8,290.03",HC119827,Alpha Eyecare Ltd,201702,Growth Capital,Capital Expenditure,
INSERTED DETAIL,20/05/2016,SI,4688015,"2,866.84",HC119864,REDACTED,201702,Growth Capital,Capital Expenditure,
INSERTED DETAIL,13/05/2016,OI,3829059,843.00,HC119899,Team Bees Ltd,201702,Schools,Supplies & Services,
INSERTED DETAIL,25/05/2016,SI,4688077,"3,000.00",HC119958,Rich Analysts Ltd,201702,Schools,Supplies & Services,
INSERTED DETAIL,11/05/2016,OI,3828968,"7,000.00",HC119983,Peter Mitchell Associates,201702,Environment and Place,Supplies & Services,
INSERTED DETAIL,01/06/2016,OI,3830274,"5,000.00",HC120033,Zurich Management Services Ltd,201702,Resources,Supplies & Services,
INSERTED DETAIL,18/05/2016,OI,3829257,550.00,HC120053,Tisdall Associates Ltd,201702,Growth Capital,Capital Expenditure,
INSERTED DETAIL,13/05/2016,SI,4687516,"9,490.65",HC120059,Wycliffe College,201702,Education and Commissioning,Third Party Payments,
INSERTED DETAIL,20/05/2016,GI,2110067,447.92,HC120060,Aspire Campus- North Shropshire College,201702,Central Childrens Directorate Costs,Support Services,
INSERTED DETAIL,01/06/2016,OI,3830499,535.00,HC120078,Upton Infant School,201702,Education and Commissioning,Support Services,
INSERTED DETAIL,04/05/2016,OI,3828349,"9,975.00",HC120088,Nystart Limited,201702,Resources,Third Party Payments,
INSERTED DETAIL,20/05/2016,GI,2110103,447.92,HC120103,The Plylimon Trust-Horizon Training,201702,Central Childrens Directorate Costs,Support Services,
INSERTED DETAIL,20/05/2016,GI,2110104,700.00,HC120103,The Plylimon Trust-Horizon Training,201702,Central Childrens Directorate Costs,Support Services,
INSERTED DETAIL,16/05/2016,GI,2108612,"18,463.00",HC120107,Hereford Integrated Behaviour Outreach Service,201702,Central Childrens Directorate Costs,Third Party Payments,
INSERTED DETAIL,16/05/2016,GI,2108613,"27,500.00",HC120107,Hereford Integrated Behaviour Outreach Service,201702,Central Childrens Directorate Costs,Third Party Payments,
INSERTED DETAIL,16/05/2016,GI,2108610,"66,666.67",HC120107,Hereford Integrated Behaviour Outreach Service,201702,Education and Commissioning,Third Party Payments,
INSERTED DETAIL,16/05/2016,GI,2108611,"1,500.00",HC120107,Hereford Integrated Behaviour Outreach Service,201702,Education and Commissioning,Third Party Payments,
INSERTED DETAIL,26/05/2016,SI,4688255,"5,440.02",HC120107,Hereford Integrated Behaviour Outreach Service,201702,Schools Devolved Capital,Capital Expenditure,
INSERTED DETAIL,18/05/2016,OI,3829343,"20,000.00",HC120115,Halls (Midlands) LLP - Client P R Clay,201702,Growth Capital,Capital Expenditure,
INSERTED DETAIL,06/05/2016,OI,3828490,"30,000.00",HC120154,Pennine Playgrounds Ltd,201702,Schools Devolved Capital,Capital Expenditure,
INSERTED DETAIL,26/05/2016,OI,3829769,"1,890.00",HC120195,The Albion Foundation,201702,Schools,Supplies & Services,
INSERTED DETAIL,11/05/2016,OI,3828716,"1,362.50",HC120199,REDACTED,201702,Environment and Place,Supplies & Services,
INSERTED DETAIL,20/05/2016,OI,3829618,"12,303.00",HC120271,Veale Wasbrough Visards,201702,Environment and Place,Supplies & Services,
INSERTED DETAIL,11/05/2016,OI,3828732,"4,319.40",HC120299,REDACTED,201702,Growth Capital,Capital Expenditure,
INSERTED DETAIL,20/05/2016,SI,4688016,"3,712.50",HC120299,REDACTED,201702,Growth Capital,Capital Expenditure,
INSERTED DETAIL,13/05/2016,OI,3828058,"2,000.00",HC120322,Aquarium CMS Ltd,201702,Integrated Commissioning,Capital Expenditure,
INSERTED DETAIL,25/05/2016,OI,3829768,"107,500.00",HC120328,Addaction,201702,Public Health,Supplies & Services,
INSERTED DETAIL,03/06/2016,GI,2108609,"147,313.06",HC120328,Addaction,201702,Public Health,Third Party Payments,
INSERTED DETAIL,13/05/2016,SI,4687617,937.50,HC120336,REDACTED,201702,Schools,Supplies & Services,
INSERTED DETAIL,26/05/2016,SI,4688263,750.00,HC120336,REDACTED,201702,Schools,Supplies & Services,
INSERTED DETAIL,03/06/2016,SI,4688329,"1,131.80",HC120337,Dixton Church PCC,201702,Environment and Place,Transfer Payments,
INSERTED DETAIL,26/05/2016,SI,4688029,593.80,HC120340,Adept Telecom PLC,201702,Resources,Supplies & Services,
INSERTED DETAIL,26/05/2016,SI,4688030,"7,340.57",HC120340,Adept Telecom PLC,201702,Resources,Supplies & Services,
INSERTED DETAIL,25/05/2016,OI,3829715,900.00,HC120361,Daniel Haworth Salter Photographer,201702,Growth,Third Party Payments,
INSERTED DETAIL,06/05/2016,SI,4687080,576.00,HC120377,REDACTED,201702,Schools,Support Services,
INSERTED DETAIL,25/05/2016,OI,3829637,"1,750.00",HC120380,REDACTED,201702,Growth,Supplies & Services,
INSERTED DETAIL,18/05/2016,OI,3829319,500.00,HC120396,REDACTED,201702,Communities,Supplies & Services,
INSERTED DETAIL,20/05/2016,OI,3829574,450.00,HC120399,REDACTED,201702,Communities,Supplies & Services,
INSERTED DETAIL,20/05/2016,SI,4688017,"2,925.00",HC120402,Joules Brewery Ltd,201702,Growth Capital,Capital Expenditure,
INSERTED DETAIL,26/05/2016,OI,3830006,"30,574.76",HC120402,Joules Brewery Ltd,201702,Growth Capital,Capital Expenditure,
INSERTED DETAIL,26/05/2016,SI,4688217,"3,514.34",HC120402,Joules Brewery Ltd,201702,Growth Capital,Capital Expenditure,
INSERTED DETAIL,11/05/2016,OI,3828763,474.90,HC120404,REDACTED,201702,Mental Health,Supplies & Services,
INSERTED DETAIL,01/06/2016,OI,3830295,842.40,HC120478,Chartered Trading Standards Institute,201702,Environment and Place,Supplies & Services,
INSERTED DETAIL,18/05/2016,OI,3829327,422.55,HC120519,Tradebe Healthcare Southwest Ltd,201702,Public Health,Supplies & Services,
INSERTED DETAIL,11/05/2016,OI,3828824,"2,121.06",HC120534,Victoria Whitchurch Ltd,201702,Growth Capital,Capital Expenditure,
INSERTED DETAIL,11/05/2016,OI,3828985,"1,531.28",HC120534,Victoria Whitchurch Ltd,201702,Growth Capital,Capital Expenditure,
INSERTED DETAIL,20/05/2016,SI,4688014,"3,890.12",HC120534,Victoria Whitchurch Ltd,201702,Growth Capital,Capital Expenditure,
INSERTED DETAIL,06/05/2016,OI,3828708,"1,350.00",HC120535,Family Rights Group,201702,Safeguarding and Family Support,Employees,
INSERTED DETAIL,25/05/2016,OI,3829707,780.00,HC120542,ALK Social Work Ltd,201702,Mental Health,Supplies & Services,
INSERTED DETAIL,20/05/2016,OI,3829092,"1,243.20",HC120602,Potterton Associates Ltd,201702,Environment and Place,Third Party Payments,
INSERTED DETAIL,20/05/2016,OI,3829093,"2,663.20",HC120602,Potterton Associates Ltd,201702,Environment and Place,Third Party Payments,
INSERTED DETAIL,13/05/2016,OI,3828991,"2,145.90",HC120703,Black Pepper (Ledbury) Ltd,201702,Schools,Supplies & Services,
INSERTED DETAIL,06/05/2016,SI,4687250,500.00,HC120709,REDACTED,201702,Environment and Place,Supplies & Services,
INSERTED DETAIL,13/05/2016,OI,3829218,642.50,HC120724,MC Products uk ltd.,201702,Environment and Place,Supplies & Services,
INSERTED DETAIL,01/06/2016,OI,3830495,"9,601.30",HC120741,CAE Technology Services Ltd,201702,Resources,Supplies & Services,
INSERTED DETAIL,18/05/2016,OI,3828931,860.00,HC120880,Cardiac Science Holdings UK Ltd,201702,Environment and Place,Supplies & Services,
INSERTED DETAIL,11/05/2016,OI,3828743,"1,785.00",HC120941,Hulse Yazdi Professional Services,201702,Communities,Supplies & Services,
INSERTED DETAIL,11/05/2016,OI,3828744,"1,330.00",HC120941,Hulse Yazdi Professional Services,201702,Communities,Supplies & Services,
INSERTED DETAIL,20/05/2016,OI,3829486,"1,365.00",HC120941,Hulse Yazdi Professional Services,201702,Communities,Supplies & Services,
INSERTED DETAIL,13/05/2016,OI,3828886,850.00,HC120953,The OT Practise Ltd,201702,Education and Commissioning,Third Party Payments,
INSERTED DETAIL,18/05/2016,OI,3829325,"13,383.61",HC120981,Luminescence Ltd,201702,Growth Capital,Capital Expenditure,
INSERTED DETAIL,25/05/2016,OI,3829984,"29,996.79",HC120981,Luminescence Ltd,201702,Growth Capital,Capital Expenditure,
INSERTED DETAIL,26/05/2016,SI,4688214,"6,980.26",HC120981,Luminescence Ltd,201702,Growth Capital,Capital Expenditure,
INSERTED DETAIL,13/05/2016,SI,4687727,"1,350.00",HC120995,REDACTED,201702,Environment and Place,Supplies & Services,
INSERTED DETAIL,13/05/2016,SI,4687728,"1,350.00",HC120996,Rosalind Haf Brooks,201702,Environment and Place,Supplies & Services,
INSERTED DETAIL,13/05/2016,SI,4687734,"1,350.00",HC120997,REDACTED,201702,Environment and Place,Supplies & Services,
INSERTED DETAIL,04/05/2016,OI,3828045,"1,906.10",HC120999,REDACTED,201702,Growth,Third Party Payments,
INSERTED DETAIL,20/05/2016,OI,3829575,425.00,HC121000,REDACTED,201702,Communities,Supplies & Services,
INSERTED DETAIL,20/05/2016,OI,3829576,425.00,HC121000,REDACTED,201702,Communities,Supplies & Services,
INSERTED DETAIL,25/05/2016,SI,4688158,"2,775.00",HC121008,REDACTED,201702,Environment and Place,Supplies & Services,
INSERTED DETAIL,13/05/2016,SI,4687705,"1,445.00",HC121009,REDACTED,201702,Environment and Place,Supplies & Services,
INSERTED DETAIL,20/05/2016,OI,3829505,"2,500.00",HC121038,Public Sector Live Ltd,201702,Resources,Supplies & Services,
INSERTED DETAIL,18/05/2016,OI,3829445,"10,000.00",HC121046,REDACTED,201702,Communities,Supplies & Services,
INSERTED DETAIL,20/05/2016,OI,3829634,"13,463.34",HC121087,Forge Property Consultants Ltd,201702,Growth Capital,Capital Expenditure,
INSERTED DETAIL,26/05/2016,OI,3830008,"15,936.40",HC121087,Forge Property Consultants Ltd,201702,Growth Capital,Capital Expenditure,
INSERTED DETAIL,26/05/2016,SI,4688215,"3,379.28",HC121087,Forge Property Consultants Ltd,201702,Growth Capital,Capital Expenditure,
INSERTED DETAIL,26/05/2016,OI,3829936,975.00,HC121089,REDACTED,201702,Schools,Supplies & Services,
INSERTED DETAIL,,SI,4687169,600.00,HC121090,South West Councils,201702,Safeguarding and Family Support,Third Party Payments,
INSERTED DETAIL,06/05/2016,SI,4687170,"1,000.00",HC121090,South West Councils,201702,Safeguarding and Family Support,Third Party Payments,
INSERTED DETAIL,06/05/2016,SI,4687234,708.60,HC121091,REDACTED,201702,Environment and Place,Supplies & Services,
INSERTED DETAIL,06/05/2016,SI,4687235,537.50,HC121092,Home Leisure Direct Ltd.,201702,Schools,Supplies & Services,
INSERTED DETAIL,06/05/2016,SI,4687207,"2,382.35",HC121096,Scanning Pens Ltd.,201702,Schools,Supplies & Services,
INSERTED DETAIL,20/05/2016,OI,3829566,"1,850.00",HC121098,Lyons Davidson Solicitors,201702,Growth Capital,Capital Expenditure,
INSERTED DETAIL,11/05/2016,OI,3828811,475.00,HC121100,Pilgrim Shoes,201702,Growth,Supplies & Services,
INSERTED DETAIL,13/05/2016,SI,4687375,750.00,HC121118,REDACTED,201702,Environment and Place,Supplies & Services,
INSERTED DETAIL,13/05/2016,SI,4687376,850.00,HC121118,REDACTED,201702,Environment and Place,Supplies & Services,
INSERTED DETAIL,13/05/2016,SI,4687737,"13,243.20",HC121129,Specialist Foundations & Construction Ltd,201702,Housing & Independent Living Capital,Capital Expenditure,
INSERTED DETAIL,13/05/2016,SI,4687578,627.00,HC121130,The Wilderness Centre,201702,Schools,Supplies & Services,
INSERTED DETAIL,25/05/2016,OI,3829751,700.78,HC121141,REDACTED,201702,Growth,Third Party Payments,
INSERTED DETAIL,18/05/2016,OI,3829353,"2,473.50",HC121145,TV Licensing (Group Licences Only),201702,Resources,Supplies & Services,
INSERTED DETAIL,13/05/2016,SI,4687732,500.00,HC121148,REDACTED,201702,Environment and Place,Supplies & Services,
INSERTED DETAIL,13/05/2016,SI,4687733,500.00,HC121148,REDACTED,201702,Environment and Place,Supplies & Services,
INSERTED DETAIL,13/05/2016,SI,4687730,460.00,HC121150,Enlightened Lighting Ltd,201702,Environment and Place,Supplies & Services,
INSERTED DETAIL,25/05/2016,OI,3829716,697.00,HC121153,The History Wardrobe,201702,Growth,Supplies & Services,
INSERTED DETAIL,20/05/2016,OI,3829635,700.00,HC121155,Media Gro Ltd,201702,Schools,Supplies & Services,
INSERTED DETAIL,20/05/2016,SI,4687869,902.40,HC121162,The Leigh Partnership Ltd,201702,Communities,Transfer Payments,
INSERTED DETAIL,03/06/2016,OI,3830167,"4,275.00",HC121173,Balfours With Berringtons,201702,Children & Young People Capital,Capital Expenditure,
INSERTED DETAIL,01/06/2016,GI,2112751,"10,434.41",HC121175,Matrix SCM Ltd,201702,Adults Operations,Employees,
INSERTED DETAIL,01/06/2016,GI,2112751,"1,331.63",HC121175,Matrix SCM Ltd,201702,Education and Commissioning,Employees,
INSERTED DETAIL,01/06/2016,GI,2112751,"8,399.41",HC121175,Matrix SCM Ltd,201702,Safeguarding and Family Support,Employees,
INSERTED DETAIL,26/05/2016,SI,4688205,525.00,HC121201,Whittington CE Primary School,201702,Education and Commissioning,Support Services,
detail,01/06/2016,SI,4688345,425.00,HC121226,REDACTED,201702,Schools,Employees,
INSERTED DETAIL,09/05/2016,WM,2105377,"1,736.36",HC108443,West Mercia Energy,201702,Environment and Place,Premises-Related Expenditure,Energy Costs
INSERTED DETAIL,09/05/2016,WM,2105378,977.89,HC108443,West Mercia Energy,201702,Environment and Place,Premises-Related Expenditure,Energy Costs
INSERTED DETAIL,09/05/2016,WM,2105384,"2,155.41",HC108443,West Mercia Energy,201702,Environment and Place,Premises-Related Expenditure,Energy Costs
INSERTED DETAIL,09/05/2016,WM,2105385,"2,016.25",HC108443,West Mercia Energy,201702,Environment and Place,Premises-Related Expenditure,Energy Costs
INSERTED DETAIL,09/05/2016,WM,2105386,"2,155.41",HC108443,West Mercia Energy,201702,Environment and Place,Premises-Related Expenditure,Energy Costs
INSERTED DETAIL,20/05/2016,WM,2110248,"1,135.81",HC108443,West Mercia Energy,201702,Environment and Place,Premises-Related Expenditure,Energy Costs
INSERTED DETAIL,20/05/2016,WM,2110251,421.42,HC108443,West Mercia Energy,201702,Environment and Place,Premises-Related Expenditure,Energy Costs
INSERTED DETAIL,20/05/2016,WM,2110273,601.41,HC108443,West Mercia Energy,201702,Environment and Place,Premises-Related Expenditure,Energy Costs
INSERTED DETAIL,20/05/2016,WM,2110279,425.92,HC108443,West Mercia Energy,201702,Environment and Place,Premises-Related Expenditure,Energy Costs
INSERTED DETAIL,20/05/2016,WM,2110281,499.57,HC108443,West Mercia Energy,201702,Environment and Place,Premises-Related Expenditure,Energy Costs
INSERTED DETAIL,20/05/2016,WM,2110287,"2,151.94",HC108443,West Mercia Energy,201702,Environment and Place,Premises-Related Expenditure,Energy Costs
INSERTED DETAIL,20/05/2016,WM,2110288,"1,678.03",HC108443,West Mercia Energy,201702,Environment and Place,Premises-Related Expenditure,Energy Costs
INSERTED DETAIL,20/05/2016,WM,2110295,778.54,HC108443,West Mercia Energy,201702,Environment and Place,Premises-Related Expenditure,Energy Costs
INSERTED DETAIL,20/05/2016,WM,2110303,901.44,HC108443,West Mercia Energy,201702,Environment and Place,Premises-Related Expenditure,Energy Costs
INSERTED DETAIL,20/05/2016,WM,2110318,463.85,HC108443,West Mercia Energy,201702,Environment and Place,Premises-Related Expenditure,Energy Costs
INSERTED DETAIL,09/05/2016,WM,2105368,726.96,HC108443,West Mercia Energy,201702,Schools,Premises-Related Expenditure,Energy Costs
INSERTED DETAIL,09/05/2016,WM,2105369,428.20,HC108443,West Mercia Energy,201702,Schools,Premises-Related Expenditure,Energy Costs
INSERTED DETAIL,09/05/2016,WM,2105370,913.48,HC108443,West Mercia Energy,201702,Schools,Premises-Related Expenditure,Energy Costs
INSERTED DETAIL,09/05/2016,WM,2105376,"1,075.89",HC108443,West Mercia Energy,201702,Schools,Premises-Related Expenditure,Energy Costs
INSERTED DETAIL,20/05/2016,WM,2110250,561.54,HC108443,West Mercia Energy,201702,Schools,Premises-Related Expenditure,Energy Costs
INSERTED DETAIL,20/05/2016,WM,2110272,652.94,HC108443,West Mercia Energy,201702,Schools,Premises-Related Expenditure,Energy Costs
INSERTED DETAIL,20/05/2016,WM,2110275,"1,162.34",HC108443,West Mercia Energy,201702,Schools,Premises-Related Expenditure,Energy Costs
INSERTED DETAIL,20/05/2016,WM,2110292,557.53,HC108443,West Mercia Energy,201702,Schools,Premises-Related Expenditure,Energy Costs
INSERTED DETAIL,20/05/2016,WM,2110302,444.49,HC108443,West Mercia Energy,201702,Schools,Premises-Related Expenditure,Energy Costs
INSERTED DETAIL,20/05/2016,WM,2110306,417.53,HC108443,West Mercia Energy,201702,Schools,Premises-Related Expenditure,Energy Costs
INSERTED DETAIL,20/05/2016,WM,2110316,630.82,HC108443,West Mercia Energy,201702,Schools,Premises-Related Expenditure,Energy Costs
"detail,1",03/05/2016,WM,2104184,"1,202.89",HC108443,West Mercia Energy,201702,Schools,Supplies & Services,"Printing, Stationery & General Office Expenses"
,13/05/2016,OI,3829098,701.40,HC100154,REDACTED,201702,Safeguarding and Family Support,Supplies & Services,
,13/05/2016,OI,3829207,"4,983.00",HC100180,REDACTED,201702,Adults Operations,Supplies & Services,
,20/05/2016,OI,3829598,"3,500.00",HC100180,REDACTED,201702,Adults Operations,Supplies & Services,
,20/05/2016,OI,3829599,"1,611.77",HC100180,REDACTED,201702,Adults Operations,Supplies & Services,
,29/03/2016,OI,3830649,"43,352.00",HC100213,REDACTED,201702,Safeguarding and Family Support,Supplies & Services,
,16/05/2016,GI,2108624,600.00,HC100270,REDACTED,201702,Adults Operations,Premises-Related Expenditure,
,25/05/2016,OI,3829754,"1,861.13",HC100581,REDACTED,201702,Safeguarding and Family Support,Supplies & Services,
,01/06/2016,OI,3830106,484.34,HC100617,REDACTED,201702,Safeguarding and Family Support,Supplies & Services,
,01/06/2016,OI,3830609,630.00,HC100963,REDACTED,201702,Safeguarding and Family Support,Supplies & Services,
,11/05/2016,OI,3828730,"28,667.00",HC101208,REDACTED,201702,Safeguarding and Family Support,Supplies & Services,
,03/06/2016,GI,2104740,577.60,HC101389,REDACTED,201702,Safeguarding and Family Support,Transport-Related Expenditure,
,25/05/2016,OI,3829794,750.00,HC106058,REDACTED,201702,Adults Operations,Supplies & Services,
,16/05/2016,GI,2108628,420.00,HC106104,REDACTED,201702,Adults Operations,Premises-Related Expenditure,
,16/05/2016,GI,2108626,"4,333.33",HC106816,REDACTED,201702,Adults Operations,Premises-Related Expenditure,
,16/05/2016,GI,2108615,600.00,HC106831,REDACTED,201702,Adults Operations,Premises-Related Expenditure,
,16/05/2016,GI,2108614,600.00,HC106870,REDACTED,201702,Adults Operations,Premises-Related Expenditure,
,06/05/2016,GI,2104796,"2,197.88",HC107838,REDACTED,201702,Adults Operations,Employees,
,06/05/2016,GI,2104796,"7,261.09",HC107838,REDACTED,201702,Safeguarding and Family Support,Employees,
,20/05/2016,OI,3829615,964.44,HC108143,REDACTED,201702,Adults Operations,Supplies & Services,
,16/05/2016,GI,2108620,550.00,HC108221,REDACTED,201702,Adults Operations,Premises-Related Expenditure,
,01/06/2016,OI,3829458,"1,027.88",HC108668,REDACTED,201702,Adults Operations,Supplies & Services,
,20/05/2016,GI,2109604,"9,105.48",HC108793,REDACTED,201702,Adults Operations,Supplies & Services,
,16/05/2016,GI,2108621,480.00,HC108905,REDACTED,201702,Adults Operations,Premises-Related Expenditure,
,16/05/2016,GI,2108622,475.00,HC109338,REDACTED,201702,Adults Operations,Premises-Related Expenditure,
,16/05/2016,GI,2108616,450.00,HC109865,REDACTED,201702,Adults Operations,Premises-Related Expenditure,
,16/05/2016,GI,2108617,450.00,HC109865,REDACTED,201702,Adults Operations,Premises-Related Expenditure,
,16/05/2016,GI,2108627,625.00,HC110272,REDACTED,201702,Adults Operations,Premises-Related Expenditure,
,06/05/2016,SI,4687258,450.00,HC110958,REDACTED,201702,Adults Operations,Supplies & Services,
,25/05/2016,SI,4688161,650.00,HC110958,REDACTED,201702,Adults Operations,Supplies & Services,
,06/05/2016,SI,4686077,"1,140.00",HC111420,REDACTED,201702,Safeguarding and Family Support,Third Party Payments,
,16/05/2016,GI,2108619,460.00,HC112055,REDACTED,201702,Adults Operations,Premises-Related Expenditure,
,13/05/2016,SI,4687681,"1,891.07",HC112403,REDACTED,201702,Safeguarding and Family Support,Third Party Payments,
,13/05/2016,GI,2108511,610.20,HC114655,REDACTED,201702,Safeguarding and Family Support,Third Party Payments,
,25/05/2016,GI,2111218,880.34,HC115036,REDACTED,201702,Safeguarding and Family Support,Supplies & Services,
,16/05/2016,GI,2108629,600.00,HC115622,REDACTED,201702,Adults Operations,Premises-Related Expenditure,
,16/05/2016,GI,2108630,525.00,HC116314,REDACTED,201702,Adults Operations,Premises-Related Expenditure,
,13/05/2016,GI,2108516,771.30,HC117000,REDACTED,201702,Safeguarding and Family Support,Third Party Payments,
,01/06/2016,OI,3830654,420.00,HC117414,REDACTED,201702,Safeguarding and Family Support,Supplies & Services,
,16/05/2016,GI,2108631,625.00,HC119280,REDACTED,201702,Adults Operations,Premises-Related Expenditure,
,06/05/2016,OI,3828635,"1,382.50",HC119481,REDACTED,201702,Adults Operations,Supplies & Services,
,06/05/2016,OI,3828636,"1,336.00",HC119481,REDACTED,201702,Adults Operations,Supplies & Services,
,25/05/2016,GI,2111189,433.33,HC119525,REDACTED,201702,Safeguarding and Family Support,Supplies & Services,
,18/05/2016,OI,3829332,960.00,HC119552,REDACTED,201702,Adults Operations,Supplies & Services,
,25/05/2016,OI,3829652,930.00,HC119552,REDACTED,201702,Adults Operations,Supplies & Services,
,01/06/2016,SI,4688291,"3,558.00",HC119613,REDACTED,201702,Safeguarding and Family Support,Third Party Payments,
,13/05/2016,OI,3829250,512.00,HC119745,REDACTED,201702,Safeguarding and Family Support,Transport-Related Expenditure,
,18/05/2016,GI,2108985,532.00,HC120304,REDACTED,201702,Safeguarding and Family Support,Supplies & Services,
,16/05/2016,GI,2108632,500.00,HC120621,REDACTED,201702,Adults Operations,Premises-Related Expenditure,
,26/05/2016,OI,3830073,"1,513.83",HC120949,REDACTED,201702,Safeguarding and Family Support,Supplies & Services,
,25/05/2016,GI,2111190,433.33,HC121017,REDACTED,201702,Safeguarding and Family Support,Supplies & Services,
,01/06/2016,GI,2112751,634.25,HC121175,REDACTED,201702,Adults Operations,Employees,
,20/05/2016,GI,2109753,"59,970.20",HC121175,REDACTED,201702,Safeguarding and Family Support,Employees,
,26/05/2016,GI,2112240,"102,562.31",HC121175,REDACTED,201702,Safeguarding and Family Support,Employees,
,01/06/2016,GI,2112751,"3,042.03",HC121175,REDACTED,201702,Safeguarding and Family Support,Employees,
,,,,"10,495,750.59",,,,,
